Workbook

Sheet ENE JUN 2025 VS 2024
C2: IMPO + EXPO (BOXES FULL) | H2: =+(D40+F40+H40+J40)/(+D18+F18+H18+J18) -> 2.8% | J2: INDICADORES PRIMER TRIMESTRE
C3: IMPO + EXPO (TEUs FULL) | H3: =+((D40+H40)+2*(F40+J40))/((D18+H18)+2*(F18+J18)) -> 4.1%
C4: IMPO + EXPO + TRANS + CABOT (BOXES EMPTY) | H4: =+(E40+G40+I40+K40+M40++O40+Q40+S40)/(+E18+G18+I18+K18+M18+O18+Q18+S18) -> 13.4%
C5: TRANSITO (BOXES) | H5: =+(L40+M40+N40+O40)/+(L18+M18+N18+O18) -> 44.4% | J5: PORCENTAJES DE VARIACIÓN 2025 VS. 2024
C6: CABOTAJE (BOXES) | H6: =+(P40+Q40+R40+S40)/(P18+Q18+R18+S18) -> -31.3%
C7: TEUs TOTALES | H7: =+U40/U18 -> 8.4%
C9: 2024 | D9: CANTIDAD CONTENEDORES ENERO - MARZO 2024 x MACROZONA
C10: MCZ | D10: IMPORTACIÓN | H10: EXPORTACIÓN | L10: TRÁNSITO | P10: CABOTAJE | T10: TOTAL BOXES | U10: TOTAL TEUS
D11: 20 pies | F11: 40 pies | H11: 20 pies | J11: 40 pies | L11: 20 pies | N11: 40 pies | P11: 20 pies | R11: 40 pies
D12: full | E12: empty | F12: full | G12: empty | H12: full | I12: empty | J12: full | K12: empty | L12: full | M12: empty | N12: full | O12: empty | P12: full | Q12: empty | R12: full | S12: empty
C13: NORTE | D13: 5,224 | E13: 7,080 | F13: 19,807 | G13: 6,214 | H13: 9,450 | I13: 2,895 | J13: 12,264 | K13: 19,896 | L13: 8,812 | M13: 0 | N13: 17,632 | O13: 0 | P13: 0 | Q13: 0 | R13: 0 | S13: 0 | T13: =SUM(D13:S13) -> 109,274 | U13: =D13+E13+H13+I13+L13+M13+P13+Q13+(2*(F13+G13+J13+K13+N13+O13+R13+S13)) -> 185,087
C14: CENTRO | D14: 35,580 | E14: 546 | F14: 102,056 | G14: 21,730 | H14: 21,145 | I14: 11,301 | J14: 90,243 | K14: 34,253 | L14: 1,556 | M14: 32 | N14: 4,377 | O14: 3,806 | P14: 1,613 | Q14: 583 | R14: 4,294 | S14: 15,027 | T14: =SUM(D14:S14) -> 348,142 | U14: =D14+E14+H14+I14+L14+M14+P14+Q14+(2*(F14+G14+J14+K14+N14+O14+R14+S14)) -> 623,928
C15: CENTRO SUR | D15: 4,927 | E15: 592 | F15: 8,767 | G15: 63,542 | H15: 3,768 | I15: 1,362 | J15: 80,888 | K15: 1,403 | L15: 30 | M15: 1,018 | N15: 191 | O15: 13,778 | P15: 186 | Q15: 248 | R15: 130 | S15: 313 | T15: 181,143 | U15: 350,155
C16: SUR | D16: 0 | E16: 0 | F16: 0 | G16: 0 | H16: 0 | I16: 0 | J16: 0 | K16: 0 | L16: 0 | M16: 0 | N16: 0 | O16: 0 | P16: 0 | Q16: 0 | R16: 0 | S16: 0 | T16: 0 | U16: 0
C17: AUSTRAL | D17: 154 | E17: 0 | F17: 374 | G17: 0 | H17: 366 | I17: 0 | J17: 299 | K17: 0 | L17: 0 | M17: 0 | N17: 0 | O17: 0 | P17: 341 | Q17: 41 | R17: 794 | S17: 70 | T17: 2,439 | U17: 3,976
C18: TOTAL | D18: =SUM(D13:D17) -> 45,885 | E18: =SUM(E13:E17) -> 8,218 | F18: 131,004 | G18: 91,486 | H18: 34,729 | I18: 15,558 | J18: 183,694 | K18: 55,552 | L18: 10,398 | M18: 1,050 | N18: 22,200 | O18: 17,584 | P18: 2,140 | Q18: 872 | R18: 5,218 | S18: 15,410 | T18: =SUM(D18:S18) -> 640,998 | U18: 1,163,146
C20: 2025 | D20: CANTIDAD CONTENEDORES ENERO - MARZO 2025 x MACROZONA
C21: MCZ | D21: IMPORTACIÓN | H21: EXPORTACIÓN | L21: TRÁNSITO | P21: CABOTAJE | T21: TOTAL BOXES | U21: TOTAL TEUS
D22: 20 pies | F22: 40 pies | H22: 20 pies | J22: 40 pies | L22: 20 pies | N22: 40 pies | P22: 20 pies | R22: 40 pies
D23: full | E23: empty | F23: full | G23: empty | H23: full | I23: empty | J23: full | K23: empty | L23: full | M23: empty | N23: full | O23: empty | P23: full | Q23: empty | R23: full | S23: empty
C24: NORTE | D24: 3,426 | E24: 5,299 | F24: 22,920 | G24: 4,916 | H24: 6,987 | I24: 1,583 | J24: 10,000 | K24: 23,864 | L24: 10,021 | M24: 0 | N24: 19,606 | O24: 0 | P24: 0 | Q24: 0 | R24: 0 | S24: 0 | T24: =SUM(D24:S24) -> 108,622 | U24: =D24+E24+H24+I24+L24+M24+P24+Q24+(2*(F24+G24+J24+K24+N24+O24+R24+S24)) -> 189,928
C25: CENTRO | D25: 34,396 | E25: 688 | F25: 119,484 | G25: 37,310 | H25: 19,329 | I25: 11,001 | J25: 89,446 | K25: 55,072 | L25: 1,552 | M25: 758 | N25: 8,291 | O25: 4,676 | P25: 1,055 | Q25: 748 | R25: 2,578 | S25: 9,804 | T25: =SUM(D25:S25) -> 396,188 | U25: =D25+E25+H25+I25+L25+M25+P25+Q25+(2*(F25+G25+J25+K25+N25+O25+R25+S25)) -> 722,849
C26: CENTRO SUR | D26: 4,434 | E26: 868 | F26: 8,542 | G26: 46,007 | H26: 4,923 | I26: 799 | J26: 81,486 | K26: 1,762 | L26: 238 | M26: 1,503 | N26: 854 | O26: 26,496 | P26: 158 | Q26: 0 | R26: 386 | S26: 0 | T26: 178,456 | U26: 343,989
C27: SUR | D27: 0 | E27: 0 | F27: 0 | G27: 0 | H27: 0 | I27: 0 | J27: 0 | K27: 0 | L27: 0 | M27: 0 | N27: 0 | O27: 0 | P27: 0 | Q27: 0 | R27: 0 | S27: 0 | T27: 0 | U27: 0
C28: AUSTRAL | D28: 152 | E28: 0 | F28: 518 | G28: 0 | H28: 22 | I28: 0 | J28: 269 | K28: 0 | L28: 0 | M28: 0 | N28: 0 | O28: 0 | P28: 330 | Q28: 13 | R28: 1,130 | S28: 38 | T28: 2,472 | U28: 4,427
C29: TOTAL | D29: =SUM(D24:D28) -> 42,408 | E29: =SUM(E24:E28) -> 6,855 | F29: 151,464 | G29: 88,233 | H29: 31,261 | I29: 13,383 | J29: 181,201 | K29: 80,698 | L29: 11,811 | M29: 2,261 | N29: 28,751 | O29: 31,172 | P29: 1,543 | Q29: 761 | R29: 4,094 | S29: 9,842 | T29: =SUM(D29:S29) -> 685,738 | U29: 1,261,193
C31: DIFERENCIA ENERO - MARZO 2025 vs 2024 (UNIDADES)
C32: MCZ | D32: IMPORTACIÓN | H32: EXPORTACIÓN | L32: TRÁNSITO | P32: CABOTAJE | T32: TOTAL BOXES | U32: TOTAL TEUS
D33: 20 pies | F33: 40 pies | H33: 20 pies | J33: 40 pies | L33: 20 pies | N33: 40 pies | P33: 20 pies | R33: 40 pies
D34: full | E34: empty | F34: full | G34: empty | H34: full | I34: empty | J34: full | K34: empty | L34: full | M34: empty | N34: full | O34: empty | P34: full | Q34: empty | R34: full | S34: empty
C35: NORTE | D35: =D24-D13 -> -1,798 | E35: =E24-E13 -> -1,781 | F35: 3,113 | G35: -1,298 | H35: -2,463 | I35: -1,312 | J35: -2,264 | K35: 3,968 | L35: 1,209 | M35: 0 | N35: 1,974 | O35: 0 | P35: 0 | Q35: 0 | R35: 0 | S35: 0 | T35: =SUM(D35:S35) -> -652 | U35: =D35+E35+H35+I35+L35+M35+P35+Q35+(2*(F35+G35+J35+K35+N35+O35+R35+S35)) -> 4,841
C36: CENTRO | D36: =D25-D14 -> -1,184 | E36: 142 | F36: 17,428 | G36: 15,580 | H36: -1,816 | I36: -300 | J36: -797 | K36: 20,819 | L36: -4 | M36: 726 | N36: 3,914 | O36: 870 | P36: -558 | Q36: 165 | R36: -1,716 | S36: -5,223 | T36: =SUM(D36:S36) -> 48,046 | U36: =D36+E36+H36+I36+L36+M36+P36+Q36+(2*(F36+G36+J36+K36+N36+O36+R36+S36)) -> 98,921
C37: CENTRO SUR | D37: -493 | E37: 276 | F37: -225 | G37: -17,535 | H37: 1,155 | I37: -563 | J37: 598 | K37: 359 | L37: 208 | M37: 485 | N37: 663 | O37: 12,718 | P37: -28 | Q37: -248 | R37: 256 | S37: -313 | T37: -2,687 | U37: -6,166
C38: SUR | D38: 0 | E38: 0 | F38: 0 | G38: 0 | H38: 0 | I38: 0 | J38: 0 | K38: 0 | L38: 0 | M38: 0 | N38: 0 | O38: 0 | P38: 0 | Q38: 0 | R38: 0 | S38: 0 | T38: 0 | U38: 0
C39: AUSTRAL | D39: -2 | E39: 0 | F39: 144 | G39: 0 | H39: -344 | I39: 0 | J39: -30 | K39: 0 | L39: 0 | M39: 0 | N39: 0 | O39: 0 | P39: -11 | Q39: -28 | R39: 336 | S39: -32 | T39: 33 | U39: 451
C40: TOTAL | D40: =D29-D18 -> -3,477 | E40: -1,363 | F40: 20,460 | G40: -3,253 | H40: -3,468 | I40: -2,175 | J40: -2,493 | K40: 25,146 | L40: 1,413 | M40: 1,211 | N40: 6,551 | O40: 13,588 | P40: -597 | Q40: -111 | R40: -1,124 | S40: -5,568 | T40: =T29-T18 -> 44,740 | U40: 98,047
C42: DIFERENCIA ENERO - MARZO 2025 vs 2024 (PORCENTAJES)
C43: MCZ | D43: IMPORTACIÓN | H43: EXPORTACIÓN | L43: TRÁNSITO | P43: CABOTAJE | T43: TOTAL BOXES | U43: TOTAL TEUS
D44: 20 pies | F44: 40 pies | H44: 20 pies | J44: 40 pies | L44: 20 pies | N44: 40 pies | P44: 20 pies | R44: 40 pies
D45: full | E45: empty | F45: full | G45: empty | H45: full | I45: empty | J45: full | K45: empty | L45: full | M45: empty | N45: full | O45: empty | P45: full | Q45: empty | R45: full | S45: empty
C46: NORTE | D46: =+D35/D13 -> -34.4% | E46: =+E35/E13 -> -25.2% | F46: 15.7% | G46: -20.9% | H46: -26.1% | I46: -45.3% | J46: -18.5% | K46: 19.9% | L46: 13.7% | N46: 11.2% | T46: =+T35/T13 -> -0.6% | U46: =+U35/U13 -> 2.6%
C47: CENTRO | D47: =+D36/D14 -> -3.3% | E47: 26.0% | F47: 17.1% | G47: 71.7% | H47: -8.6% | I47: -2.7% | J47: -0.9% | K47: 60.8% | L47: -0.3% | M47: 2268.8% | N47: 89.4% | O47: 22.9% | P47: -34.6% | Q47: 28.3% | R47: -40.0% | S47: -34.8% | T47: 13.8% | U47: 15.9%
C48: CENTRO SUR | D48: -10.0% | E48: 46.6% | F48: -2.6% | G48: -27.6% | H48: 30.7% | I48: -41.3% | J48: 0.7% | K48: 25.6% | L48: 693.3% | M48: 47.6% | N48: 347.1% | O48: 92.3% | P48: -15.1% | Q48: -100.0% | R48: 196.9% | S48: -100.0% | T48: -1.5% | U48: -1.8%
C49: SUR
C50: AUSTRAL | D50: =+D39/D17 -> -1.3% | F50: 38.5% | H50: -94.0% | J50: -10.0% | P50: -3.2% | Q50: -68.3% | R50: 42.3% | S50: -45.7% | T50: 1.4% | U50: 11.3%
C51: TOTAL | D51: =+D40/D18 -> -7.6% | E51: -16.6% | F51: 15.6% | G51: -3.6% | H51: -10.0% | I51: -14.0% | J51: -1.4% | K51: 45.3% | L51: 13.6% | M51: 115.3% | N51: 29.5% | O51: 77.3% | P51: -27.9% | Q51: -12.7% | R51: -21.5% | S51: -36.1% | T51: =+T40/T18 -> 7.0% | U51: =+U40/U18 -> 8.4%
C54: IMPO + EXPO (BOXES FULL) | H54: =+(D92+F92+H92+J92)/(+D70+F70+H70+J70) -> 12.4% | J54: INDICADORES SEGUNDO TRIMESTRE
C55: IMPO + EXPO (TEUs FULL) | H55: =+((D92+H92)+2*(F92+J92))/((D70+H70)+2*(F70+J70)) -> 13.2%
C56: IMPO + EXPO + TRANS + CABOT (BOXES EMPTY) | H56: =+(E92+G92+I92+K92+M92+O92+Q92+S92)/(+E70+G70+I70+K70+M70+O70+Q70+S70) -> 26.4%
C57: TRANSITO (BOXES) | H57: =+(L92+M92+N92+O92)/+(L70+M70+N70+O70) -> 19.7% | J57: PORCENTAJES DE VARIACIÓN 2025 VS. 2024
C58: CABOTAJE (BOXES) | H58: =+(P92+Q92+R92+S92)/(P70+Q70+R70+S70) -> 3.8%
C59: TEUs TOTALES | H59: =+U92/U70 -> 17.8%
C61: 2024 | D61: CANTIDAD CONTENEDORES ABRIL - JUNIO 2024 x MACROZONA
C62: MCZ | D62: IMPORTACIÓN | H62: EXPORTACIÓN | L62: TRÁNSITO | P62: CABOTAJE | T62: TOTAL BOXES | U62: TOTAL TEUS
D63: 20 pies | F63: 40 pies | H63: 20 pies | J63: 40 pies | L63: 20 pies | N63: 40 pies | P63: 20 pies | R63: 40 pies
D64: full | E64: empty | F64: full | G64: empty | H64: full | I64: empty | J64: full | K64: empty | L64: full | M64: empty | N64: full | O64: empty | P64: full | Q64: empty | R64: full | S64: empty
C65: NORTE | D65: 3,440 | E65: 8,830 | F65: 20,340 | G65: 7,025 | H65: 9,856 | I65: 2,038 | J65: 10,759 | K65: 17,164 | L65: 8,483 | M65: 0 | N65: 18,134 | O65: 0 | P65: 0 | Q65: 0 | R65: 0 | S65: 0 | T65: =SUM(D65:S65) -> 106,069 | U65: =D65+E65+H65+I65+L65+M65+P65+Q65+(2*(F65+G65+J65+K65+N65+O65+R65+S65)) -> 179,491
C66: CENTRO | D66: 32,878 | E66: 278 | F66: 96,809 | G66: 27,149 | H66: 19,814 | I66: 13,248 | J66: 82,944 | K66: 33,454 | L66: 1,060 | M66: 157 | N66: 4,593 | O66: 2,963 | P66: 1,106 | Q66: 784 | R66: 3,355 | S66: 9,442 | T66: =SUM(D66:S66) -> 330,034 | U66: =D66+E66+H66+I66+L66+M66+P66+Q66+(2*(F66+G66+J66+K66+N66+O66+R66+S66)) -> 590,743
C67: CENTRO SUR | D67: 3,502 | E67: 209 | F67: 6,338 | G67: 30,907 | H67: 4,029 | I67: 796 | J67: 60,966 | K67: 267 | L67: 57 | M67: 1,041 | N67: 730 | O67: 20,557 | P67: 143 | Q67: 156 | R67: 226 | S67: 203 | T67: 130,127 | U67: 250,321
C68: SUR | D68: 0 | E68: 0 | F68: 0 | G68: 0 | H68: 0 | I68: 0 | J68: 0 | K68: 0 | L68: 0 | M68: 0 | N68: 0 | O68: 0 | P68: 0 | Q68: 0 | R68: 0 | S68: 0 | T68: 0 | U68: 0
C69: AUSTRAL | D69: 157 | E69: 1 | F69: 319 | G69: 0 | H69: 8 | I69: 0 | J69: 406 | K69: 0 | L69: 0 | M69: 0 | N69: 0 | O69: 0 | P69: 244 | Q69: 35 | R69: 816 | S69: 87 | T69: 2,073 | U69: 3,701
C70: TOTAL | D70: =SUM(D65:D69) -> 39,977 | E70: =SUM(E65:E69) -> 9,318 | F70: 123,806 | G70: 65,081 | H70: 33,707 | I70: 16,082 | J70: 155,075 | K70: 50,885 | L70: 9,600 | M70: 1,198 | N70: 23,457 | O70: 23,520 | P70: 1,493 | Q70: 975 | R70: 4,397 | S70: 9,732 | T70: =SUM(D70:S70) -> 568,303 | U70: 1,024,256
C72: 2025 | D72: CANTIDAD CONTENEDORES ABRIL - JUNIO 2025 x MACROZONA
C73: MCZ | D73: IMPORTACIÓN | H73: EXPORTACIÓN | L73: TRÁNSITO | P73: CABOTAJE | T73: TOTAL BOXES | U73: TOTAL TEUS
D74: 20 pies | F74: 40 pies | H74: 20 pies | J74: 40 pies | L74: 20 pies | N74: 40 pies | P74: 20 pies | R74: 40 pies | W74: 1
D75: full | E75: empty | F75: full | G75: empty | H75: full | I75: empty | J75: full | K75: empty | L75: full | M75: empty | N75: full | O75: empty | P75: full | Q75: empty | R75: full | S75: empty
C76: NORTE | D76: 3,710 | E76: 5,027 | F76: 23,696 | G76: 4,335 | H76: 7,088 | I76: 2,639 | J76: 9,294 | K76: 25,266 | L76: 9,098 | M76: 0 | N76: 18,717 | O76: 0 | P76: 0 | Q76: 0 | R76: 0 | S76: 0 | T76: =SUM(D76:S76) -> 108,870 | U76: =D76+E76+H76+I76+L76+M76+P76+Q76+(2*(F76+G76+J76+K76+N76+O76+R76+S76)) -> 190,178
C77: CENTRO | D77: 34,953 | E77: 573 | F77: 116,847 | G77: 27,306 | H77: 21,546 | I77: 11,900 | J77: 80,192 | K77: 59,713 | L77: 1,805 | M77: 137 | N77: 4,695 | O77: 2,008 | P77: 1,159 | Q77: 574 | R77: 2,319 | S77: 11,248 | T77: =SUM(D77:S77) -> 376,975 | U77: =D77+E77+H77+I77+L77+M77+P77+Q77+(2*(F77+G77+J77+K77+N77+O77+R77+S77)) -> 681,303
C78: CENTRO SUR | D78: 4,209 | E78: 1,898 | F78: 9,628 | G78: 38,445 | H78: 5,977 | I78: 354 | J78: 78,316 | K78: 552 | L78: 348 | M78: 1,162 | N78: 1,076 | O78: 30,135 | P78: 128 | Q78: 0 | R78: 387 | S78: 0 | T78: 172,615 | U78: 331,154
C79: SUR | D79: 0 | E79: 0 | F79: 0 | G79: 0 | H79: 0 | I79: 0 | J79: 0 | K79: 0 | L79: 0 | M79: 0 | N79: 0 | O79: 0 | P79: 0 | Q79: 0 | R79: 0 | S79: 0 | T79: 0 | U79: 0
C80: AUSTRAL | D80: 177 | E80: 0 | F80: 348 | G80: 0 | H80: 11 | I80: 8 | J80: 312 | K80: 0 | L80: 0 | M80: 0 | N80: 0 | O80: 0 | P80: 259 | Q80: 3 | R80: 1,021 | S80: 130 | T80: 2,269 | U80: 4,080
C81: TOTAL | D81: =SUM(D76:D80) -> 43,049 | E81: =SUM(E76:E80) -> 7,498 | F81: 150,519 | G81: 70,086 | H81: 34,622 | I81: 14,901 | J81: 168,114 | K81: 85,531 | L81: 11,251 | M81: 1,299 | N81: 24,488 | O81: 32,143 | P81: 1,546 | Q81: 577 | R81: 3,727 | S81: 11,378 | T81: =SUM(D81:S81) -> 660,729 | U81: 1,206,715
C83: DIFERENCIA ABRIL - JUNIO 2025 vs 2024 (UNIDADES)
C84: MCZ | D84: IMPORTACIÓN | H84: EXPORTACIÓN | L84: TRÁNSITO | P84: CABOTAJE | T84: TOTAL BOXES | U84: TOTAL TEUS
D85: 20 pies | F85: 40 pies | H85: 20 pies | J85: 40 pies | L85: 20 pies | N85: 40 pies | P85: 20 pies | R85: 40 pies
D86: full | E86: empty | F86: full | G86: empty | H86: full | I86: empty | J86: full | K86: empty | L86: full | M86: empty | N86: full | O86: empty | P86: full | Q86: empty | R86: full | S86: empty
C87: NORTE | D87: =D76-D65 -> 270 | E87: =E76-E65 -> -3,803 | F87: 3,356 | G87: -2,690 | H87: -2,768 | I87: 601 | J87: -1,465 | K87: 8,102 | L87: 615 | M87: 0 | N87: 583 | O87: 0 | P87: 0 | Q87: 0 | R87: 0 | S87: 0 | T87: =SUM(D87:S87) -> 2,801 | U87: =D87+E87+H87+I87+L87+M87+P87+Q87+(2*(F87+G87+J87+K87+N87+O87+R87+S87)) -> 10,687
C88: CENTRO | D88: =D77-D66 -> 2,075 | E88: 295 | F88: 20,038 | G88: 157 | H88: 1,732 | I88: -1,348 | J88: -2,752 | K88: 26,259 | L88: 745 | M88: -20 | N88: 102 | O88: -955 | P88: 53 | Q88: -210 | R88: -1,036 | S88: 1,806 | T88: =SUM(D88:S88) -> 46,941 | U88: =D88+E88+H88+I88+L88+M88+P88+Q88+(2*(F88+G88+J88+K88+N88+O88+R88+S88)) -> 90,560
C89: CENTRO SUR | D89: 707 | E89: 1,689 | F89: 3,290 | G89: 7,538 | H89: 1,948 | I89: -442 | J89: 17,350 | K89: 285 | L89: 291 | M89: 121 | N89: 346 | O89: 9,578 | P89: -15 | Q89: -156 | R89: 161 | S89: -203 | T89: 42,488 | U89: 80,833
C90: SUR | D90: 0 | E90: 0 | F90: 0 | G90: 0 | H90: 0 | I90: 0 | J90: 0 | K90: 0 | L90: 0 | M90: 0 | N90: 0 | O90: 0 | P90: 0 | Q90: 0 | R90: 0 | S90: 0 | T90: 0 | U90: 0
C91: AUSTRAL | D91: 20 | E91: -1 | F91: 29 | G91: 0 | H91: 3 | I91: 8 | J91: -94 | K91: 0 | L91: 0 | M91: 0 | N91: 0 | O91: 0 | P91: 15 | Q91: -32 | R91: 205 | S91: 43 | T91: 196 | U91: 379
C92: TOTAL | D92: =D81-D70 -> 3,072 | E92: -1,820 | F92: 26,713 | G92: 5,005 | H92: 915 | I92: -1,181 | J92: 13,039 | K92: 34,646 | L92: 1,651 | M92: 101 | N92: 1,031 | O92: 8,623 | P92: 53 | Q92: -398 | R92: -670 | S92: 1,646 | T92: =T81-T70 -> 92,426 | U92: 182,459
C94: DIFERENCIA ABRIL - JUNIO 2025 vs 2024 (PORCENTAJES)
C95: MCZ | D95: IMPORTACIÓN | H95: EXPORTACIÓN | L95: TRÁNSITO | P95: CABOTAJE | T95: TOTAL BOXES | U95: TOTAL TEUS
D96: 20 pies | F96: 40 pies | H96: 20 pies | J96: 40 pies | L96: 20 pies | N96: 40 pies | P96: 20 pies | R96: 40 pies
D97: full | E97: empty | F97: full | G97: empty | H97: full | I97: empty | J97: full | K97: empty | L97: full | M97: empty | N97: full | O97: empty | P97: full | Q97: empty | R97: full | S97: empty
C98: NORTE | D98: =+D87/D65 -> 7.8% | E98: =+E87/E65 -> -43.1% | F98: 16.5% | G98: -38.3% | H98: -28.1% | I98: 29.5% | J98: -13.6% | K98: 47.2% | L98: 7.2% | N98: 3.2% | T98: =+T87/T65 -> 2.6% | U98: =+U87/U65 -> 6.0%
C99: CENTRO | D99: =+D88/D66 -> 6.3% | E99: 106.1% | F99: 20.7% | G99: 0.6% | H99: 8.7% | I99: -10.2% | J99: -3.3% | K99: 78.5% | L99: 70.3% | M99: -12.7% | N99: 2.2% | O99: -32.2% | P99: 4.8% | Q99: -26.8% | R99: -30.9% | S99: 19.1% | T99: 14.2% | U99: 15.3%
C100: CENTRO SUR | D100: 20.2% | E100: 808.1% | F100: 51.9% | G100: 24.4% | H100: 48.3% | I100: -55.5% | J100: 28.5% | K100: 106.7% | L100: 510.5% | M100: 11.6% | N100: 47.4% | O100: 46.6% | P100: -10.5% | Q100: -100.0% | R100: 71.2% | S100: -100.0% | T100: 32.7% | U100: 32.3%
C101: SUR
C102: AUSTRAL | D102: =+D91/D69 -> 12.7% | F102: 9.1% | H102: 37.5% | J102: -23.2% | P102: 6.1% | Q102: -91.4% | R102: 25.1% | S102: 49.4% | T102: 9.5% | U102: 10.2%
C103: TOTAL | D103: =+D92/D70 -> 7.7% | E103: =+E92/E70 -> -19.5% | F103: 21.6% | G103: 7.7% | H103: 2.7% | I103: -7.3% | J103: 8.4% | K103: 68.1% | L103: 17.2% | M103: 8.4% | N103: 4.4% | O103: 36.7% | P103: 3.5% | Q103: -40.8% | R103: -15.2% | S103: 16.9% | T103: 16.3% | U103: 17.8%
C106: IMPO + EXPO (BOXES FULL) | H106: =+(D144+F144+H144+J144)/(+D122+F122+H122+J122) -> -100.0% | J106: INDICADORES TERCER TRIMESTRE
C107: IMPO + EXPO (TEUs FULL) | H107: =+((D144+H144)+2*(F144+J144))/((D122+H122)+2*(F122+J122)) -> -100.0%
C108: IMPO + EXPO + TRANS + CABOT (BOXES EMPTY) | H108: =+(E144+G144+I144+K144+M144+O144+Q144+S144)/(+E122+G122+I122+K122+M122+O122+Q122+S122) -> -100.0%
C109: TRANSITO (BOXES) | H109: =+(L144+M144+N144+O144)/+(L122+M122+N122+O122) -> -100.0% | J109: PORCENTAJES DE VARIACIÓN 2025 VS. 2024
C110: CABOTAJE (BOXES) | H110: =+(P144+Q144+R144+S144)/(P122+Q122+R122+S122) -> -100.0%
C111: TEUs TOTALES | H111: =+U144/U122 -> -100.0%
C113: 2024 | D113: CANTIDAD CONTENEDORES JULIO - SEPTIEMBRE 2024 x MACROZONA
C114: MCZ | D114: IMPORTACIÓN | H114: EXPORTACIÓN | L114: TRÁNSITO | P114: CABOTAJE | T114: TOTAL BOXES | U114: TOTAL TEUS
D115: 20 pies | F115: 40 pies | H115: 20 pies | J115: 40 pies | L115: 20 pies | N115: 40 pies | P115: 20 pies | R115: 40 pies
D116: full | E116: empty | F116: full | G116: empty | H116: full | I116: empty | J116: full | K116: empty | L116: full | M116: empty | N116: full | O116: empty | P116: full | Q116: empty | R116: full | S116: empty
C117: NORTE | D117: 2,645 | E117: 6,224 | F117: 16,849 | G117: 6,605 | H117: 8,585 | I117: 1,027 | J117: 10,434 | K117: 16,393 | L117: 8,142 | M117: 0 | N117: 20,430 | O117: 0 | P117: 0 | Q117: 0 | R117: 0 | S117: 0 | T117: =SUM(D117:S117) -> 97,334 | U117: =D117+E117+H117+I117+L117+M117+P117+Q117+(2*(F117+G117+J117+K117+N117+O117+R117+S117)) -> 168,045
C118: CENTRO | D118: 32,468 | E118: 281 | F118: 146,252 | G118: 36,679 | H118: 21,563 | I118: 8,999 | J118: 96,727 | K118: 38,576 | L118: 1,763 | M118: 121 | N118: 3,993 | O118: 932 | P118: 799 | Q118: 700 | R118: 2,944 | S118: 12,230 | T118: =SUM(D118:S118) -> 405,027 | U118: =D118+E118+H118+I118+L118+M118+P118+Q118+(2*(F118+G118+J118+K118+N118+O118+R118+S118)) -> 743,360
C119: CENTRO SUR | D119: 3,646 | E119: 609 | F119: 6,995 | G119: 39,382 | H119: 4,531 | I119: 950 | J119: 71,729 | K119: 348 | L119: 138 | M119: 1,241 | N119: 822 | O119: 20,280 | P119: 125 | Q119: 8 | R119: 168 | S119: 12 | T119: 150,984 | U119: 290,720
C120: SUR | D120: 0 | E120: 0 | F120: 0 | G120: 0 | H120: 0 | I120: 0 | J120: 0 | K120: 0 | L120: 0 | M120: 0 | N120: 0 | O120: 0 | P120: 0 | Q120: 0 | R120: 0 | S120: 0 | T120: 0 | U120: 0
C121: AUSTRAL | D121: 120 | E121: 6 | F121: 252 | G121: 0 | H121: 32 | I121: 6 | J121: 331 | K121: 10 | L121: 0 | M121: 0 | N121: 0 | O121: 0 | P121: 214 | Q121: 27 | R121: 829 | S121: 96 | T121: 1,923 | U121: 3,441
C122: TOTAL | D122: =SUM(D117:D121) -> 38,879 | E122: =SUM(E117:E121) -> 7,120 | F122: 170,348 | G122: 82,666 | H122: 34,711 | I122: 10,982 | J122: 179,221 | K122: 55,327 | L122: 10,043 | M122: 1,362 | N122: 25,245 | O122: 21,212 | P122: 1,138 | Q122: 735 | R122: 3,941 | S122: 12,338 | T122: =SUM(D122:S122) -> 655,268 | U122: 1,205,566
C124: 2025 | D124: CANTIDAD CONTENEDORES JULIO - SEPTIEMBRE 2025 x MACROZONA
C125: MCZ | D125: IMPORTACIÓN | H125: EXPORTACIÓN | L125: TRÁNSITO | P125: CABOTAJE | T125: TOTAL BOXES | U125: TOTAL TEUS
D126: 20 pies | F126: 40 pies | H126: 20 pies | J126: 40 pies | L126: 20 pies | N126: 40 pies | P126: 20 pies | R126: 40 pies
D127: full | E127: empty | F127: full | G127: empty | H127: full | I127: empty | J127: full | K127: empty | L127: full | M127: empty | N127: full | O127: empty | P127: full | Q127: empty | R127: full | S127: empty
C128: NORTE | T128: =SUM(D128:S128) -> 0 | U128: =D128+E128+H128+I128+L128+M128+P128+Q128+(2*(F128+G128+J128+K128+N128+O128+R128+S128)) -> 0
C129: CENTRO | T129: =SUM(D129:S129) -> 0 | U129: =D129+E129+H129+I129+L129+M129+P129+Q129+(2*(F129+G129+J129+K129+N129+O129+R129+S129)) -> 0
C130: CENTRO SUR | T130: 0 | U130: 0
C131: SUR | T131: 0 | U131: 0
C132: AUSTRAL | T132: 0 | U132: 0
C133: TOTAL | D133: =SUM(D128:D132) -> 0 | E133: =SUM(E128:E132) -> 0 | F133: 0 | G133: 0 | H133: 0 | I133: 0 | J133: 0 | K133: 0 | L133: 0 | M133: 0 | N133: 0 | O133: 0 | P133: 0 | Q133: 0 | R133: 0 | S133: 0 | T133: =SUM(D133:S133) -> 0 | U133: 0
C135: DIFERENCIA JULIO - SEPTIEMBRE 2025 vs 2024 (UNIDADES)
C136: MCZ | D136: IMPORTACIÓN | H136: EXPORTACIÓN | L136: TRÁNSITO | P136: CABOTAJE | T136: TOTAL BOXES | U136: TOTAL TEUS
D137: 20 pies | F137: 40 pies | H137: 20 pies | J137: 40 pies | L137: 20 pies | N137: 40 pies | P137: 20 pies | R137: 40 pies
D138: full | E138: empty | F138: full | G138: empty | H138: full | I138: empty | J138: full | K138: empty | L138: full | M138: empty | N138: full | O138: empty | P138: full | Q138: empty | R138: full | S138: empty
C139: NORTE | D139: =D128-D117 -> -2,645 | E139: =E128-E117 -> -6,224 | F139: -16,849 | G139: -6,605 | H139: -8,585 | I139: -1,027 | J139: -10,434 | K139: -16,393 | L139: -8,142 | M139: 0 | N139: -20,430 | O139: 0 | P139: 0 | Q139: 0 | R139: 0 | S139: 0 | T139: =SUM(D139:S139) -> -97,334 | U139: =D139+E139+H139+I139+L139+M139+P139+Q139+(2*(F139+G139+J139+K139+N139+O139+R139+S139)) -> -168,045
C140: CENTRO | D140: =D129-D118 -> -32,468 | E140: -281 | F140: -146,252 | G140: -36,679 | H140: -21,563 | I140: -8,999 | J140: -96,727 | K140: -38,576 | L140: -1,763 | M140: -121 | N140: -3,993 | O140: -932 | P140: -799 | Q140: -700 | R140: -2,944 | S140: -12,230 | T140: =SUM(D140:S140) -> -405,027 | U140: =D140+E140+H140+I140+L140+M140+P140+Q140+(2*(F140+G140+J140+K140+N140+O140+R140+S140)) -> -743,360
C141: CENTRO SUR | D141: -3,646 | E141: -609 | F141: -6,995 | G141: -39,382 | H141: -4,531 | I141: -950 | J141: -71,729 | K141: -348 | L141: -138 | M141: -1,241 | N141: -822 | O141: -20,280 | P141: -125 | Q141: -8 | R141: -168 | S141: -12 | T141: -150,984 | U141: -290,720
C142: SUR | D142: 0 | E142: 0 | F142: 0 | G142: 0 | H142: 0 | I142: 0 | J142: 0 | K142: 0 | L142: 0 | M142: 0 | N142: 0 | O142: 0 | P142: 0 | Q142: 0 | R142: 0 | S142: 0 | T142: 0 | U142: 0
C143: AUSTRAL | D143: -120 | E143: -6 | F143: -252 | G143: 0 | H143: -32 | I143: -6 | J143: -331 | K143: -10 | L143: 0 | M143: 0 | N143: 0 | O143: 0 | P143: -214 | Q143: -27 | R143: -829 | S143: -96 | T143: -1,923 | U143: -3,441
C144: TOTAL | D144: =D133-D122 -> -38,879 | E144: -7,120 | F144: -170,348 | G144: -82,666 | H144: -34,711 | I144: -10,982 | J144: -179,221 | K144: -55,327 | L144: -10,043 | M144: -1,362 | N144: -25,245 | O144: -21,212 | P144: -1,138 | Q144: -735 | R144: -3,941 | S144: -12,338 | T144: =T133-T122 -> -655,268 | U144: -1,205,566
C146: DIFERENCIA JULIO - SEPTIEMBRE 2025 vs 2024 (PORCENTAJES)
C147: MCZ | D147: IMPORTACIÓN | H147: EXPORTACIÓN | L147: TRÁNSITO | P147: CABOTAJE | T147: TOTAL BOXES | U147: TOTAL TEUS
D148: 20 pies | F148: 40 pies | H148: 20 pies | J148: 40 pies | L148: 20 pies | N148: 40 pies | P148: 20 pies | R148: 40 pies
D149: full | E149: empty | F149: full | G149: empty | H149: full | I149: empty | J149: full | K149: empty | L149: full | M149: empty | N149: full | O149: empty | P149: full | Q149: empty | R149: full | S149: empty
C150: NORTE | D150: =+D139/D117 -> -100.0% | E150: =+E139/E117 -> -100.0% | F150: -100.0% | G150: -100.0% | H150: -100.0% | I150: -100.0% | J150: -100.0% | K150: -100.0% | L150: -100.0% | N150: -100.0% | T150: =+T139/T117 -> -100.0% | U150: =+U139/U117 -> -100.0%
C151: CENTRO | D151: =+D140/D118 -> -100.0% | E151: -100.0% | F151: -100.0% | G151: -100.0% | H151: -100.0% | I151: -100.0% | J151: -100.0% | K151: -100.0% | L151: -100.0% | M151: -100.0% | N151: -100.0% | O151: -100.0% | P151: -100.0% | Q151: -100.0% | R151: -100.0% | S151: -100.0% | T151: -100.0% | U151: -100.0%
C152: CENTRO SUR | D152: -100.0% | E152: -100.0% | F152: -100.0% | G152: -100.0% | H152: -100.0% | I152: -100.0% | J152: -100.0% | K152: -100.0% | L152: -100.0% | M152: -100.0% | N152: -100.0% | O152: -100.0% | P152: -100.0% | Q152: -100.0% | R152: -100.0% | S152: -100.0% | T152: -100.0% | U152: -100.0%
C153: SUR
C154: AUSTRAL | D154: =+D143/D121 -> -100.0% | F154: -100.0% | H154: -100.0% | J154: -100.0% | P154: -100.0% | Q154: -100.0% | R154: -100.0% | S154: -100.0% | T154: -100.0% | U154: -100.0%
C155: TOTAL | D155: =+D144/D122 -> -100.0% | E155: =+E144/E122 -> -100.0% | F155: -100.0% | G155: -100.0% | H155: -100.0% | I155: -100.0% | J155: -100.0% | K155: -100.0% | L155: -100.0% | M155: -100.0% | N155: -100.0% | O155: -100.0% | P155: -100.0% | Q155: -100.0% | R155: -100.0% | S155: -100.0% | T155: -100.0% | U155: -100.0%
C158: IMPO + EXPO (BOXES FULL) | H158: =+(D196+F196+H196+J196)/(+D174+F174+H174+J174) -> -100.0% | J158: INDICADORES CUARTO TRIMESTRE
C159: IMPO + EXPO (TEUs FULL) | H159: =+((D196+H196)+2*(F196+J196))/((D174+H174)+2*(F174+J174)) -> -100.0%
C160: IMPO + EXPO + TRANS + CABOT (BOXES EMPTY) | H160: =+(E196+G196+I196+K196+M196+O196+Q196+S196)/(+E174+G174+I174+K174+M174+O174+Q174+S174) -> -100.0%
C161: TRANSITO (BOXES) | H161: =+(L196+M196+N196+O196)/+(L174+M174+N174+O174) -> -100.0% | J161: PORCENTAJES DE VARIACIÓN 2025 VS. 2024
C162: CABOTAJE (BOXES) | H162: =+(P196+Q196+R196+S196)/(P174+Q174+R174+S174) -> -100.0%
C163: TEUs TOTALES | H163: =+U196/U174 -> -100.0%
C165: 2024 | D165: CANTIDAD CONTENEDORES OCTUBRE - DICIEMBRE 2024 x MACROZONA
C166: MCZ | D166: IMPORTACIÓN | H166: EXPORTACIÓN | L166: TRÁNSITO | P166: CABOTAJE | T166: TOTAL BOXES | U166: TOTAL TEUS
D167: 20 pies | F167: 40 pies | H167: 20 pies | J167: 40 pies | L167: 20 pies | N167: 40 pies | P167: 20 pies | R167: 40 pies
D168: full | E168: empty | F168: full | G168: empty | H168: full | I168: empty | J168: full | K168: empty | L168: full | M168: empty | N168: full | O168: empty | P168: full | Q168: empty | R168: full | S168: empty
C169: NORTE | D169: 3,285 | E169: 9,366 | F169: 17,705 | G169: 7,415 | H169: 9,087 | I169: 952 | J169: 11,310 | K169: 13,761 | L169: 7,992 | M169: 0 | N169: 19,263 | O169: 0 | P169: 0 | Q169: 0 | R169: 0 | S169: 0 | T169: =SUM(D169:S169) -> 100,136 | U169: =D169+E169+H169+I169+L169+M169+P169+Q169+(2*(F169+G169+J169+K169+N169+O169+R169+S169)) -> 169,590
C170: CENTRO | D170: 34,595 | E170: 291 | F170: 120,766 | G170: 27,499 | H170: 23,593 | I170: 4,903 | J170: 93,698 | K170: 32,437 | L170: 1,778 | M170: 223 | N170: 6,669 | O170: 307 | P170: 834 | Q170: 1,278 | R170: 2,789 | S170: 17,372 | T170: =SUM(D170:S170) -> 369,032 | U170: =D170+E170+H170+I170+L170+M170+P170+Q170+(2*(F170+G170+J170+K170+N170+O170+R170+S170)) -> 670,569
C171: CENTRO SUR | D171: 4,324 | E171: 4,342 | F171: 4,538 | G171: 47,548 | H171: 4,703 | I171: 25,532 | J171: 49,891 | K171: 675 | L171: 97 | M171: 1,139 | N171: 705 | O171: 30,305 | P171: 171 | Q171: 0 | R171: 259 | S171: 0 | T171: 174,229 | U171: 308,150
C172: SUR | D172: 0 | E172: 0 | F172: 0 | G172: 0 | H172: 0 | I172: 0 | J172: 0 | K172: 0 | L172: 0 | M172: 0 | N172: 0 | O172: 0 | P172: 0 | Q172: 0 | R172: 0 | S172: 0 | T172: 0 | U172: 0
C173: AUSTRAL | D173: 206 | E173: 18 | F173: 379 | G173: 19 | H173: 12 | I173: 0 | J173: 291 | K173: 0 | L173: 0 | M173: 0 | N173: 0 | O173: 0 | P173: 233 | Q173: 43 | R173: 950 | S173: 63 | T173: 2,214 | U173: 3,916
C174: TOTAL | D174: =SUM(D169:D173) -> 42,410 | E174: =SUM(E169:E173) -> 14,017 | F174: 143,388 | G174: 82,481 | H174: 37,395 | I174: 31,387 | J174: 155,190 | K174: 46,873 | L174: 9,867 | M174: 1,362 | N174: 26,637 | O174: 30,612 | P174: 1,238 | Q174: 1,321 | R174: 3,998 | S174: 17,435 | T174: =SUM(D174:S174) -> 645,611 | U174: 1,152,225
C176: 2025 | D176: CANTIDAD CONTENEDORES OCTUBRE - DICIEMBRE 2025 x MACROZONA
C177: MCZ | D177: IMPORTACIÓN | H177: EXPORTACIÓN | L177: TRÁNSITO | P177: CABOTAJE | T177: TOTAL BOXES | U177: TOTAL TEUS
D178: 20 pies | F178: 40 pies | H178: 20 pies | J178: 40 pies | L178: 20 pies | N178: 40 pies | P178: 20 pies | R178: 40 pies
D179: full | E179: empty | F179: full | G179: empty | H179: full | I179: empty | J179: full | K179: empty | L179: full | M179: empty | N179: full | O179: empty | P179: full | Q179: empty | R179: full | S179: empty
C180: NORTE | T180: =SUM(D180:S180) -> 0 | U180: =D180+E180+H180+I180+L180+M180+P180+Q180+(2*(F180+G180+J180+K180+N180+O180+R180+S180)) -> 0
C181: CENTRO | T181: =SUM(D181:S181) -> 0 | U181: =D181+E181+H181+I181+L181+M181+P181+Q181+(2*(F181+G181+J181+K181+N181+O181+R181+S181)) -> 0
C182: CENTRO SUR | T182: 0 | U182: 0
C183: SUR | T183: 0 | U183: 0
C184: AUSTRAL | T184: 0 | U184: 0
C185: TOTAL | D185: =SUM(D180:D184) -> 0 | E185: =SUM(E180:E184) -> 0 | F185: 0 | G185: 0 | H185: 0 | I185: 0 | J185: 0 | K185: 0 | L185: 0 | M185: 0 | N185: 0 | O185: 0 | P185: 0 | Q185: 0 | R185: 0 | S185: 0 | T185: =SUM(D185:S185) -> 0 | U185: 0
C187: DIFERENCIA OCTUBRE - DICIEMBRE 2025 vs 2024 (UNIDADES)
C188: MCZ | D188: IMPORTACIÓN | H188: EXPORTACIÓN | L188: TRÁNSITO | P188: CABOTAJE | T188: TOTAL BOXES | U188: TOTAL TEUS
D189: 20 pies | F189: 40 pies | H189: 20 pies | J189: 40 pies | L189: 20 pies | N189: 40 pies | P189: 20 pies | R189: 40 pies
D190: full | E190: empty | F190: full | G190: empty | H190: full | I190: empty | J190: full | K190: empty | L190: full | M190: empty | N190: full | O190: empty | P190: full | Q190: empty | R190: full | S190: empty
C191: NORTE | D191: =D180-D169 -> -3,285 | E191: =E180-E169 -> -9,366 | F191: -17,705 | G191: -7,415 | H191: -9,087 | I191: -952 | J191: -11,310 | K191: -13,761 | L191: -7,992 | M191: 0 | N191: -19,263 | O191: 0 | P191: 0 | Q191: 0 | R191: 0 | S191: 0 | T191: =SUM(D191:S191) -> -100,136 | U191: =D191+E191+H191+I191+L191+M191+P191+Q191+(2*(F191+G191+J191+K191+N191+O191+R191+S191)) -> -169,590
C192: CENTRO | D192: =D181-D170 -> -34,595 | E192: -291 | F192: -120,766 | G192: -27,499 | H192: -23,593 | I192: -4,903 | J192: -93,698 | K192: -32,437 | L192: -1,778 | M192: -223 | N192: -6,669 | O192: -307 | P192: -834 | Q192: -1,278 | R192: -2,789 | S192: -17,372 | T192: =SUM(D192:S192) -> -369,032 | U192: =D192+E192+H192+I192+L192+M192+P192+Q192+(2*(F192+G192+J192+K192+N192+O192+R192+S192)) -> -670,569
C193: CENTRO SUR | D193: -4,324 | E193: -4,342 | F193: -4,538 | G193: -47,548 | H193: -4,703 | I193: -25,532 | J193: -49,891 | K193: -675 | L193: -97 | M193: -1,139 | N193: -705 | O193: -30,305 | P193: -171 | Q193: 0 | R193: -259 | S193: 0 | T193: -174,229 | U193: -308,150
C194: SUR | D194: 0 | E194: 0 | F194: 0 | G194: 0 | H194: 0 | I194: 0 | J194: 0 | K194: 0 | L194: 0 | M194: 0 | N194: 0 | O194: 0 | P194: 0 | Q194: 0 | R194: 0 | S194: 0 | T194: 0 | U194: 0
C195: AUSTRAL | D195: -206 | E195: -18 | F195: -379 | G195: -19 | H195: -12 | I195: 0 | J195: -291 | K195: 0 | L195: 0 | M195: 0 | N195: 0 | O195: 0 | P195: -233 | Q195: -43 | R195: -950 | S195: -63 | T195: -2,214 | U195: -3,916
C196: TOTAL | D196: =D185-D174 -> -42,410 | E196: -14,017 | F196: -143,388 | G196: -82,481 | H196: -37,395 | I196: -31,387 | J196: -155,190 | K196: -46,873 | L196: -9,867 | M196: -1,362 | N196: -26,637 | O196: -30,612 | P196: -1,238 | Q196: -1,321 | R196: -3,998 | S196: -17,435 | T196: =T185-T174 -> -645,611 | U196: -1,152,225
C198: DIFERENCIA OCTUBRE - DICIEMBRE 2025 vs 2024 (PORCENTAJES)
C199: MCZ | D199: IMPORTACIÓN | H199: EXPORTACIÓN | L199: TRÁNSITO | P199: CABOTAJE | T199: TOTAL BOXES | U199: TOTAL TEUS
D200: 20 pies | F200: 40 pies | H200: 20 pies | J200: 40 pies | L200: 20 pies | N200: 40 pies | P200: 20 pies | R200: 40 pies
D201: full | E201: empty | F201: full | G201: empty | H201: full | I201: empty | J201: full | K201: empty | L201: full | M201: empty | N201: full | O201: empty | P201: full | Q201: empty | R201: full | S201: empty
C202: NORTE | D202: =+D191/D169 -> -100.0% | E202: =+E191/E169 -> -100.0% | F202: -100.0% | G202: -100.0% | H202: -100.0% | I202: -100.0% | J202: -100.0% | K202: -100.0% | L202: -100.0% | N202: =+N191/N169 -> -100.0% | T202: =+T191/T169 -> -100.0% | U202: =+U191/U169 -> -100.0%
C203: CENTRO | D203: =+D192/D170 -> -100.0% | E203: -100.0% | F203: -100.0% | G203: -100.0% | H203: -100.0% | I203: -100.0% | J203: -100.0% | K203: -100.0% | L203: -100.0% | M203: -100.0% | N203: -100.0% | O203: -100.0% | P203: -100.0% | Q203: -100.0% | R203: -100.0% | S203: -100.0% | T203: -100.0% | U203: -100.0%
C204: CENTRO SUR | D204: -100.0% | E204: -100.0% | F204: -100.0% | G204: -100.0% | H204: -100.0% | I204: -100.0% | J204: -100.0% | K204: -100.0% | L204: -100.0% | M204: -100.0% | N204: -100.0% | O204: -100.0% | P204: -100.0% | R204: -100.0% | T204: -100.0% | U204: -100.0%
C205: SUR
C206: AUSTRAL | D206: =+D195/D173 -> -100.0% | F206: =+F195/F173 -> -100.0% | G206: -100.0% | H206: -100.0% | J206: =+J195/J173 -> -100.0% | P206: -100.0% | Q206: -100.0% | R206: -100.0% | S206: -100.0% | T206: -100.0% | U206: -100.0%
C207: TOTAL | D207: =+D196/D174 -> -100.0% | E207: =+E196/E174 -> -100.0% | F207: -100.0% | G207: -100.0% | H207: -100.0% | I207: -100.0% | J207: -100.0% | K207: -100.0% | L207: -100.0% | M207: -100.0% | N207: -100.0% | O207: -100.0% | P207: -100.0% | Q207: -100.0% | R207: -100.0% | S207: -100.0% | T207: -100.0% | U207: -100.0%
C210: IMPO + EXPO (BOXES FULL) | H210: =+(D248+F248+H248+J248)/(+D226+F226+H226+J226) -> 7.3% | J210: INDICADORES ENERO - JUNIO
C211: IMPO + EXPO (TEUs FULL) | H211: =+((D248+H248)+2*(F248+J248))/((D226+H226)+2*(F226+J226)) -> 8.4%
C212: IMPO + EXPO + TRANS + CABOT (BOXES EMPTY) | H212: =+(E248+G248+I248+K248+M248+O248+Q248+S248)/+(E226+G226+I226+K226+M226+O226+Q226+S226) -> 19.4%
C213: TRANSITO (BOXES) | H213: =+(L248+M248+N248+O248)/+(L226+M226+N226+O226) -> 31.3% | J213: PORCENTAJES DE VARIACIÓN 2025 VS. 2024
C214: CABOTAJE (BOXES) | H214: =+(P248+Q248+R248+S248)/(P226+Q226+R226+S226) -> -16.8%
C215: TEUs TOTALES | H215: =+U248/U226 -> 12.8%
C217: 2024 | D217: CANTIDAD CONTENEDORES ENERO - JUNIO 2024 x MACROZONA
C218: MCZ | D218: IMPORTACIÓN | H218: EXPORTACIÓN | L218: TRÁNSITO | P218: CABOTAJE | T218: TOTAL BOXES | U218: TOTAL TEUS
D219: 20 pies | F219: 40 pies | H219: 20 pies | J219: 40 pies | L219: 20 pies | N219: 40 pies | P219: 20 pies | R219: 40 pies
D220: full | E220: empty | F220: full | G220: empty | H220: full | I220: empty | J220: full | K220: empty | L220: full | M220: empty | N220: full | O220: empty | P220: full | Q220: empty | R220: full | S220: empty
C221: NORTE | D221: =D13+D65 -> 8,664 | E221: =E13+E65 -> 15,910 | F221: 40,147 | G221: 13,239 | H221: 19,306 | I221: 4,933 | J221: 23,023 | K221: 37,060 | L221: 17,295 | M221: 0 | N221: 35,766 | O221: 0 | P221: 0 | Q221: 0 | R221: 0 | S221: 0 | T221: =T13+T65+T117+T169 -> 412,813 | U221: 702,213
C222: CENTRO | D222: =D14+D66 -> 68,458 | E222: 824 | F222: 198,865 | G222: 48,879 | H222: 40,959 | I222: 24,549 | J222: 173,187 | K222: 67,707 | L222: 2,616 | M222: 189 | N222: 8,970 | O222: 6,769 | P222: 2,719 | Q222: 1,367 | R222: 7,649 | S222: 24,469 | T222: =T14+T66+T118+T170 -> 1,452,235 | U222: 2,628,600
C223: CENTRO SUR | D223: =D15+D67 -> 8,429 | E223: 801 | F223: 15,105 | G223: 94,449 | H223: 7,797 | I223: 2,158 | J223: 141,854 | K223: 1,670 | L223: 87 | M223: 2,059 | N223: 921 | O223: 34,335 | P223: 329 | Q223: 404 | R223: 356 | S223: 516 | T223: 636,483 | U223: 1,199,346
C224: SUR | D224: =D16+D68 -> 0 | E224: 0 | F224: 0 | G224: 0 | H224: 0 | I224: 0 | J224: 0 | K224: 0 | L224: 0 | M224: 0 | N224: 0 | O224: 0 | P224: 0 | Q224: 0 | R224: 0 | S224: 0 | T224: 0 | U224: 0
C225: AUSTRAL | D225: =D17+D69 -> 311 | E225: 1 | F225: 693 | G225: 0 | H225: 374 | I225: 0 | J225: 705 | K225: 0 | L225: 0 | M225: 0 | N225: 0 | O225: 0 | P225: 585 | Q225: 76 | R225: 1,610 | S225: 157 | T225: 8,649 | U225: 15,034
C226: TOTAL | D226: =SUM(D221:D225) -> 85,862 | E226: =SUM(E221:E225) -> 17,536 | F226: 254,810 | G226: 156,567 | H226: 68,436 | I226: 31,640 | J226: 338,769 | K226: 106,437 | L226: 19,998 | M226: 2,248 | N226: 45,657 | O226: 41,104 | P226: 3,633 | Q226: 1,847 | R226: 9,615 | S226: 25,142 | T226: =SUM(D226:S226) -> 1,209,301 | U226: =D226+E226+H226+I226+L226+M226+P226+Q226+(2*(F226+G226+J226+K226+N226+O226+R226+S226)) -> 2,187,402
... 30 more rows

Sheet 2024 VS 2023
C2: IMPO + EXPO (BOXES FULL) | H2: =+(D40+F40+H40+J40)/(+D18+F18+H18+J18) -> 25.4% | J2: INDICADORES PRIMER TRIMESTRE
C3: IMPO + EXPO (TEUs FULL) | H3: =+((D40+H40)+2*(F40+J40))/((D18+H18)+2*(F18+J18)) -> 26.0%
C4: IMPO + EXPO + TRANS + CABOT (BOXES EMPTY) | H4: =+(E40+G40+I40+K40+M40++O40+Q40+S40)/(+E18+G18+I18+K18+M18+O18+Q18+S18) -> 16.2%
C5: TRANSITO (BOXES) | H5: =+(L40+M40+N40+O40)/+(L18+M18+N18+O18) -> 4.5% | J5: PORCENTAJES DE VARIACIÓN 2024 VS. 2023
C6: CABOTAJE (BOXES) | H6: =+(P40+Q40+R40+S40)/(P18+Q18+R18+S18) -> 61.4%
C7: TEUs TOTALES | H7: =+U40/U18 -> 21.4%
C9: 2023 | D9: CANTIDAD CONTENEDORES ENERO - MARZO 2023 x MACROZONA
C10: MCZ | D10: IMPORTACIÓN | H10: EXPORTACIÓN | L10: TRÁNSITO | P10: CABOTAJE | T10: TOTAL BOXES | U10: TOTAL TEUS
D11: 20 pies | F11: 40 pies | H11: 20 pies | J11: 40 pies | L11: 20 pies | N11: 40 pies | P11: 20 pies | R11: 40 pies
D12: full | E12: empty | F12: full | G12: empty | H12: full | I12: empty | J12: full | K12: empty | L12: full | M12: empty | N12: full | O12: empty | P12: full | Q12: empty | R12: full | S12: empty
C13: NORTE | D13: 3,511 | E13: 7,296 | F13: 16,002 | G13: 6,136 | H13: 8,235 | I13: 2,632 | J13: 10,236 | K13: 21,179 | L13: 8,653 | M13: 0 | N13: 16,253 | O13: 0 | P13: 0 | Q13: 0 | R13: 0 | S13: 0 | T13: =SUM(D13:S13) -> 100,133 | U13: =D13+E13+H13+I13+L13+M13+P13+Q13+(2*(F13+G13+J13+K13+N13+O13+R13+S13)) -> 169,939
C14: CENTRO | D14: 27,650 | E14: 2,683 | F14: 81,327 | G14: 19,658 | H14: 18,093 | I14: 11,792 | J14: 73,177 | K14: 36,206 | L14: 2,144 | M14: 515 | N14: 7,212 | O14: 785 | P14: 1,383 | Q14: 247 | R14: 3,636 | S14: 6,157 | T14: =SUM(D14:S14) -> 292,665 | U14: =D14+E14+H14+I14+L14+M14+P14+Q14+(2*(F14+G14+J14+K14+N14+O14+R14+S14)) -> 520,823
C15: CENTRO SUR | D15: 4,375 | E15: 1,633 | F15: 5,693 | G15: 42,355 | H15: 4,762 | I15: 2,287 | J15: 61,009 | K15: 1,334 | L15: 103 | M15: 807 | N15: 202 | O15: 12,349 | P15: 268 | Q15: 289 | R15: 268 | S15: 585 | T15: 138,319 | U15: 262,114
C16: SUR | D16: 0 | E16: 0 | F16: 0 | G16: 0 | H16: 0 | I16: 0 | J16: 0 | K16: 0 | L16: 0 | M16: 0 | N16: 0 | O16: 0 | P16: 0 | Q16: 0 | R16: 0 | S16: 0 | T16: 0 | U16: 0
C17: AUSTRAL | D17: 218 | E17: 1 | F17: 525 | G17: 3 | H17: 8 | I17: 0 | J17: 414 | K17: 0 | L17: 0 | M17: 0 | N17: 0 | O17: 0 | P17: 434 | Q17: 49 | R17: 1,206 | S17: 126 | T17: 2,984 | U17: 5,258
C18: TOTAL | D18: =SUM(D13:D17) -> 35,754 | E18: =SUM(E13:E17) -> 11,613 | F18: 103,547 | G18: 68,152 | H18: 31,098 | I18: 16,711 | J18: 144,836 | K18: 58,719 | L18: 10,900 | M18: 1,322 | N18: 23,667 | O18: 13,134 | P18: 2,085 | Q18: 585 | R18: 5,110 | S18: 6,868 | T18: =SUM(D18:S18) -> 534,101 | U18: 958,134
C20: 2024 | D20: CANTIDAD CONTENEDORES ENERO - MARZO 2024 x MACROZONA
C21: MCZ | D21: IMPORTACIÓN | H21: EXPORTACIÓN | L21: TRÁNSITO | P21: CABOTAJE | T21: TOTAL BOXES | U21: TOTAL TEUS
D22: 20 pies | F22: 40 pies | H22: 20 pies | J22: 40 pies | L22: 20 pies | N22: 40 pies | P22: 20 pies | R22: 40 pies
D23: full | E23: empty | F23: full | G23: empty | H23: full | I23: empty | J23: full | K23: empty | L23: full | M23: empty | N23: full | O23: empty | P23: full | Q23: empty | R23: full | S23: empty
C24: NORTE | D24: 5,224 | E24: 7,080 | F24: 19,807 | G24: 6,214 | H24: 9,450 | I24: 2,895 | J24: 12,264 | K24: 19,896 | L24: 8,812 | M24: 0 | N24: 17,632 | O24: 0 | P24: 0 | Q24: 0 | R24: 0 | S24: 0 | T24: =SUM(D24:S24) -> 109,274 | U24: =D24+E24+H24+I24+L24+M24+P24+Q24+(2*(F24+G24+J24+K24+N24+O24+R24+S24)) -> 185,087
C25: CENTRO | D25: 35,580 | E25: 546 | F25: 102,056 | G25: 21,730 | H25: 21,145 | I25: 11,301 | J25: 90,243 | K25: 34,253 | L25: 1,556 | M25: 32 | N25: 4,377 | O25: 3,806 | P25: 1,613 | Q25: 583 | R25: 4,294 | S25: 15,027 | T25: =SUM(D25:S25) -> 348,142 | U25: =D25+E25+H25+I25+L25+M25+P25+Q25+(2*(F25+G25+J25+K25+N25+O25+R25+S25)) -> 623,928
C26: CENTRO SUR | D26: 4,927 | E26: 592 | F26: 8,767 | G26: 63,542 | H26: 3,768 | I26: 1,362 | J26: 80,888 | K26: 1,403 | L26: 30 | M26: 1,018 | N26: 191 | O26: 13,778 | P26: 186 | Q26: 248 | R26: 130 | S26: 313 | T26: 181,143 | U26: 350,155
C27: SUR | D27: 0 | E27: 0 | F27: 0 | G27: 0 | H27: 0 | I27: 0 | J27: 0 | K27: 0 | L27: 0 | M27: 0 | N27: 0 | O27: 0 | P27: 0 | Q27: 0 | R27: 0 | S27: 0 | T27: 0 | U27: 0
C28: AUSTRAL | D28: 154 | E28: 0 | F28: 374 | G28: 0 | H28: 366 | I28: 0 | J28: 299 | K28: 0 | L28: 0 | M28: 0 | N28: 0 | O28: 0 | P28: 341 | Q28: 41 | R28: 794 | S28: 70 | T28: 2,439 | U28: 3,976
C29: TOTAL | D29: =SUM(D24:D28) -> 45,885 | E29: =SUM(E24:E28) -> 8,218 | F29: 131,004 | G29: 91,486 | H29: 34,729 | I29: 15,558 | J29: 183,694 | K29: 55,552 | L29: 10,398 | M29: 1,050 | N29: 22,200 | O29: 17,584 | P29: 2,140 | Q29: 872 | R29: 5,218 | S29: 15,410 | T29: =SUM(D29:S29) -> 640,998 | U29: 1,163,146
C31: DIFERENCIA ENERO - MARZO 2024 vs 2023 (UNIDADES)
C32: MCZ | D32: IMPORTACIÓN | H32: EXPORTACIÓN | L32: TRÁNSITO | P32: CABOTAJE | T32: TOTAL BOXES | U32: TOTAL TEUS
D33: 20 pies | F33: 40 pies | H33: 20 pies | J33: 40 pies | L33: 20 pies | N33: 40 pies | P33: 20 pies | R33: 40 pies
D34: full | E34: empty | F34: full | G34: empty | H34: full | I34: empty | J34: full | K34: empty | L34: full | M34: empty | N34: full | O34: empty | P34: full | Q34: empty | R34: full | S34: empty
C35: NORTE | D35: =D24-D13 -> 1,713 | E35: =E24-E13 -> -216 | F35: 3,805 | G35: 78 | H35: 1,215 | I35: 263 | J35: 2,028 | K35: -1,283 | L35: 159 | M35: 0 | N35: 1,379 | O35: 0 | P35: 0 | Q35: 0 | R35: 0 | S35: 0 | T35: =SUM(D35:S35) -> 9,141 | U35: =D35+E35+H35+I35+L35+M35+P35+Q35+(2*(F35+G35+J35+K35+N35+O35+R35+S35)) -> 15,148
C36: CENTRO | D36: =D25-D14 -> 7,930 | E36: -2,137 | F36: 20,729 | G36: 2,072 | H36: 3,052 | I36: -491 | J36: 17,066 | K36: -1,953 | L36: -588 | M36: -483 | N36: -2,835 | O36: 3,021 | P36: 230 | Q36: 336 | R36: 658 | S36: 8,870 | T36: =SUM(D36:S36) -> 55,477 | U36: =D36+E36+H36+I36+L36+M36+P36+Q36+(2*(F36+G36+J36+K36+N36+O36+R36+S36)) -> 103,105
C37: CENTRO SUR | D37: 552 | E37: -1,041 | F37: 3,074 | G37: 21,187 | H37: -994 | I37: -925 | J37: 19,879 | K37: 69 | L37: -73 | M37: 211 | N37: -11 | O37: 1,429 | P37: -82 | Q37: -41 | R37: -138 | S37: -272 | T37: 42,824 | U37: 88,041
C38: SUR | D38: 0 | E38: 0 | F38: 0 | G38: 0 | H38: 0 | I38: 0 | J38: 0 | K38: 0 | L38: 0 | M38: 0 | N38: 0 | O38: 0 | P38: 0 | Q38: 0 | R38: 0 | S38: 0 | T38: 0 | U38: 0
C39: AUSTRAL | D39: -64 | E39: -1 | F39: -151 | G39: -3 | H39: 358 | I39: 0 | J39: -115 | K39: 0 | L39: 0 | M39: 0 | N39: 0 | O39: 0 | P39: -93 | Q39: -8 | R39: -412 | S39: -56 | T39: -545 | U39: -1,282
C40: TOTAL | D40: =D29-D18 -> 10,131 | E40: -3,395 | F40: 27,457 | G40: 23,334 | H40: 3,631 | I40: -1,153 | J40: 38,858 | K40: -3,167 | L40: -502 | M40: -272 | N40: -1,467 | O40: 4,450 | P40: 55 | Q40: 287 | R40: 108 | S40: 8,542 | T40: =T29-T18 -> 106,897 | U40: 205,012
C42: DIFERENCIA ENERO - MARZO 2024 vs 2023 (PORCENTAJES)
C43: MCZ | D43: IMPORTACIÓN | H43: EXPORTACIÓN | L43: TRÁNSITO | P43: CABOTAJE | T43: TOTAL BOXES | U43: TOTAL TEUS
D44: 20 pies | F44: 40 pies | H44: 20 pies | J44: 40 pies | L44: 20 pies | N44: 40 pies | P44: 20 pies | R44: 40 pies
D45: full | E45: empty | F45: full | G45: empty | H45: full | I45: empty | J45: full | K45: empty | L45: full | M45: empty | N45: full | O45: empty | P45: full | Q45: empty | R45: full | S45: empty
C46: NORTE | D46: =+D35/D13 -> 48.8% | E46: =+E35/E13 -> -3.0% | F46: 23.8% | G46: 1.3% | H46: 14.8% | I46: 10.0% | J46: 19.8% | K46: -6.1% | L46: 1.8% | N46: 8.5% | T46: =+T35/T13 -> 9.1% | U46: =+U35/U13 -> 8.9%
C47: CENTRO | D47: =+D36/D14 -> 28.7% | E47: -79.6% | F47: 25.5% | G47: 10.5% | H47: 16.9% | I47: -4.2% | J47: 23.3% | K47: -5.4% | L47: -27.4% | M47: -93.8% | N47: -39.3% | O47: 384.8% | P47: 16.6% | Q47: 136.0% | R47: 18.1% | S47: 144.1% | T47: 19.0% | U47: 19.8%
C48: CENTRO SUR | D48: 12.6% | E48: -63.7% | F48: 54.0% | G48: 50.0% | H48: -20.9% | I48: -40.4% | J48: 32.6% | K48: 5.2% | L48: -70.9% | M48: 26.1% | N48: -5.4% | O48: 11.6% | P48: -30.6% | Q48: -14.2% | R48: -51.5% | S48: -46.5% | T48: 31.0% | U48: 33.6%
C49: SUR
C50: AUSTRAL | D50: =+D39/D17 -> -29.4% | E50: -100.0% | F50: -28.8% | G50: -100.0% | H50: 4475.0% | J50: -27.8% | P50: -21.4% | Q50: -16.3% | R50: -34.2% | S50: -44.4% | T50: -18.3% | U50: -24.4%
C51: TOTAL | D51: =+D40/D18 -> 28.3% | E51: -29.2% | F51: 26.5% | G51: 34.2% | H51: 11.7% | I51: -6.9% | J51: 26.8% | K51: -5.4% | L51: -4.6% | M51: -20.6% | N51: -6.2% | O51: 33.9% | P51: 2.6% | Q51: 49.1% | R51: 2.1% | S51: 124.4% | T51: =+T40/T18 -> 20.0% | U51: =+U40/U18 -> 21.4%
C54: IMPO + EXPO (BOXES FULL) | H54: =+(D92+F92+H92+J92)/(+D70+F70+H70+J70) -> 1.8% | J54: INDICADORES SEGUNDO TRIMESTRE
C55: IMPO + EXPO (TEUs FULL) | H55: =+((D92+H92)+2*(F92+J92))/((D70+H70)+2*(F70+J70)) -> 2.7%
C56: IMPO + EXPO + TRANS + CABOT (BOXES EMPTY) | H56: =+(E92+G92+I92+K92+M92+O92+Q92+S92)/(+E70+G70+I70+K70+M70+O70+Q70+S70) -> -4.6%
C57: TRANSITO (BOXES) | H57: =+(L92+M92+N92+O92)/+(L70+M70+N70+O70) -> 16.7% | J57: PORCENTAJES DE VARIACIÓN 2024 VS. 2023
C58: CABOTAJE (BOXES) | H58: =+(P92+Q92+R92+S92)/(P70+Q70+R70+S70) -> -25.0%
C59: TEUs TOTALES | H59: =+U92/U70 -> -0.8%
C61: 2023 | D61: CANTIDAD CONTENEDORES ABRIL - JUNIO 2023 x MACROZONA
C62: MCZ | D62: IMPORTACIÓN | H62: EXPORTACIÓN | L62: TRÁNSITO | P62: CABOTAJE | T62: TOTAL BOXES | U62: TOTAL TEUS
D63: 20 pies | F63: 40 pies | H63: 20 pies | J63: 40 pies | L63: 20 pies | N63: 40 pies | P63: 20 pies | R63: 40 pies
D64: full | E64: empty | F64: full | G64: empty | H64: full | I64: empty | J64: full | K64: empty | L64: full | M64: empty | N64: full | O64: empty | P64: full | Q64: empty | R64: full | S64: empty
C65: NORTE | D65: 3,894 | E65: 7,449 | F65: 19,395 | G65: 6,057 | H65: 9,326 | I65: 1,353 | J65: 10,550 | K65: 23,038 | L65: 9,018 | M65: 0 | N65: 18,706 | O65: 1 | P65: 0 | Q65: 0 | R65: 0 | S65: 0 | T65: =SUM(D65:S65) -> 108,787 | U65: =D65+E65+H65+I65+L65+M65+P65+Q65+(2*(F65+G65+J65+K65+N65+O65+R65+S65)) -> 186,534
C66: CENTRO | D66: 33,343 | E66: 1,656 | F66: 94,099 | G66: 20,726 | H66: 22,483 | I66: 10,830 | J66: 67,870 | K66: 29,297 | L66: 1,115 | M66: 287 | N66: 5,037 | O66: 662 | P66: 1,959 | Q66: 623 | R66: 5,423 | S66: 11,747 | T66: =SUM(D66:S66) -> 307,157 | U66: =D66+E66+H66+I66+L66+M66+P66+Q66+(2*(F66+G66+J66+K66+N66+O66+R66+S66)) -> 542,018
C67: CENTRO SUR | D67: 4,289 | E67: 2,034 | F67: 5,526 | G67: 48,840 | H67: 4,305 | I67: 1,400 | J67: 70,299 | K67: 4,461 | L67: 52 | M67: 936 | N67: 427 | O67: 13,249 | P67: 214 | Q67: 236 | R67: 219 | S67: 321 | T67: 156,808 | U67: 300,150
C68: SUR | D68: 0 | E68: 0 | F68: 0 | G68: 0 | H68: 0 | I68: 0 | J68: 0 | K68: 0 | L68: 0 | M68: 0 | N68: 0 | O68: 0 | P68: 0 | Q68: 0 | R68: 0 | S68: 0 | T68: 0 | U68: 0
C69: AUSTRAL | D69: 141 | E69: 0 | F69: 297 | G69: 0 | H69: 8 | I69: 0 | J69: 492 | K69: 0 | L69: 0 | M69: 0 | N69: 0 | O69: 0 | P69: 360 | Q69: 36 | R69: 844 | S69: 150 | T69: 2,328 | U69: 4,111
C70: TOTAL | D70: =SUM(D65:D69) -> 41,667 | E70: =SUM(E65:E69) -> 11,139 | F70: 119,317 | G70: 75,623 | H70: 36,122 | I70: 13,583 | J70: 149,211 | K70: 56,796 | L70: 10,185 | M70: 1,223 | N70: 24,170 | O70: 13,912 | P70: 2,533 | Q70: 895 | R70: 6,486 | S70: 12,218 | T70: =SUM(D70:S70) -> 575,080 | U70: 1,032,813
C72: 2024 | D72: CANTIDAD CONTENEDORES ABRIL - JUNIO 2024 x MACROZONA
C73: MCZ | D73: IMPORTACIÓN | H73: EXPORTACIÓN | L73: TRÁNSITO | P73: CABOTAJE | T73: TOTAL BOXES | U73: TOTAL TEUS
D74: 20 pies | F74: 40 pies | H74: 20 pies | J74: 40 pies | L74: 20 pies | N74: 40 pies | P74: 20 pies | R74: 40 pies | W74: 1
D75: full | E75: empty | F75: full | G75: empty | H75: full | I75: empty | J75: full | K75: empty | L75: full | M75: empty | N75: full | O75: empty | P75: full | Q75: empty | R75: full | S75: empty
C76: NORTE | D76: 3,440 | E76: 8,830 | F76: 20,340 | G76: 7,025 | H76: 9,856 | I76: 2,038 | J76: 10,759 | K76: 17,164 | L76: 8,483 | M76: 0 | N76: 18,134 | O76: 0 | P76: 0 | Q76: 0 | R76: 0 | S76: 0 | T76: =SUM(D76:S76) -> 106,069 | U76: =D76+E76+H76+I76+L76+M76+P76+Q76+(2*(F76+G76+J76+K76+N76+O76+R76+S76)) -> 179,491
C77: CENTRO | D77: 32,878 | E77: 278 | F77: 96,809 | G77: 27,149 | H77: 19,814 | I77: 13,248 | J77: 82,944 | K77: 33,454 | L77: 1,060 | M77: 157 | N77: 4,593 | O77: 2,963 | P77: 1,106 | Q77: 784 | R77: 3,355 | S77: 9,442 | T77: =SUM(D77:S77) -> 330,034 | U77: =D77+E77+H77+I77+L77+M77+P77+Q77+(2*(F77+G77+J77+K77+N77+O77+R77+S77)) -> 590,743
C78: CENTRO SUR | D78: 3,502 | E78: 209 | F78: 6,338 | G78: 30,907 | H78: 4,029 | I78: 796 | J78: 60,966 | K78: 267 | L78: 57 | M78: 1,041 | N78: 730 | O78: 20,557 | P78: 143 | Q78: 156 | R78: 226 | S78: 203 | T78: 130,127 | U78: 250,321
C79: SUR | D79: 0 | E79: 0 | F79: 0 | G79: 0 | H79: 0 | I79: 0 | J79: 0 | K79: 0 | L79: 0 | M79: 0 | N79: 0 | O79: 0 | P79: 0 | Q79: 0 | R79: 0 | S79: 0 | T79: 0 | U79: 0
C80: AUSTRAL | D80: 157 | E80: 1 | F80: 319 | G80: 0 | H80: 8 | I80: 0 | J80: 406 | K80: 0 | L80: 0 | M80: 0 | N80: 0 | O80: 0 | P80: 244 | Q80: 35 | R80: 816 | S80: 87 | T80: 2,073 | U80: 3,701
C81: TOTAL | D81: =SUM(D76:D80) -> 39,977 | E81: =SUM(E76:E80) -> 9,318 | F81: 123,806 | G81: 65,081 | H81: 33,707 | I81: 16,082 | J81: 155,075 | K81: 50,885 | L81: 9,600 | M81: 1,198 | N81: 23,457 | O81: 23,520 | P81: 1,493 | Q81: 975 | R81: 4,397 | S81: 9,732 | T81: =SUM(D81:S81) -> 568,303 | U81: 1,024,256
C83: DIFERENCIA ABRIL - JUNIO 2024 vs 2023 (UNIDADES)
C84: MCZ | D84: IMPORTACIÓN | H84: EXPORTACIÓN | L84: TRÁNSITO | P84: CABOTAJE | T84: TOTAL BOXES | U84: TOTAL TEUS
D85: 20 pies | F85: 40 pies | H85: 20 pies | J85: 40 pies | L85: 20 pies | N85: 40 pies | P85: 20 pies | R85: 40 pies
D86: full | E86: empty | F86: full | G86: empty | H86: full | I86: empty | J86: full | K86: empty | L86: full | M86: empty | N86: full | O86: empty | P86: full | Q86: empty | R86: full | S86: empty
C87: NORTE | D87: =D76-D65 -> -454 | E87: =E76-E65 -> 1,381 | F87: 945 | G87: 968 | H87: 530 | I87: 685 | J87: 209 | K87: -5,874 | L87: -535 | M87: 0 | N87: -572 | O87: -1 | P87: 0 | Q87: 0 | R87: 0 | S87: 0 | T87: =SUM(D87:S87) -> -2,718 | U87: =D87+E87+H87+I87+L87+M87+P87+Q87+(2*(F87+G87+J87+K87+N87+O87+R87+S87)) -> -7,043
C88: CENTRO | D88: =D77-D66 -> -465 | E88: -1,378 | F88: 2,710 | G88: 6,423 | H88: -2,669 | I88: 2,418 | J88: 15,074 | K88: 4,157 | L88: -55 | M88: -130 | N88: -444 | O88: 2,301 | P88: -853 | Q88: 161 | R88: -2,068 | S88: -2,305 | T88: =SUM(D88:S88) -> 22,877 | U88: =D88+E88+H88+I88+L88+M88+P88+Q88+(2*(F88+G88+J88+K88+N88+O88+R88+S88)) -> 48,725
C89: CENTRO SUR | D89: -787 | E89: -1,825 | F89: 812 | G89: -17,933 | H89: -276 | I89: -604 | J89: -9,333 | K89: -4,194 | L89: 5 | M89: 105 | N89: 303 | O89: 7,308 | P89: -71 | Q89: -80 | R89: 7 | S89: -118 | T89: -26,681 | U89: -49,829
C90: SUR | D90: 0 | E90: 0 | F90: 0 | G90: 0 | H90: 0 | I90: 0 | J90: 0 | K90: 0 | L90: 0 | M90: 0 | N90: 0 | O90: 0 | P90: 0 | Q90: 0 | R90: 0 | S90: 0 | T90: 0 | U90: 0
C91: AUSTRAL | D91: 16 | E91: 1 | F91: 22 | G91: 0 | H91: 0 | I91: 0 | J91: -86 | K91: 0 | L91: 0 | M91: 0 | N91: 0 | O91: 0 | P91: -116 | Q91: -1 | R91: -28 | S91: -63 | T91: -255 | U91: -410
C92: TOTAL | D92: =D81-D70 -> -1,690 | E92: -1,821 | F92: 4,489 | G92: -10,542 | H92: -2,415 | I92: 2,499 | J92: 5,864 | K92: -5,911 | L92: -585 | M92: -25 | N92: -713 | O92: 9,608 | P92: -1,040 | Q92: 80 | R92: -2,089 | S92: -2,486 | T92: =T81-T70 -> -6,777 | U92: -8,557
C94: DIFERENCIA ABRIL - JUNIO 2024 vs 2023 (PORCENTAJES)
C95: MCZ | D95: IMPORTACIÓN | H95: EXPORTACIÓN | L95: TRÁNSITO | P95: CABOTAJE | T95: TOTAL BOXES | U95: TOTAL TEUS
D96: 20 pies | F96: 40 pies | H96: 20 pies | J96: 40 pies | L96: 20 pies | N96: 40 pies | P96: 20 pies | R96: 40 pies
D97: full | E97: empty | F97: full | G97: empty | H97: full | I97: empty | J97: full | K97: empty | L97: full | M97: empty | N97: full | O97: empty | P97: full | Q97: empty | R97: full | S97: empty
C98: NORTE | D98: =+D87/D65 -> -11.7% | E98: =+E87/E65 -> 18.5% | F98: 4.9% | G98: 16.0% | H98: 5.7% | I98: 50.6% | J98: 2.0% | K98: -25.5% | L98: -5.9% | N98: -3.1% | T98: =+T87/T65 -> -2.5% | U98: =+U87/U65 -> -3.8%
C99: CENTRO | D99: =+D88/D66 -> -1.4% | E99: -83.2% | F99: 2.9% | G99: 31.0% | H99: -11.9% | I99: 22.3% | J99: 22.2% | K99: 14.2% | L99: -4.9% | M99: -45.3% | N99: -8.8% | O99: 347.6% | P99: -43.5% | Q99: 25.8% | R99: -38.1% | S99: -19.6% | T99: 7.4% | U99: 9.0%
C100: CENTRO SUR | D100: -18.3% | E100: -89.7% | F100: 14.7% | G100: -36.7% | H100: -6.4% | I100: -43.1% | J100: -13.3% | K100: -94.0% | L100: 9.6% | M100: 11.2% | N100: 71.0% | O100: 55.2% | P100: -33.2% | Q100: -33.9% | R100: 3.2% | S100: -36.8% | T100: -17.0% | U100: -16.6%
C101: SUR
C102: AUSTRAL | D102: =+D91/D69 -> 11.3% | F102: 7.4% | H102: 0.0% | J102: -17.5% | P102: -32.2% | Q102: -2.8% | R102: -3.3% | S102: -42.0% | T102: -11.0% | U102: -10.0%
C103: TOTAL | D103: =+D92/D70 -> -4.1% | E103: =+E92/E70 -> -16.3% | F103: 3.8% | G103: -13.9% | H103: -6.7% | I103: 18.4% | J103: 3.9% | K103: -10.4% | L103: -5.7% | M103: -2.0% | N103: -2.9% | O103: 69.1% | P103: -41.1% | Q103: 8.9% | R103: -32.2% | S103: -20.3% | T103: -1.2% | U103: -0.8%
C106: IMPO + EXPO (BOXES FULL) | H106: =+(D144+F144+H144+J144)/(+D122+F122+H122+J122) -> 13.4% | J106: INDICADORES TERCER TRIMESTRE
C107: IMPO + EXPO (TEUs FULL) | H107: =+((D144+H144)+2*(F144+J144))/((D122+H122)+2*(F122+J122)) -> 16.5%
C108: IMPO + EXPO + TRANS + CABOT (BOXES EMPTY) | H108: =+(E144+G144+I144+K144+M144+O144+Q144+S144)/(+E122+G122+I122+K122+M122+O122+Q122+S122) -> -15.0%
C109: TRANSITO (BOXES) | H109: =+(L144+M144+N144+O144)/+(L122+M122+N122+O122) -> 9.4% | J109: PORCENTAJES DE VARIACIÓN 2024 VS. 2023
C110: CABOTAJE (BOXES) | H110: =+(P144+Q144+R144+S144)/(P122+Q122+R122+S122) -> -23.2%
C111: TEUs TOTALES | H111: =+U144/U122 -> 4.1%
C113: 2023 | D113: CANTIDAD CONTENEDORES JULIO - SEPTIEMBRE 2023 x MACROZONA
C114: MCZ | D114: IMPORTACIÓN | H114: EXPORTACIÓN | L114: TRÁNSITO | P114: CABOTAJE | T114: TOTAL BOXES | U114: TOTAL TEUS
D115: 20 pies | F115: 40 pies | H115: 20 pies | J115: 40 pies | L115: 20 pies | N115: 40 pies | P115: 20 pies | R115: 40 pies
D116: full | E116: empty | F116: full | G116: empty | H116: full | I116: empty | J116: full | K116: empty | L116: full | M116: empty | N116: full | O116: empty | P116: full | Q116: empty | R116: full | S116: empty
C117: NORTE | D117: 4,740 | E117: 7,012 | F117: 19,547 | G117: 9,219 | H117: 9,084 | I117: 1,956 | J117: 13,634 | K117: 23,144 | L117: 10,836 | M117: 5 | N117: 20,580 | O117: 0 | P117: 2 | Q117: 0 | R117: 0 | S117: 0 | T117: =SUM(D117:S117) -> 119,759 | U117: =D117+E117+H117+I117+L117+M117+P117+Q117+(2*(F117+G117+J117+K117+N117+O117+R117+S117)) -> 205,883
C118: CENTRO | D118: 37,971 | E118: 906 | F118: 103,034 | G118: 23,436 | H118: 21,858 | I118: 12,680 | J118: 63,275 | K118: 36,440 | L118: 1,384 | M118: 966 | N118: 3,110 | O118: 1,023 | P118: 1,413 | Q118: 755 | R118: 4,726 | S118: 14,525 | T118: =SUM(D118:S118) -> 327,502 | U118: =D118+E118+H118+I118+L118+M118+P118+Q118+(2*(F118+G118+J118+K118+N118+O118+R118+S118)) -> 577,071
C119: CENTRO SUR | D119: 4,231 | E119: 1,445 | F119: 6,826 | G119: 68,782 | H119: 4,596 | I119: 3,151 | J119: 83,334 | K119: 4,553 | L119: 120 | M119: 924 | N119: 175 | O119: 13,772 | P119: 173 | Q119: 278 | R119: 337 | S119: 319 | T119: 193,016 | U119: 371,114
C120: SUR | D120: 0 | E120: 0 | F120: 0 | G120: 0 | H120: 0 | I120: 0 | J120: 0 | K120: 0 | L120: 0 | M120: 0 | N120: 0 | O120: 0 | P120: 0 | Q120: 0 | R120: 0 | S120: 0 | T120: 0 | U120: 0
C121: AUSTRAL | D121: 141 | E121: 0 | F121: 315 | G121: 0 | H121: 26 | I121: 0 | J121: 400 | K121: 0 | L121: 0 | M121: 0 | N121: 0 | O121: 0 | P121: 224 | Q121: 37 | R121: 664 | S121: 183 | T121: 1,990 | U121: 3,552
C122: TOTAL | D122: =SUM(D117:D121) -> 47,083 | E122: =SUM(E117:E121) -> 9,363 | F122: 129,722 | G122: 101,437 | H122: 35,564 | I122: 17,787 | J122: 160,643 | K122: 64,137 | L122: 12,340 | M122: 1,895 | N122: 23,865 | O122: 14,795 | P122: 1,812 | Q122: 1,070 | R122: 5,727 | S122: 15,027 | T122: =SUM(D122:S122) -> 642,267 | U122: 1,157,620
C124: 2024 | D124: CANTIDAD CONTENEDORES JULIO - SEPTIEMBRE 2024 x MACROZONA
C125: MCZ | D125: IMPORTACIÓN | H125: EXPORTACIÓN | L125: TRÁNSITO | P125: CABOTAJE | T125: TOTAL BOXES | U125: TOTAL TEUS
D126: 20 pies | F126: 40 pies | H126: 20 pies | J126: 40 pies | L126: 20 pies | N126: 40 pies | P126: 20 pies | R126: 40 pies
D127: full | E127: empty | F127: full | G127: empty | H127: full | I127: empty | J127: full | K127: empty | L127: full | M127: empty | N127: full | O127: empty | P127: full | Q127: empty | R127: full | S127: empty
C128: NORTE | D128: 2,645 | E128: 6,224 | F128: 16,849 | G128: 6,605 | H128: 8,585 | I128: 1,027 | J128: 10,434 | K128: 16,393 | L128: 8,142 | M128: 0 | N128: 20,430 | O128: 0 | P128: 0 | Q128: 0 | R128: 0 | S128: 0 | T128: =SUM(D128:S128) -> 97,334 | U128: =D128+E128+H128+I128+L128+M128+P128+Q128+(2*(F128+G128+J128+K128+N128+O128+R128+S128)) -> 168,045
C129: CENTRO | D129: 32,468 | E129: 281 | F129: 146,252 | G129: 36,679 | H129: 21,563 | I129: 8,999 | J129: 96,727 | K129: 38,576 | L129: 1,763 | M129: 121 | N129: 3,993 | O129: 932 | P129: 799 | Q129: 700 | R129: 2,944 | S129: 12,230 | T129: =SUM(D129:S129) -> 405,027 | U129: =D129+E129+H129+I129+L129+M129+P129+Q129+(2*(F129+G129+J129+K129+N129+O129+R129+S129)) -> 743,360
C130: CENTRO SUR | D130: 3,646 | E130: 609 | F130: 6,995 | G130: 39,382 | H130: 4,531 | I130: 950 | J130: 71,729 | K130: 348 | L130: 138 | M130: 1,241 | N130: 822 | O130: 20,280 | P130: 125 | Q130: 8 | R130: 168 | S130: 12 | T130: 150,984 | U130: 290,720
C131: SUR | D131: 0 | E131: 0 | F131: 0 | G131: 0 | H131: 0 | I131: 0 | J131: 0 | K131: 0 | L131: 0 | M131: 0 | N131: 0 | O131: 0 | P131: 0 | Q131: 0 | R131: 0 | S131: 0 | T131: 0 | U131: 0
C132: AUSTRAL | D132: 120 | E132: 6 | F132: 252 | G132: 0 | H132: 32 | I132: 6 | J132: 331 | K132: 10 | L132: 0 | M132: 0 | N132: 0 | O132: 0 | P132: 214 | Q132: 27 | R132: 829 | S132: 96 | T132: 1,923 | U132: 3,441
C133: TOTAL | D133: =SUM(D128:D132) -> 38,879 | E133: =SUM(E128:E132) -> 7,120 | F133: 170,348 | G133: 82,666 | H133: 34,711 | I133: 10,982 | J133: 179,221 | K133: 55,327 | L133: 10,043 | M133: 1,362 | N133: 25,245 | O133: 21,212 | P133: 1,138 | Q133: 735 | R133: 3,941 | S133: 12,338 | T133: =SUM(D133:S133) -> 655,268 | U133: 1,205,566
C135: DIFERENCIA JULIO - SEPTIEMBRE 2024 vs 2023 (UNIDADES)
C136: MCZ | D136: IMPORTACIÓN | H136: EXPORTACIÓN | L136: TRÁNSITO | P136: CABOTAJE | T136: TOTAL BOXES | U136: TOTAL TEUS
D137: 20 pies | F137: 40 pies | H137: 20 pies | J137: 40 pies | L137: 20 pies | N137: 40 pies | P137: 20 pies | R137: 40 pies
D138: full | E138: empty | F138: full | G138: empty | H138: full | I138: empty | J138: full | K138: empty | L138: full | M138: empty | N138: full | O138: empty | P138: full | Q138: empty | R138: full | S138: empty
C139: NORTE | D139: =D128-D117 -> -2,095 | E139: =E128-E117 -> -788 | F139: -2,698 | G139: -2,614 | H139: -499 | I139: -929 | J139: -3,200 | K139: -6,751 | L139: -2,694 | M139: -5 | N139: -150 | O139: 0 | P139: -2 | Q139: 0 | R139: 0 | S139: 0 | T139: =SUM(D139:S139) -> -22,425 | U139: =D139+E139+H139+I139+L139+M139+P139+Q139+(2*(F139+G139+J139+K139+N139+O139+R139+S139)) -> -37,838
C140: CENTRO | D140: =D129-D118 -> -5,503 | E140: -625 | F140: 43,218 | G140: 13,243 | H140: -295 | I140: -3,681 | J140: 33,452 | K140: 2,136 | L140: 379 | M140: -845 | N140: 883 | O140: -91 | P140: -614 | Q140: -55 | R140: -1,782 | S140: -2,295 | T140: =SUM(D140:S140) -> 77,525 | U140: =D140+E140+H140+I140+L140+M140+P140+Q140+(2*(F140+G140+J140+K140+N140+O140+R140+S140)) -> 166,289
C141: CENTRO SUR | D141: -585 | E141: -836 | F141: 169 | G141: -29,400 | H141: -65 | I141: -2,201 | J141: -11,605 | K141: -4,205 | L141: 18 | M141: 317 | N141: 647 | O141: 6,508 | P141: -48 | Q141: -270 | R141: -169 | S141: -307 | T141: -42,032 | U141: -80,394
C142: SUR | D142: 0 | E142: 0 | F142: 0 | G142: 0 | H142: 0 | I142: 0 | J142: 0 | K142: 0 | L142: 0 | M142: 0 | N142: 0 | O142: 0 | P142: 0 | Q142: 0 | R142: 0 | S142: 0 | T142: 0 | U142: 0
C143: AUSTRAL | D143: -21 | E143: 6 | F143: -63 | G143: 0 | H143: 6 | I143: 6 | J143: -69 | K143: 10 | L143: 0 | M143: 0 | N143: 0 | O143: 0 | P143: -10 | Q143: -10 | R143: 165 | S143: -87 | T143: -67 | U143: -111
C144: TOTAL | D144: =D133-D122 -> -8,204 | E144: -2,243 | F144: 40,626 | G144: -18,771 | H144: -853 | I144: -6,805 | J144: 18,578 | K144: -8,810 | L144: -2,297 | M144: -533 | N144: 1,380 | O144: 6,417 | P144: -674 | Q144: -335 | R144: -1,786 | S144: -2,689 | T144: =T133-T122 -> 13,001 | U144: 47,946
C146: DIFERENCIA JULIO - SEPTIEMBRE 2024 vs 2023 (PORCENTAJES)
C147: MCZ | D147: IMPORTACIÓN | H147: EXPORTACIÓN | L147: TRÁNSITO | P147: CABOTAJE | T147: TOTAL BOXES | U147: TOTAL TEUS
D148: 20 pies | F148: 40 pies | H148: 20 pies | J148: 40 pies | L148: 20 pies | N148: 40 pies | P148: 20 pies | R148: 40 pies
D149: full | E149: empty | F149: full | G149: empty | H149: full | I149: empty | J149: full | K149: empty | L149: full | M149: empty | N149: full | O149: empty | P149: full | Q149: empty | R149: full | S149: empty
C150: NORTE | D150: =+D139/D117 -> -44.2% | E150: =+E139/E117 -> -11.2% | F150: -13.8% | G150: -28.4% | H150: -5.5% | I150: -47.5% | J150: -23.5% | K150: -29.2% | L150: -24.9% | N150: -0.7% | T150: =+T139/T117 -> -18.7% | U150: =+U139/U117 -> -18.4%
C151: CENTRO | D151: =+D140/D118 -> -14.5% | E151: -69.0% | F151: 41.9% | G151: 56.5% | H151: -1.3% | I151: -29.0% | J151: 52.9% | K151: 5.9% | L151: 27.4% | M151: -87.5% | N151: 28.4% | O151: -8.9% | P151: -43.5% | Q151: -7.3% | R151: -37.7% | S151: -15.8% | T151: 23.7% | U151: 28.8%
C152: CENTRO SUR | D152: -13.8% | E152: -57.9% | F152: 2.5% | G152: -42.7% | H152: -1.4% | I152: -69.9% | J152: -13.9% | K152: -92.4% | L152: 15.0% | M152: 34.3% | N152: 369.7% | O152: 47.3% | P152: -27.7% | Q152: -97.1% | R152: -50.1% | S152: -96.2% | T152: -21.8% | U152: -21.7%
C153: SUR
C154: AUSTRAL | D154: =+D143/D121 -> -14.9% | F154: -20.0% | H154: 23.1% | J154: -17.3% | P154: -4.5% | Q154: -27.0% | R154: 24.8% | S154: -47.5% | T154: -3.4% | U154: -3.1%
C155: TOTAL | D155: =+D144/D122 -> -17.4% | E155: =+E144/E122 -> -24.0% | F155: 31.3% | G155: -18.5% | H155: -2.4% | I155: -38.3% | J155: 11.6% | K155: -13.7% | L155: -18.6% | M155: -28.1% | N155: 5.8% | O155: 43.4% | P155: -37.2% | Q155: -31.3% | R155: -31.2% | S155: -17.9% | T155: 2.0% | U155: 4.1%
C158: IMPO + EXPO (BOXES FULL) | H158: =+(D196+F196+H196+J196)/(+D174+F174+H174+J174) -> 4.3% | J158: INDICADORES CUARTO TRIMESTRE
C159: IMPO + EXPO (TEUs FULL) | H159: =+((D196+H196)+2*(F196+J196))/((D174+H174)+2*(F174+J174)) -> 4.8%
C160: IMPO + EXPO + TRANS + CABOT (BOXES EMPTY) | H160: =+(E196+G196+I196+K196+M196+O196+Q196+S196)/(+E174+G174+I174+K174+M174+O174+Q174+S174) -> 10.2%
C161: TRANSITO (BOXES) | H161: =+(L196+M196+N196+O196)/+(L174+M174+N174+O174) -> 31.0% | J161: PORCENTAJES DE VARIACIÓN 2024 VS. 2023
C162: CABOTAJE (BOXES) | H162: =+(P196+Q196+R196+S196)/(P174+Q174+R174+S174) -> 12.0%
C163: TEUs TOTALES | H163: =+U196/U174 -> 4.9%
C165: 2023 | D165: CANTIDAD CONTENEDORES OCTUBRE - DICIEMBRE 2023 x MACROZONA
C166: MCZ | D166: IMPORTACIÓN | H166: EXPORTACIÓN | L166: TRÁNSITO | P166: CABOTAJE | T166: TOTAL BOXES | U166: TOTAL TEUS
D167: 20 pies | F167: 40 pies | H167: 20 pies | J167: 40 pies | L167: 20 pies | N167: 40 pies | P167: 20 pies | R167: 40 pies
D168: full | E168: empty | F168: full | G168: empty | H168: full | I168: empty | J168: full | K168: empty | L168: full | M168: empty | N168: full | O168: empty | P168: full | Q168: empty | R168: full | S168: empty
C169: NORTE | D169: 3,789 | E169: 7,153 | F169: 18,534 | G169: 8,197 | H169: 10,239 | I169: 2,402 | J169: 12,626 | K169: 22,712 | L169: 9,992 | M169: 0 | N169: 21,471 | O169: 1 | P169: 0 | Q169: 0 | R169: 0 | S169: 0 | T169: =SUM(D169:S169) -> 117,116 | U169: =D169+E169+H169+I169+L169+M169+P169+Q169+(2*(F169+G169+J169+K169+N169+O169+R169+S169)) -> 200,657
C170: CENTRO | D170: 34,005 | E170: 547 | F170: 100,272 | G170: 23,132 | H170: 22,792 | I170: 12,367 | J170: 67,965 | K170: 42,583 | L170: 1,495 | M170: 458 | N170: 3,657 | O170: 1,189 | P170: 1,268 | Q170: 1,227 | R170: 3,964 | S170: 13,077 | T170: =SUM(D170:S170) -> 329,998 | U170: =D170+E170+H170+I170+L170+M170+P170+Q170+(2*(F170+G170+J170+K170+N170+O170+R170+S170)) -> 585,837
C171: CENTRO SUR | D171: 4,306 | E171: 1,417 | F171: 7,085 | G171: 46,785 | H171: 4,142 | I171: 3,206 | J171: 75,881 | K171: 3,755 | L171: 45 | M171: 1,120 | N171: 176 | O171: 12,653 | P171: 147 | Q171: 173 | R171: 164 | S171: 357 | T171: 161,412 | U171: 308,268
C172: SUR | D172: 0 | E172: 0 | F172: 0 | G172: 0 | H172: 0 | I172: 0 | J172: 0 | K172: 0 | L172: 0 | M172: 0 | N172: 0 | O172: 0 | P172: 0 | Q172: 0 | R172: 0 | S172: 0 | T172: 0 | U172: 0
C173: AUSTRAL | D173: 186 | E173: 0 | F173: 493 | G173: 0 | H173: 22 | I173: 0 | J173: 292 | K173: 0 | L173: 0 | M173: 0 | N173: 0 | O173: 0 | P173: 204 | Q173: 35 | R173: 746 | S173: 54 | T173: 2,032 | U173: 3,617
C174: TOTAL | D174: =SUM(D169:D173) -> 42,286 | E174: =SUM(E169:E173) -> 9,117 | F174: 126,384 | G174: 78,114 | H174: 37,195 | I174: 17,975 | J174: 156,764 | K174: 69,050 | L174: 11,532 | M174: 1,578 | N174: 25,304 | O174: 13,843 | P174: 1,619 | Q174: 1,435 | R174: 4,874 | S174: 13,488 | T174: =SUM(D174:S174) -> 610,558 | U174: 1,098,379
C176: 2024 | D176: CANTIDAD CONTENEDORES OCTUBRE - DICIEMBRE 2024 x MACROZONA
C177: MCZ | D177: IMPORTACIÓN | H177: EXPORTACIÓN | L177: TRÁNSITO | P177: CABOTAJE | T177: TOTAL BOXES | U177: TOTAL TEUS
D178: 20 pies | F178: 40 pies | H178: 20 pies | J178: 40 pies | L178: 20 pies | N178: 40 pies | P178: 20 pies | R178: 40 pies
D179: full | E179: empty | F179: full | G179: empty | H179: full | I179: empty | J179: full | K179: empty | L179: full | M179: empty | N179: full | O179: empty | P179: full | Q179: empty | R179: full | S179: empty
C180: NORTE | D180: 3,285 | E180: 9,366 | F180: 17,705 | G180: 7,415 | H180: 9,087 | I180: 952 | J180: 11,310 | K180: 13,761 | L180: 7,992 | M180: 0 | N180: 19,263 | O180: 0 | P180: 0 | Q180: 0 | R180: 0 | S180: 0 | T180: =SUM(D180:S180) -> 100,136 | U180: =D180+E180+H180+I180+L180+M180+P180+Q180+(2*(F180+G180+J180+K180+N180+O180+R180+S180)) -> 169,590
C181: CENTRO | D181: 34,595 | E181: 291 | F181: 120,766 | G181: 27,499 | H181: 23,593 | I181: 4,903 | J181: 93,698 | K181: 32,437 | L181: 1,778 | M181: 223 | N181: 6,669 | O181: 307 | P181: 834 | Q181: 1,278 | R181: 2,789 | S181: 17,372 | T181: =SUM(D181:S181) -> 369,032 | U181: =D181+E181+H181+I181+L181+M181+P181+Q181+(2*(F181+G181+J181+K181+N181+O181+R181+S181)) -> 670,569
C182: CENTRO SUR | D182: 4,324 | E182: 4,342 | F182: 4,538 | G182: 47,548 | H182: 4,703 | I182: 25,532 | J182: 49,891 | K182: 675 | L182: 97 | M182: 1,139 | N182: 705 | O182: 30,305 | P182: 171 | Q182: 0 | R182: 259 | S182: 0 | T182: 174,229 | U182: 308,150
C183: SUR | D183: 0 | E183: 0 | F183: 0 | G183: 0 | H183: 0 | I183: 0 | J183: 0 | K183: 0 | L183: 0 | M183: 0 | N183: 0 | O183: 0 | P183: 0 | Q183: 0 | R183: 0 | S183: 0 | T183: 0 | U183: 0
C184: AUSTRAL | D184: 206 | E184: 18 | F184: 379 | G184: 19 | H184: 12 | I184: 0 | J184: 291 | K184: 0 | L184: 0 | M184: 0 | N184: 0 | O184: 0 | P184: 233 | Q184: 43 | R184: 950 | S184: 63 | T184: 2,214 | U184: 3,916
C185: TOTAL | D185: =SUM(D180:D184) -> 42,410 | E185: =SUM(E180:E184) -> 14,017 | F185: 143,388 | G185: 82,481 | H185: 37,395 | I185: 31,387 | J185: 155,190 | K185: 46,873 | L185: 9,867 | M185: 1,362 | N185: 26,637 | O185: 30,612 | P185: 1,238 | Q185: 1,321 | R185: 3,998 | S185: 17,435 | T185: =SUM(D185:S185) -> 645,611 | U185: 1,152,225
C187: DIFERENCIA OCTUBRE - DICIEMBRE 2024 vs 2023 (UNIDADES)
C188: MCZ | D188: IMPORTACIÓN | H188: EXPORTACIÓN | L188: TRÁNSITO | P188: CABOTAJE | T188: TOTAL BOXES | U188: TOTAL TEUS
D189: 20 pies | F189: 40 pies | H189: 20 pies | J189: 40 pies | L189: 20 pies | N189: 40 pies | P189: 20 pies | R189: 40 pies
D190: full | E190: empty | F190: full | G190: empty | H190: full | I190: empty | J190: full | K190: empty | L190: full | M190: empty | N190: full | O190: empty | P190: full | Q190: empty | R190: full | S190: empty
C191: NORTE | D191: =D180-D169 -> -504 | E191: =E180-E169 -> 2,213 | F191: -829 | G191: -782 | H191: -1,152 | I191: -1,450 | J191: -1,316 | K191: -8,951 | L191: -2,000 | M191: 0 | N191: -2,208 | O191: -1 | P191: 0 | Q191: 0 | R191: 0 | S191: 0 | T191: =SUM(D191:S191) -> -16,980 | U191: =D191+E191+H191+I191+L191+M191+P191+Q191+(2*(F191+G191+J191+K191+N191+O191+R191+S191)) -> -31,067
C192: CENTRO | D192: =D181-D170 -> 590 | E192: -256 | F192: 20,494 | G192: 4,367 | H192: 801 | I192: -7,464 | J192: 25,733 | K192: -10,146 | L192: 283 | M192: -235 | N192: 3,012 | O192: -882 | P192: -434 | Q192: 51 | R192: -1,175 | S192: 4,295 | T192: =SUM(D192:S192) -> 39,034 | U192: =D192+E192+H192+I192+L192+M192+P192+Q192+(2*(F192+G192+J192+K192+N192+O192+R192+S192)) -> 84,732
C193: CENTRO SUR | D193: 18 | E193: 2,925 | F193: -2,547 | G193: 763 | H193: 561 | I193: 22,326 | J193: -25,990 | K193: -3,080 | L193: 52 | M193: 19 | N193: 529 | O193: 17,652 | P193: 24 | Q193: -173 | R193: 95 | S193: -357 | T193: 12,817 | U193: -118
C194: SUR | D194: 0 | E194: 0 | F194: 0 | G194: 0 | H194: 0 | I194: 0 | J194: 0 | K194: 0 | L194: 0 | M194: 0 | N194: 0 | O194: 0 | P194: 0 | Q194: 0 | R194: 0 | S194: 0 | T194: 0 | U194: 0
C195: AUSTRAL | D195: 20 | E195: 18 | F195: -114 | G195: 19 | H195: -10 | I195: 0 | J195: -1 | K195: 0 | L195: 0 | M195: 0 | N195: 0 | O195: 0 | P195: 29 | Q195: 8 | R195: 204 | S195: 9 | T195: 182 | U195: 299
C196: TOTAL | D196: =D185-D174 -> 124 | E196: 4,900 | F196: 17,004 | G196: 4,367 | H196: 200 | I196: 13,412 | J196: -1,574 | K196: -22,177 | L196: -1,665 | M196: -216 | N196: 1,333 | O196: 16,769 | P196: -381 | Q196: -114 | R196: -876 | S196: 3,947 | T196: =T185-T174 -> 35,053 | U196: 53,846
C198: DIFERENCIA OCTUBRE - DICIEMBRE 2024 vs 2023 (PORCENTAJES)
C199: MCZ | D199: IMPORTACIÓN | H199: EXPORTACIÓN | L199: TRÁNSITO | P199: CABOTAJE | T199: TOTAL BOXES | U199: TOTAL TEUS
D200: 20 pies | F200: 40 pies | H200: 20 pies | J200: 40 pies | L200: 20 pies | N200: 40 pies | P200: 20 pies | R200: 40 pies
D201: full | E201: empty | F201: full | G201: empty | H201: full | I201: empty | J201: full | K201: empty | L201: full | M201: empty | N201: full | O201: empty | P201: full | Q201: empty | R201: full | S201: empty
C202: NORTE | D202: =+D191/D169 -> -13.3% | E202: =+E191/E169 -> 30.9% | F202: -4.5% | G202: -9.5% | H202: -11.3% | I202: -60.4% | J202: -10.4% | K202: -39.4% | L202: -20.0% | N202: =+N191/N169 -> -10.3% | T202: =+T191/T169 -> -14.5% | U202: =+U191/U169 -> -15.5%
C203: CENTRO | D203: =+D192/D170 -> 1.7% | E203: -46.8% | F203: 20.4% | G203: 18.9% | H203: 3.5% | I203: -60.4% | J203: 37.9% | K203: -23.8% | L203: 18.9% | M203: -51.3% | N203: 82.4% | O203: -74.2% | P203: -34.2% | Q203: 4.2% | R203: -29.6% | S203: 32.8% | T203: 11.8% | U203: 14.5%
C204: CENTRO SUR | D204: 0.4% | E204: 206.4% | F204: -35.9% | G204: 1.6% | H204: 13.5% | I204: 696.4% | J204: -34.3% | K204: -82.0% | L204: 115.6% | M204: 1.7% | N204: 300.6% | O204: 139.5% | P204: 16.3% | Q204: -100.0% | R204: 57.9% | S204: -100.0% | T204: 7.9% | U204: -0.0%
C205: SUR
C206: AUSTRAL | D206: =+D195/D173 -> 10.8% | F206: =+F195/F173 -> -23.1% | H206: -45.5% | J206: =+J195/J173 -> -0.3% | P206: 14.2% | Q206: 22.9% | R206: 27.3% | S206: 16.7% | T206: 9.0% | U206: 8.3%
C207: TOTAL | D207: =+D196/D174 -> 0.3% | E207: =+E196/E174 -> 53.7% | F207: 13.5% | G207: 5.6% | H207: 0.5% | I207: 74.6% | J207: -1.0% | K207: -32.1% | L207: -14.4% | M207: -13.7% | N207: 5.3% | O207: 121.1% | P207: -23.5% | Q207: -7.9% | R207: -18.0% | S207: 29.3% | T207: 5.7% | U207: 4.9%
C210: IMPO + EXPO (BOXES FULL) | H210: =+(D248+F248+H248+J248)/(+D226+F226+H226+J226) -> 10.9% | J210: INDICADORES ENERO - DICIEMBRE
C211: IMPO + EXPO (TEUs FULL) | H211: =+((D248+H248)+2*(F248+J248))/((D226+H226)+2*(F226+J226)) -> 12.2%
C212: IMPO + EXPO + TRANS + CABOT (BOXES EMPTY) | H212: =+(E248+G248+I248+K248+M248+O248+Q248+S248)/+(E226+G226+I226+K226+M226+O226+Q226+S226) -> 0.9%
C213: TRANSITO (BOXES) | H213: =+(L248+M248+N248+O248)/+(L226+M226+N226+O226) -> 15.6% | J213: PORCENTAJES DE VARIACIÓN 2024 VS. 2023
C214: CABOTAJE (BOXES) | H214: =+(P248+Q248+R248+S248)/(P226+Q226+R226+S226) -> 0.7%
C215: TEUs TOTALES | H215: =+U248/U226 -> 7.0%
C217: 2023 | D217: CANTIDAD CONTENEDORES ENERO - DICIEMBRE 2023 x MACROZONA
C218: MCZ | D218: IMPORTACIÓN | H218: EXPORTACIÓN | L218: TRÁNSITO | P218: CABOTAJE | T218: TOTAL BOXES | U218: TOTAL TEUS
D219: 20 pies | F219: 40 pies | H219: 20 pies | J219: 40 pies | L219: 20 pies | N219: 40 pies | P219: 20 pies | R219: 40 pies
D220: full | E220: empty | F220: full | G220: empty | H220: full | I220: empty | J220: full | K220: empty | L220: full | M220: empty | N220: full | O220: empty | P220: full | Q220: empty | R220: full | S220: empty
C221: NORTE | D221: =D13+D65+D117+D169 -> 15,934 | E221: =E13+E65+E117+E169 -> 28,910 | F221: 73,478 | G221: 29,609 | H221: 36,884 | I221: 8,343 | J221: 47,046 | K221: 90,073 | L221: 38,499 | M221: 5 | N221: 77,010 | O221: 2 | P221: 2 | Q221: 0 | R221: 0 | S221: 0 | T221: 445,795 | U221: 763,013
C222: CENTRO | D222: =D14+D66+D118+D170 -> 132,969 | E222: 5,792 | F222: 378,732 | G222: 86,952 | H222: 85,226 | I222: 47,669 | J222: 272,287 | K222: 144,526 | L222: 6,138 | M222: 2,226 | N222: 19,016 | O222: 3,659 | P222: 6,023 | Q222: 2,852 | R222: 17,749 | S222: 45,506 | T222: 1,257,322 | U222: 2,225,749
C223: CENTRO SUR | D223: 17,201 | E223: 6,529 | F223: 25,130 | G223: 206,762 | H223: 17,805 | I223: 10,044 | J223: 290,523 | K223: 14,103 | L223: 320 | M223: 3,787 | N223: 980 | O223: 52,023 | P223: 802 | Q223: 976 | R223: 988 | S223: 1,582 | T223: 649,555 | U223: 1,241,646
C224: SUR | D224: 0 | E224: 0 | F224: 0 | G224: 0 | H224: 0 | I224: 0 | J224: 0 | K224: 0 | L224: 0 | M224: 0 | N224: 0 | O224: 0 | P224: 0 | Q224: 0 | R224: 0 | S224: 0 | T224: 0 | U224: 0
C225: AUSTRAL | D225: 686 | E225: 1 | F225: 1,630 | G225: 3 | H225: 64 | I225: 0 | J225: 1,598 | K225: 0 | L225: 0 | M225: 0 | N225: 0 | O225: 0 | P225: 1,222 | Q225: 157 | R225: 3,460 | S225: 513 | T225: 9,334 | U225: 16,538
C226: TOTAL | D226: =SUM(D221:D225) -> 166,790 | E226: =SUM(E221:E225) -> 41,232 | F226: 478,970 | G226: 323,326 | H226: 139,979 | I226: 66,056 | J226: 611,454 | K226: 248,702 | L226: 44,957 | M226: 6,018 | N226: 97,006 | O226: 55,684 | P226: 8,049 | Q226: 3,985 | R226: 22,197 | S226: 47,601 | T226: =SUM(D226:S226) -> 2,362,006 | U226: =D226+E226+H226+I226+L226+M226+P226+Q226+(2*(F226+G226+J226+K226+N226+O226+R226+S226)) -> 4,246,946
... 30 more rows

Sheet 2023 VS 2022
C3: IMPO + EXPO (BOXES FULL) | H3: =+(D41+F41+H41+J41)/(+D19+F19+H19+J19) -> -20.0% | J3: INDICADORES PRIMER TRIMESTRE
C4: IMPO + EXPO (TEUs FULL) | H4: =+((D41+H41)+2*(F41+J41))/((D19+H19)+2*(F19+J19)) -> -20.4%
C5: IMPO + EXPO + TRANS + CABOT (BOXES EMPTY) | H5: =+(E41+G41+I41+K41+M41++O41+Q41+S41)/(+E19+G19+I19+K19+M19+O19+Q19+S19) -> 19.9%
C6: TRANSITO (BOXES) | H6: =+(L41+M41+N41+O41)/+(L19+M19+N19+O19) -> 14.8% | J6: PORCENTAJES DE VARIACIÓN 2023 VS. 2022
C7: CABOTAJE (BOXES) | H7: =+(P41+Q41+R41+S41)/(P19+Q19+R19+S19) -> -36.1%
C8: TEUs TOTALES | H8: =+U41/U19 -> -8.1%
C10: 2022 | D10: CANTIDAD CONTENEDORES ENERO - MARZO 2022 x MACROZONA
C11: MCZ | D11: IMPORTACIÓN | H11: EXPORTACIÓN | L11: TRÁNSITO | P11: CABOTAJE | T11: TOTAL BOXES | U11: TOTAL TEUS
D12: 20 pies | F12: 40 pies | H12: 20 pies | J12: 40 pies | L12: 20 pies | N12: 40 pies | P12: 20 pies | R12: 40 pies
D13: full | E13: empty | F13: full | G13: empty | H13: full | I13: empty | J13: full | K13: empty | L13: full | M13: empty | N13: full | O13: empty | P13: full | Q13: empty | R13: full | S13: empty
C14: NORTE | D14: 2,212 | E14: 8,676 | F14: 12,035 | G14: 5,769 | H14: 9,490 | I14: 1,501 | J14: 10,031 | K14: 12,676 | L14: 6,441 | M14: 0 | N14: 13,794 | O14: 0 | P14: 0 | Q14: 0 | R14: 0 | S14: 0 | T14: =SUM(D14:S14) -> 82,625 | U14: =D14+E14+H14+I14+L14+M14+P14+Q14+(2*(F14+G14+J14+K14+N14+O14+R14+S14)) -> 136,930
C15: CENTRO | D15: 36,005 | E15: 158 | F15: 134,175 | G15: 13,705 | H15: 20,127 | I15: 5,699 | J15: 84,334 | K15: 42,266 | L15: 2,680 | M15: 4 | N15: 5,304 | O15: 864 | P15: 1,472 | Q15: 1,749 | R15: 3,752 | S15: 12,828 | T15: =SUM(D15:S15) -> 365,122 | U15: =D15+E15+H15+I15+L15+M15+P15+Q15+(2*(F15+G15+J15+K15+N15+O15+R15+S15)) -> 662,350
C16: CENTRO SUR | D16: 6,034 | E16: 2,135 | F16: 14,704 | G16: 21,667 | H16: 6,211 | I16: 962 | J16: 57,821 | K16: 3,058 | L16: 124 | M16: 564 | N16: 686 | O16: 12,253 | P16: 116 | Q16: 175 | R16: 242 | S16: 891 | T16: 127,643 | U16: 238,965
C17: SUR | D17: 0 | E17: 0 | F17: 0 | G17: 0 | H17: 0 | I17: 0 | J17: 0 | K17: 0 | L17: 0 | M17: 0 | N17: 0 | O17: 0 | P17: 0 | Q17: 0 | R17: 0 | S17: 0 | T17: 0 | U17: 0
C18: AUSTRAL | D18: 130 | E18: 0 | F18: 477 | G18: 0 | H18: 22 | I18: 0 | J18: 301 | K18: 0 | L18: 0 | M18: 0 | N18: 0 | O18: 0 | P18: 352 | Q18: 7 | R18: 1,244 | S18: 101 | T18: 2,634 | U18: 4,757
C19: TOTAL | D19: =SUM(D14:D18) -> 44,381 | E19: =SUM(E14:E18) -> 10,969 | F19: 161,391 | G19: 41,141 | H19: 35,850 | I19: 8,162 | J19: 152,487 | K19: 58,000 | L19: 9,245 | M19: 568 | N19: 19,784 | O19: 13,117 | P19: 1,940 | Q19: 1,931 | R19: 5,238 | S19: 13,820 | T19: =SUM(D19:S19) -> 578,024 | U19: 1,043,002
C21: 2023 | D21: CANTIDAD CONTENEDORES ENERO - MARZO 2023 x MACROZONA
C22: MCZ | D22: IMPORTACIÓN | H22: EXPORTACIÓN | L22: TRÁNSITO | P22: CABOTAJE | T22: TOTAL BOXES | U22: TOTAL TEUS
D23: 20 pies | F23: 40 pies | H23: 20 pies | J23: 40 pies | L23: 20 pies | N23: 40 pies | P23: 20 pies | R23: 40 pies
D24: full | E24: empty | F24: full | G24: empty | H24: full | I24: empty | J24: full | K24: empty | L24: full | M24: empty | N24: full | O24: empty | P24: full | Q24: empty | R24: full | S24: empty
C25: NORTE | D25: 3,511 | E25: 7,296 | F25: 16,002 | G25: 6,136 | H25: 8,235 | I25: 2,632 | J25: 10,236 | K25: 21,179 | L25: 8,653 | M25: 0 | N25: 16,253 | O25: 0 | P25: 0 | Q25: 0 | R25: 0 | S25: 0 | T25: =SUM(D25:S25) -> 100,133 | U25: =D25+E25+H25+I25+L25+M25+P25+Q25+(2*(F25+G25+J25+K25+N25+O25+R25+S25)) -> 169,939
C26: CENTRO | D26: 27,650 | E26: 2,683 | F26: 81,327 | G26: 19,658 | H26: 18,093 | I26: 11,792 | J26: 73,177 | K26: 36,206 | L26: 2,144 | M26: 515 | N26: 7,212 | O26: 785 | P26: 1,383 | Q26: 247 | R26: 3,636 | S26: 6,157 | T26: =SUM(D26:S26) -> 292,665 | U26: =D26+E26+H26+I26+L26+M26+P26+Q26+(2*(F26+G26+J26+K26+N26+O26+R26+S26)) -> 520,823
C27: CENTRO SUR | D27: 4,375 | E27: 1,633 | F27: 5,693 | G27: 42,355 | H27: 4,762 | I27: 2,287 | J27: 61,009 | K27: 1,334 | L27: 103 | M27: 807 | N27: 202 | O27: 12,349 | P27: 268 | Q27: 289 | R27: 268 | S27: 585 | T27: 138,319 | U27: 262,114
C28: SUR | D28: 0 | E28: 0 | F28: 0 | G28: 0 | H28: 0 | I28: 0 | J28: 0 | K28: 0 | L28: 0 | M28: 0 | N28: 0 | O28: 0 | P28: 0 | Q28: 0 | R28: 0 | S28: 0 | T28: 0 | U28: 0
C29: AUSTRAL | D29: 218 | E29: 1 | F29: 525 | G29: 3 | H29: 8 | I29: 0 | J29: 414 | K29: 0 | L29: 0 | M29: 0 | N29: 0 | O29: 0 | P29: 434 | Q29: 49 | R29: 1,206 | S29: 126 | T29: 2,984 | U29: 5,258
C30: TOTAL | D30: =SUM(D25:D29) -> 35,754 | E30: =SUM(E25:E29) -> 11,613 | F30: 103,547 | G30: 68,152 | H30: 31,098 | I30: 16,711 | J30: 144,836 | K30: 58,719 | L30: 10,900 | M30: 1,322 | N30: 23,667 | O30: 13,134 | P30: 2,085 | Q30: 585 | R30: 5,110 | S30: 6,868 | T30: =SUM(D30:S30) -> 534,101 | U30: 958,134
C32: DIFERENCIA ENERO - MARZO 2023 vs 2022 (UNIDADES)
C33: MCZ | D33: IMPORTACIÓN | H33: EXPORTACIÓN | L33: TRÁNSITO | P33: CABOTAJE | T33: TOTAL BOXES | U33: TOTAL TEUS
D34: 20 pies | F34: 40 pies | H34: 20 pies | J34: 40 pies | L34: 20 pies | N34: 40 pies | P34: 20 pies | R34: 40 pies
D35: full | E35: empty | F35: full | G35: empty | H35: full | I35: empty | J35: full | K35: empty | L35: full | M35: empty | N35: full | O35: empty | P35: full | Q35: empty | R35: full | S35: empty
C36: NORTE | D36: =D25-D14 -> 1,299 | E36: =E25-E14 -> -1,380 | F36: 3,967 | G36: 367 | H36: -1,255 | I36: 1,131 | J36: 205 | K36: 8,503 | L36: 2,212 | M36: 0 | N36: 2,459 | O36: 0 | P36: 0 | Q36: 0 | R36: 0 | S36: 0 | T36: =SUM(D36:S36) -> 17,508 | U36: =D36+E36+H36+I36+L36+M36+P36+Q36+(2*(F36+G36+J36+K36+N36+O36+R36+S36)) -> 33,009
C37: CENTRO | D37: =D26-D15 -> -8,355 | E37: 2,525 | F37: -52,848 | G37: 5,953 | H37: -2,034 | I37: 6,093 | J37: -11,157 | K37: -6,060 | L37: -536 | M37: 511 | N37: 1,908 | O37: -79 | P37: -89 | Q37: -1,502 | R37: -116 | S37: -6,671 | T37: =SUM(D37:S37) -> -72,457 | U37: =D37+E37+H37+I37+L37+M37+P37+Q37+(2*(F37+G37+J37+K37+N37+O37+R37+S37)) -> -141,527
C38: CENTRO SUR | D38: -1,659 | E38: -502 | F38: -9,011 | G38: 20,688 | H38: -1,449 | I38: 1,325 | J38: 3,188 | K38: -1,724 | L38: -21 | M38: 243 | N38: -484 | O38: 96 | P38: 152 | Q38: 114 | R38: 26 | S38: -306 | T38: 10,676 | U38: 23,149
C39: SUR | D39: 0 | E39: 0 | F39: 0 | G39: 0 | H39: 0 | I39: 0 | J39: 0 | K39: 0 | L39: 0 | M39: 0 | N39: 0 | O39: 0 | P39: 0 | Q39: 0 | R39: 0 | S39: 0 | T39: 0 | U39: 0
C40: AUSTRAL | D40: 88 | E40: 1 | F40: 48 | G40: 3 | H40: -14 | I40: 0 | J40: 113 | K40: 0 | L40: 0 | M40: 0 | N40: 0 | O40: 0 | P40: 82 | Q40: 42 | R40: -38 | S40: 25 | T40: 350 | U40: 501
C41: TOTAL | D41: =D30-D19 -> -8,627 | E41: 644 | F41: -57,844 | G41: 27,011 | H41: -4,752 | I41: 8,549 | J41: -7,651 | K41: 719 | L41: 1,655 | M41: 754 | N41: 3,883 | O41: 17 | P41: 145 | Q41: -1,346 | R41: -128 | S41: -6,952 | T41: =T30-T19 -> -43,923 | U41: -84,868
C43: DIFERENCIA ENERO - MARZO 2023 vs 2022 (PORCENTAJES)
C44: MCZ | D44: IMPORTACIÓN | H44: EXPORTACIÓN | L44: TRÁNSITO | P44: CABOTAJE | T44: TOTAL BOXES | U44: TOTAL TEUS
D45: 20 pies | F45: 40 pies | H45: 20 pies | J45: 40 pies | L45: 20 pies | N45: 40 pies | P45: 20 pies | R45: 40 pies
D46: full | E46: empty | F46: full | G46: empty | H46: full | I46: empty | J46: full | K46: empty | L46: full | M46: empty | N46: full | O46: empty | P46: full | Q46: empty | R46: full | S46: empty
C47: NORTE | D47: =+D36/D14 -> 58.7% | E47: =+E36/E14 -> -15.9% | F47: 33.0% | G47: 6.4% | H47: -13.2% | I47: 75.3% | J47: 2.0% | K47: 67.1% | L47: 34.3% | N47: 17.8% | T47: =+T36/T14 -> 21.2% | U47: =+U36/U14 -> 24.1%
C48: CENTRO | D48: =+D37/D15 -> -23.2% | E48: 1598.1% | F48: -39.4% | G48: 43.4% | H48: -10.1% | I48: 106.9% | J48: -13.2% | K48: -14.3% | L48: -20.0% | M48: 12775.0% | N48: 36.0% | O48: -9.1% | P48: -6.0% | Q48: -85.9% | R48: -3.1% | S48: -52.0% | T48: -19.8% | U48: -21.4%
C49: CENTRO SUR | D49: -27.5% | E49: -23.5% | F49: -61.3% | G49: 95.5% | H49: -23.3% | I49: 137.7% | J49: 5.5% | K49: -56.4% | L49: -16.9% | M49: 43.1% | N49: -70.6% | O49: 0.8% | P49: 131.0% | Q49: 65.1% | R49: 10.7% | S49: -34.3% | T49: 8.4% | U49: 9.7%
C50: SUR
C51: AUSTRAL | D51: =+D40/D18 -> 67.7% | F51: 10.1% | H51: -63.6% | J51: 37.5% | P51: 23.3% | Q51: 600.0% | R51: -3.1% | S51: 24.8% | T51: 13.3% | U51: 10.5%
C52: TOTAL | D52: =+D41/D19 -> -19.4% | E52: 5.9% | F52: -35.8% | G52: 65.7% | H52: -13.3% | I52: 104.7% | J52: -5.0% | K52: 1.2% | L52: 17.9% | M52: 132.7% | N52: 19.6% | O52: 0.1% | P52: 7.5% | Q52: -69.7% | R52: -2.4% | S52: -50.3% | T52: =+T41/T19 -> -7.6% | U52: =+U41/U19 -> -8.1%
C55: IMPO + EXPO (BOXES FULL) | H55: =+(D93+F93+H93+J93)/(+D71+F71+H71+J71) -> -8.8% | J55: INDICADORES SEGUNDO TRIMESTRE
C56: IMPO + EXPO (TEUs FULL) | H56: =+((D93+H93)+2*(F93+J93))/((D71+H71)+2*(F71+J71)) -> -9.6%
C57: IMPO + EXPO + TRANS + CABOT (BOXES EMPTY) | H57: =+(E93+G93+I93+K93+M93+O93+Q93+S93)/(+E71+G71+I71+K71+M71+O71+Q71+S71) -> 9.5%
C58: TRANSITO (BOXES) | H58: =+(L93+M93+N93+O93)/+(L71+M71+N71+O71) -> 6.3% | J58: PORCENTAJES DE VARIACIÓN 2023 VS. 2022
C59: CABOTAJE (BOXES) | H59: =+(P93+Q93+R93+S93)/(P71+Q71+R71+S71) -> 30.8%
C60: TEUs TOTALES | H60: =+U93/U71 -> -2.2%
C62: 2022 | D62: CANTIDAD CONTENEDORES ABRIL - JUNIO 2022 x MACROZONA
C63: MCZ | D63: IMPORTACIÓN | H63: EXPORTACIÓN | L63: TRÁNSITO | P63: CABOTAJE | T63: TOTAL BOXES | U63: TOTAL TEUS
D64: 20 pies | F64: 40 pies | H64: 20 pies | J64: 40 pies | L64: 20 pies | N64: 40 pies | P64: 20 pies | R64: 40 pies
D65: full | E65: empty | F65: full | G65: empty | H65: full | I65: empty | J65: full | K65: empty | L65: full | M65: empty | N65: full | O65: empty | P65: full | Q65: empty | R65: full | S65: empty
C66: NORTE | D66: 2,580 | E66: 7,715 | F66: 14,413 | G66: 8,085 | H66: 8,928 | I66: 1,272 | J66: 11,845 | K66: 13,520 | L66: 7,170 | M66: 0 | N66: 15,637 | O66: 0 | P66: 0 | Q66: 0 | R66: 29 | S66: 0 | T66: =SUM(D66:S66) -> 91,194 | U66: =D66+E66+H66+I66+L66+M66+P66+Q66+(2*(F66+G66+J66+K66+N66+O66+R66+S66)) -> 154,723
C67: CENTRO | D67: 33,291 | E67: 163 | F67: 116,193 | G67: 15,006 | H67: 24,882 | I67: 14,663 | J67: 89,427 | K67: 49,257 | L67: 3,014 | M67: 149 | N67: 6,493 | O67: 29 | P67: 990 | Q67: 911 | R67: 2,543 | S67: 9,029 | T67: =SUM(D67:S67) -> 366,040 | U67: =D67+E67+H67+I67+L67+M67+P67+Q67+(2*(F67+G67+J67+K67+N67+O67+R67+S67)) -> 654,017
C68: CENTRO SUR | D68: 3,229 | E68: 1,734 | F68: 7,334 | G68: 30,072 | H68: 6,535 | I68: 646 | J68: 59,947 | K68: 2,419 | L68: 102 | M68: 905 | N68: 577 | O68: 12,493 | P68: 169 | Q68: 194 | R68: 462 | S68: 711 | T68: 127,529 | U68: 241,544
C69: SUR | D69: 0 | E69: 0 | F69: 0 | G69: 0 | H69: 0 | I69: 0 | J69: 0 | K69: 0 | L69: 0 | M69: 0 | N69: 0 | O69: 0 | P69: 0 | Q69: 0 | R69: 0 | S69: 0 | T69: 0 | U69: 0
C70: AUSTRAL | D70: 172 | E70: 0 | F70: 538 | G70: 7 | H70: 6 | I70: 0 | J70: 444 | K70: 5 | L70: 0 | M70: 0 | N70: 0 | O70: 0 | P70: 378 | Q70: 40 | R70: 1,206 | S70: 258 | T70: 3,054 | U70: 5,512
C71: TOTAL | D71: =SUM(D66:D70) -> 39,272 | E71: =SUM(E66:E70) -> 9,612 | F71: 138,478 | G71: 53,170 | H71: 40,351 | I71: 16,581 | J71: 161,663 | K71: 65,201 | L71: 10,286 | M71: 1,054 | N71: 22,707 | O71: 12,522 | P71: 1,537 | Q71: 1,145 | R71: 4,240 | S71: 9,998 | T71: =SUM(D71:S71) -> 587,817 | U71: 1,055,796
C73: 2023 | D73: CANTIDAD CONTENEDORES ABRIL - JUNIO 2023 x MACROZONA
C74: MCZ | D74: IMPORTACIÓN | H74: EXPORTACIÓN | L74: TRÁNSITO | P74: CABOTAJE | T74: TOTAL BOXES | U74: TOTAL TEUS
D75: 20 pies | F75: 40 pies | H75: 20 pies | J75: 40 pies | L75: 20 pies | N75: 40 pies | P75: 20 pies | R75: 40 pies | W75: 1
D76: full | E76: empty | F76: full | G76: empty | H76: full | I76: empty | J76: full | K76: empty | L76: full | M76: empty | N76: full | O76: empty | P76: full | Q76: empty | R76: full | S76: empty
C77: NORTE | D77: 3,894 | E77: 7,449 | F77: 19,395 | G77: 6,057 | H77: 9,326 | I77: 1,353 | J77: 10,550 | K77: 23,038 | L77: 9,018 | M77: 0 | N77: 18,706 | O77: 1 | P77: 0 | Q77: 0 | R77: 0 | S77: 0 | T77: =SUM(D77:S77) -> 108,787 | U77: =D77+E77+H77+I77+L77+M77+P77+Q77+(2*(F77+G77+J77+K77+N77+O77+R77+S77)) -> 186,534
C78: CENTRO | D78: 33,343 | E78: 1,656 | F78: 94,099 | G78: 20,726 | H78: 22,483 | I78: 10,830 | J78: 67,870 | K78: 29,297 | L78: 1,115 | M78: 287 | N78: 5,037 | O78: 662 | P78: 1,959 | Q78: 623 | R78: 5,423 | S78: 11,747 | T78: =SUM(D78:S78) -> 307,157 | U78: =D78+E78+H78+I78+L78+M78+P78+Q78+(2*(F78+G78+J78+K78+N78+O78+R78+S78)) -> 542,018
C79: CENTRO SUR | D79: 4,289 | E79: 2,034 | F79: 5,526 | G79: 48,840 | H79: 4,305 | I79: 1,400 | J79: 70,299 | K79: 4,461 | L79: 52 | M79: 936 | N79: 427 | O79: 13,249 | P79: 214 | Q79: 236 | R79: 219 | S79: 321 | T79: 156,808 | U79: 300,150
C80: SUR | D80: 0 | E80: 0 | F80: 0 | G80: 0 | H80: 0 | I80: 0 | J80: 0 | K80: 0 | L80: 0 | M80: 0 | N80: 0 | O80: 0 | P80: 0 | Q80: 0 | R80: 0 | S80: 0 | T80: 0 | U80: 0
C81: AUSTRAL | D81: 141 | E81: 0 | F81: 297 | G81: 0 | H81: 8 | I81: 0 | J81: 492 | K81: 0 | L81: 0 | M81: 0 | N81: 0 | O81: 0 | P81: 360 | Q81: 36 | R81: 844 | S81: 150 | T81: 2,328 | U81: 4,111
C82: TOTAL | D82: =SUM(D77:D81) -> 41,667 | E82: =SUM(E77:E81) -> 11,139 | F82: 119,317 | G82: 75,623 | H82: 36,122 | I82: 13,583 | J82: 149,211 | K82: 56,796 | L82: 10,185 | M82: 1,223 | N82: 24,170 | O82: 13,912 | P82: 2,533 | Q82: 895 | R82: 6,486 | S82: 12,218 | T82: =SUM(D82:S82) -> 575,080 | U82: 1,032,813
C84: DIFERENCIA ABRIL - JUNIO 2023 vs 2022 (UNIDADES)
C85: MCZ | D85: IMPORTACIÓN | H85: EXPORTACIÓN | L85: TRÁNSITO | P85: CABOTAJE | T85: TOTAL BOXES | U85: TOTAL TEUS
D86: 20 pies | F86: 40 pies | H86: 20 pies | J86: 40 pies | L86: 20 pies | N86: 40 pies | P86: 20 pies | R86: 40 pies
D87: full | E87: empty | F87: full | G87: empty | H87: full | I87: empty | J87: full | K87: empty | L87: full | M87: empty | N87: full | O87: empty | P87: full | Q87: empty | R87: full | S87: empty
C88: NORTE | D88: =D77-D66 -> 1,314 | E88: =E77-E66 -> -266 | F88: 4,982 | G88: -2,028 | H88: 398 | I88: 81 | J88: -1,295 | K88: 9,518 | L88: 1,848 | M88: 0 | N88: 3,069 | O88: 1 | P88: 0 | Q88: 0 | R88: -29 | S88: 0 | T88: =SUM(D88:S88) -> 17,593 | U88: =D88+E88+H88+I88+L88+M88+P88+Q88+(2*(F88+G88+J88+K88+N88+O88+R88+S88)) -> 31,811
C89: CENTRO | D89: =D78-D67 -> 52 | E89: 1,493 | F89: -22,094 | G89: 5,720 | H89: -2,399 | I89: -3,833 | J89: -21,557 | K89: -19,960 | L89: -1,899 | M89: 138 | N89: -1,456 | O89: 633 | P89: 969 | Q89: -288 | R89: 2,880 | S89: 2,718 | T89: =SUM(D89:S89) -> -58,883 | U89: =D89+E89+H89+I89+L89+M89+P89+Q89+(2*(F89+G89+J89+K89+N89+O89+R89+S89)) -> -111,999
C90: CENTRO SUR | D90: 1,060 | E90: 300 | F90: -1,808 | G90: 18,768 | H90: -2,230 | I90: 754 | J90: 10,352 | K90: 2,042 | L90: -50 | M90: 31 | N90: -150 | O90: 756 | P90: 45 | Q90: 42 | R90: -243 | S90: -390 | T90: 29,279 | U90: 58,606
C91: SUR | D91: 0 | E91: 0 | F91: 0 | G91: 0 | H91: 0 | I91: 0 | J91: 0 | K91: 0 | L91: 0 | M91: 0 | N91: 0 | O91: 0 | P91: 0 | Q91: 0 | R91: 0 | S91: 0 | T91: 0 | U91: 0
C92: AUSTRAL | D92: -31 | E92: 0 | F92: -241 | G92: -7 | H92: 2 | I92: 0 | J92: 48 | K92: -5 | L92: 0 | M92: 0 | N92: 0 | O92: 0 | P92: -18 | Q92: -4 | R92: -362 | S92: -108 | T92: -726 | U92: -1,401
C93: TOTAL | D93: =D82-D71 -> 2,395 | E93: 1,527 | F93: -19,161 | G93: 22,453 | H93: -4,229 | I93: -2,998 | J93: -12,452 | K93: -8,405 | L93: -101 | M93: 169 | N93: 1,463 | O93: 1,390 | P93: 996 | Q93: -250 | R93: 2,246 | S93: 2,220 | T93: =T82-T71 -> -12,737 | U93: -22,983
C95: DIFERENCIA ABRIL - JUNIO 2023 vs 2022 (PORCENTAJES)
C96: MCZ | D96: IMPORTACIÓN | H96: EXPORTACIÓN | L96: TRÁNSITO | P96: CABOTAJE | T96: TOTAL BOXES | U96: TOTAL TEUS
D97: 20 pies | F97: 40 pies | H97: 20 pies | J97: 40 pies | L97: 20 pies | N97: 40 pies | P97: 20 pies | R97: 40 pies
D98: full | E98: empty | F98: full | G98: empty | H98: full | I98: empty | J98: full | K98: empty | L98: full | M98: empty | N98: full | O98: empty | P98: full | Q98: empty | R98: full | S98: empty
C99: NORTE | D99: =+D88/D66 -> 50.9% | E99: =+E88/E66 -> -3.4% | F99: 34.6% | G99: -25.1% | H99: 4.5% | I99: 6.4% | J99: -10.9% | K99: 70.4% | L99: 25.8% | N99: 19.6% | R99: -100.0% | T99: =+T88/T66 -> 19.3% | U99: =+U88/U66 -> 20.6%
C100: CENTRO | D100: =+D89/D67 -> 0.2% | E100: 916.0% | F100: -19.0% | G100: 38.1% | H100: -9.6% | I100: -26.1% | J100: -24.1% | K100: -40.5% | L100: -63.0% | M100: 92.6% | N100: -22.4% | O100: 2182.8% | P100: 97.9% | Q100: -31.6% | R100: 113.3% | S100: 30.1% | T100: -16.1% | U100: -17.1%
C101: CENTRO SUR | D101: 32.8% | E101: 17.3% | F101: -24.7% | G101: 62.4% | H101: -34.1% | I101: 116.7% | J101: 17.3% | K101: 84.4% | L101: -49.0% | M101: 3.4% | N101: -26.0% | O101: 6.1% | P101: 26.6% | Q101: 21.6% | R101: -52.6% | S101: -54.9% | T101: 23.0% | U101: 24.3%
C102: SUR
C103: AUSTRAL | D103: =+D92/D70 -> -18.0% | F103: -44.8% | G103: -100.0% | H103: 33.3% | J103: 10.8% | P103: -4.8% | Q103: -10.0% | R103: -30.0% | S103: -41.9% | T103: -23.8% | U103: -25.4%
C104: TOTAL | D104: =+D93/D71 -> 6.1% | E104: =+E93/E71 -> 15.9% | F104: -13.8% | G104: 42.2% | H104: -10.5% | I104: -18.1% | J104: -7.7% | K104: -12.9% | L104: -1.0% | M104: 16.0% | N104: 6.4% | O104: 11.1% | P104: 64.8% | Q104: -21.8% | R104: 53.0% | S104: 22.2% | T104: -2.2% | U104: -2.2%
C107: IMPO + EXPO (BOXES FULL) | H107: =+(D145+F145+H145+J145)/(+D123+F123+H123+J123) -> 4.3% | J107: INDICADORES TERCER TRIMESTRE
C108: IMPO + EXPO (TEUs FULL) | H108: =+((D145+H145)+2*(F145+J145))/((D123+H123)+2*(F123+J123)) -> 4.0%
C109: IMPO + EXPO + TRANS + CABOT (BOXES EMPTY) | H109: =+(E145+G145+I145+K145+M145+O145+Q145+S145)/(+E123+G123+I123+K123+M123+O123+Q123+S123) -> 33.5%
C110: TRANSITO (BOXES) | H110: =+(L145+M145+N145+O145)/+(L123+M123+N123+O123) -> 16.0% | J110: PORCENTAJES DE VARIACIÓN 2023 VS. 2022
C111: CABOTAJE (BOXES) | H111: =+(P145+Q145+R145+S145)/(P123+Q123+R123+S123) -> 20.5%
C112: TEUs TOTALES | H112: =+U145/U123 -> 14.1%
C114: 2022 | D114: CANTIDAD CONTENEDORES JULIO - SEPTIEMBRE 2022 x MACROZONA
C115: MCZ | D115: IMPORTACIÓN | H115: EXPORTACIÓN | L115: TRÁNSITO | P115: CABOTAJE | T115: TOTAL BOXES | U115: TOTAL TEUS
D116: 20 pies | F116: 40 pies | H116: 20 pies | J116: 40 pies | L116: 20 pies | N116: 40 pies | P116: 20 pies | R116: 40 pies
D117: full | E117: empty | F117: full | G117: empty | H117: full | I117: empty | J117: full | K117: empty | L117: full | M117: empty | N117: full | O117: empty | P117: full | Q117: empty | R117: full | S117: empty
C118: NORTE | D118: 2,351 | E118: 9,306 | F118: 16,603 | G118: 10,106 | H118: 9,045 | I118: 1,459 | J118: 14,203 | K118: 17,699 | L118: 7,565 | M118: 3 | N118: 17,925 | O118: 0 | P118: 0 | Q118: 0 | R118: 0 | S118: 0 | T118: =SUM(D118:S118) -> 106,265 | U118: =D118+E118+H118+I118+L118+M118+P118+Q118+(2*(F118+G118+J118+K118+N118+O118+R118+S118)) -> 182,801
C119: CENTRO | D119: 32,201 | E119: 555 | F119: 113,590 | G119: 12,505 | H119: 24,146 | I119: 9,676 | J119: 67,993 | K119: 37,324 | L119: 2,116 | M119: 123 | N119: 4,386 | O119: 240 | P119: 1,340 | Q119: 2,184 | R119: 4,128 | S119: 10,089 | T119: =SUM(D119:S119) -> 322,596 | U119: =D119+E119+H119+I119+L119+M119+P119+Q119+(2*(F119+G119+J119+K119+N119+O119+R119+S119)) -> 572,851
C120: CENTRO SUR | D120: 2,756 | E120: 3,032 | F120: 7,453 | G120: 36,083 | H120: 6,775 | I120: 659 | J120: 59,834 | K120: 4,303 | L120: 65 | M120: 1,083 | N120: 235 | O120: 11,851 | P120: 105 | Q120: 153 | R120: 144 | S120: 362 | T120: 134,893 | U120: 255,158
C121: SUR | D121: 0 | E121: 0 | F121: 0 | G121: 0 | H121: 0 | I121: 0 | J121: 0 | K121: 0 | L121: 0 | M121: 0 | N121: 0 | O121: 0 | P121: 0 | Q121: 0 | R121: 0 | S121: 0 | T121: 0 | U121: 0
C122: AUSTRAL | D122: 109 | E122: 0 | F122: 278 | G122: 0 | H122: 26 | I122: 0 | J122: 375 | K122: 0 | L122: 0 | M122: 0 | N122: 0 | O122: 0 | P122: 216 | Q122: 9 | R122: 729 | S122: 156 | T122: 1,898 | U122: 3,436
C123: TOTAL | D123: =SUM(D118:D122) -> 37,417 | E123: =SUM(E118:E122) -> 12,893 | F123: 137,924 | G123: 58,694 | H123: 39,992 | I123: 11,794 | J123: 142,405 | K123: 59,326 | L123: 9,746 | M123: 1,209 | N123: 22,546 | O123: 12,091 | P123: 1,661 | Q123: 2,346 | R123: 5,001 | S123: 10,607 | T123: =SUM(D123:S123) -> 565,652 | U123: 1,014,246
C125: 2023 | D125: CANTIDAD CONTENEDORES JULIO - SEPTIEMBRE 2023 x MACROZONA
C126: MCZ | D126: IMPORTACIÓN | H126: EXPORTACIÓN | L126: TRÁNSITO | P126: CABOTAJE | T126: TOTAL BOXES | U126: TOTAL TEUS
D127: 20 pies | F127: 40 pies | H127: 20 pies | J127: 40 pies | L127: 20 pies | N127: 40 pies | P127: 20 pies | R127: 40 pies
D128: full | E128: empty | F128: full | G128: empty | H128: full | I128: empty | J128: full | K128: empty | L128: full | M128: empty | N128: full | O128: empty | P128: full | Q128: empty | R128: full | S128: empty
C129: NORTE | D129: 4,740 | E129: 7,012 | F129: 19,547 | G129: 9,219 | H129: 9,084 | I129: 1,956 | J129: 13,634 | K129: 23,144 | L129: 10,836 | M129: 5 | N129: 20,580 | O129: 0 | P129: 2 | Q129: 0 | R129: 0 | S129: 0 | T129: =SUM(D129:S129) -> 119,759 | U129: =D129+E129+H129+I129+L129+M129+P129+Q129+(2*(F129+G129+J129+K129+N129+O129+R129+S129)) -> 205,883
C130: CENTRO | D130: 37,971 | E130: 906 | F130: 103,034 | G130: 23,436 | H130: 21,858 | I130: 12,680 | J130: 63,275 | K130: 36,440 | L130: 1,384 | M130: 966 | N130: 3,110 | O130: 1,023 | P130: 1,413 | Q130: 755 | R130: 4,726 | S130: 14,525 | T130: =SUM(D130:S130) -> 327,502 | U130: =D130+E130+H130+I130+L130+M130+P130+Q130+(2*(F130+G130+J130+K130+N130+O130+R130+S130)) -> 577,071
C131: CENTRO SUR | D131: 4,231 | E131: 1,445 | F131: 6,826 | G131: 68,782 | H131: 4,596 | I131: 3,151 | J131: 83,334 | K131: 4,553 | L131: 120 | M131: 924 | N131: 175 | O131: 13,772 | P131: 173 | Q131: 278 | R131: 337 | S131: 319 | T131: 193,016 | U131: 371,114
C132: SUR | D132: 0 | E132: 0 | F132: 0 | G132: 0 | H132: 0 | I132: 0 | J132: 0 | K132: 0 | L132: 0 | M132: 0 | N132: 0 | O132: 0 | P132: 0 | Q132: 0 | R132: 0 | S132: 0 | T132: 0 | U132: 0
C133: AUSTRAL | D133: 141 | E133: 0 | F133: 315 | G133: 0 | H133: 26 | I133: 0 | J133: 400 | K133: 0 | L133: 0 | M133: 0 | N133: 0 | O133: 0 | P133: 224 | Q133: 37 | R133: 664 | S133: 183 | T133: 1,990 | U133: 3,552
C134: TOTAL | D134: =SUM(D129:D133) -> 47,083 | E134: =SUM(E129:E133) -> 9,363 | F134: 129,722 | G134: 101,437 | H134: 35,564 | I134: 17,787 | J134: 160,643 | K134: 64,137 | L134: 12,340 | M134: 1,895 | N134: 23,865 | O134: 14,795 | P134: 1,812 | Q134: 1,070 | R134: 5,727 | S134: 15,027 | T134: =SUM(D134:S134) -> 642,267 | U134: 1,157,620
C136: DIFERENCIA JULIO - SEPTIEMBRE 2023 vs 2022 (UNIDADES)
C137: MCZ | D137: IMPORTACIÓN | H137: EXPORTACIÓN | L137: TRÁNSITO | P137: CABOTAJE | T137: TOTAL BOXES | U137: TOTAL TEUS
D138: 20 pies | F138: 40 pies | H138: 20 pies | J138: 40 pies | L138: 20 pies | N138: 40 pies | P138: 20 pies | R138: 40 pies
D139: full | E139: empty | F139: full | G139: empty | H139: full | I139: empty | J139: full | K139: empty | L139: full | M139: empty | N139: full | O139: empty | P139: full | Q139: empty | R139: full | S139: empty
C140: NORTE | D140: =D129-D118 -> 2,389 | E140: =E129-E118 -> -2,294 | F140: 2,944 | G140: -887 | H140: 39 | I140: 497 | J140: -569 | K140: 5,445 | L140: 3,271 | M140: 2 | N140: 2,655 | O140: 0 | P140: 2 | Q140: 0 | R140: 0 | S140: 0 | T140: =SUM(D140:S140) -> 13,494 | U140: =D140+E140+H140+I140+L140+M140+P140+Q140+(2*(F140+G140+J140+K140+N140+O140+R140+S140)) -> 23,082
C141: CENTRO | D141: =D130-D119 -> 5,770 | E141: 351 | F141: -10,556 | G141: 10,931 | H141: -2,288 | I141: 3,004 | J141: -4,718 | K141: -884 | L141: -732 | M141: 843 | N141: -1,276 | O141: 783 | P141: 73 | Q141: -1,429 | R141: 598 | S141: 4,436 | T141: =SUM(D141:S141) -> 4,906 | U141: =D141+E141+H141+I141+L141+M141+P141+Q141+(2*(F141+G141+J141+K141+N141+O141+R141+S141)) -> 4,220
C142: CENTRO SUR | D142: 1,475 | E142: -1,587 | F142: -627 | G142: 32,699 | H142: -2,179 | I142: 2,492 | J142: 23,500 | K142: 250 | L142: 55 | M142: -159 | N142: -60 | O142: 1,921 | P142: 68 | Q142: 125 | R142: 193 | S142: -43 | T142: 58,123 | U142: 115,956
C143: SUR | D143: 0 | E143: 0 | F143: 0 | G143: 0 | H143: 0 | I143: 0 | J143: 0 | K143: 0 | L143: 0 | M143: 0 | N143: 0 | O143: 0 | P143: 0 | Q143: 0 | R143: 0 | S143: 0 | T143: 0 | U143: 0
C144: AUSTRAL | D144: 32 | E144: 0 | F144: 37 | G144: 0 | H144: 0 | I144: 0 | J144: 25 | K144: 0 | L144: 0 | M144: 0 | N144: 0 | O144: 0 | P144: 8 | Q144: 28 | R144: -65 | S144: 27 | T144: 92 | U144: 116
C145: TOTAL | D145: =D134-D123 -> 9,666 | E145: -3,530 | F145: -8,202 | G145: 42,743 | H145: -4,428 | I145: 5,993 | J145: 18,238 | K145: 4,811 | L145: 2,594 | M145: 686 | N145: 1,319 | O145: 2,704 | P145: 151 | Q145: -1,276 | R145: 726 | S145: 4,420 | T145: =T134-T123 -> 76,615 | U145: 143,374
C147: DIFERENCIA JULIO - SEPTIEMBRE 2023 vs 2022 (PORCENTAJES)
C148: MCZ | D148: IMPORTACIÓN | H148: EXPORTACIÓN | L148: TRÁNSITO | P148: CABOTAJE | T148: TOTAL BOXES | U148: TOTAL TEUS
D149: 20 pies | F149: 40 pies | H149: 20 pies | J149: 40 pies | L149: 20 pies | N149: 40 pies | P149: 20 pies | R149: 40 pies
D150: full | E150: empty | F150: full | G150: empty | H150: full | I150: empty | J150: full | K150: empty | L150: full | M150: empty | N150: full | O150: empty | P150: full | Q150: empty | R150: full | S150: empty
C151: NORTE | D151: =+D140/D118 -> 101.6% | E151: =+E140/E118 -> -24.7% | F151: 17.7% | G151: -8.8% | H151: 0.4% | I151: 34.1% | J151: -4.0% | K151: 30.8% | L151: 43.2% | N151: 14.8% | T151: =+T140/T118 -> 12.7% | U151: =+U140/U118 -> 12.6%
C152: CENTRO | D152: =+D141/D119 -> 17.9% | E152: 63.2% | F152: -9.3% | G152: 87.4% | H152: -9.5% | I152: 31.0% | J152: -6.9% | K152: -2.4% | L152: -34.6% | M152: 685.4% | N152: -29.1% | O152: 326.3% | P152: 5.4% | Q152: -65.4% | R152: 14.5% | S152: 44.0% | T152: 1.5% | U152: 0.7%
C153: CENTRO SUR | D153: 53.5% | E153: -52.3% | F153: -8.4% | G153: 90.6% | H153: -32.2% | I153: 378.1% | J153: 39.3% | K153: 5.8% | L153: 84.6% | M153: -14.7% | N153: -25.5% | O153: 16.2% | P153: 64.8% | Q153: 81.7% | R153: 134.0% | S153: -11.9% | T153: 43.1% | U153: 45.4%
C154: SUR
C155: AUSTRAL | D155: =+D144/D122 -> 29.4% | F155: 13.3% | H155: 0.0% | J155: 6.7% | P155: 3.7% | Q155: 311.1% | R155: -8.9% | S155: 17.3% | T155: 4.8% | U155: 3.4%
C156: TOTAL | D156: =+D145/D123 -> 25.8% | E156: =+E145/E123 -> -27.4% | F156: -5.9% | G156: 72.8% | H156: -11.1% | I156: 50.8% | J156: 12.8% | K156: 8.1% | L156: 26.6% | M156: 56.7% | N156: 5.9% | O156: 22.4% | P156: 9.1% | Q156: -54.4% | R156: 14.5% | S156: 41.7% | T156: 13.5% | U156: 14.1%
C159: IMPO + EXPO (BOXES FULL) | H159: =+(D197+F197+H197+J197)/(+D175+F175+H175+J175) -> 9.6% | J159: INDICADORES CUARTO TRIMESTRE
C160: IMPO + EXPO (TEUs FULL) | H160: =+((D197+H197)+2*(F197+J197))/((D175+H175)+2*(F175+J175)) -> 9.5%
C161: IMPO + EXPO + TRANS + CABOT (BOXES EMPTY) | H161: =+(E197+G197+I197+K197+M197+O197+Q197+S197)/(+E175+G175+I175+K175+M175+O175+Q175+S175) -> 20.9%
C162: TRANSITO (BOXES) | H162: =+(L197+M197+N197+O197)/+(L175+M175+N175+O175) -> 14.5% | J162: PORCENTAJES DE VARIACIÓN 2023 VS. 2022
C163: CABOTAJE (BOXES) | H163: =+(P197+Q197+R197+S197)/(P175+Q175+R175+S175) -> 37.0%
C164: TEUs TOTALES | H164: =+U197/U175 -> 13.3%
C166: 2022 | D166: CANTIDAD CONTENEDORES OCTUBRE - DICIEMBRE 2022 x MACROZONA
C167: MCZ | D167: IMPORTACIÓN | H167: EXPORTACIÓN | L167: TRÁNSITO | P167: CABOTAJE | T167: TOTAL BOXES | U167: TOTAL TEUS
D168: 20 pies | F168: 40 pies | H168: 20 pies | J168: 40 pies | L168: 20 pies | N168: 40 pies | P168: 20 pies | R168: 40 pies
D169: full | E169: empty | F169: full | G169: empty | H169: full | I169: empty | J169: full | K169: empty | L169: full | M169: empty | N169: full | O169: empty | P169: full | Q169: empty | R169: full | S169: empty
C170: NORTE | D170: 2,998 | E170: 8,075 | F170: 15,917 | G170: 8,643 | H170: 9,515 | I170: 1,843 | J170: 13,540 | K170: 18,917 | L170: 8,182 | M170: 0 | N170: 17,618 | O170: 0 | P170: 1 | Q170: 0 | R170: 0 | S170: 0 | T170: =SUM(D170:S170) -> 105,249 | U170: =D170+E170+H170+I170+L170+M170+P170+Q170+(2*(F170+G170+J170+K170+N170+O170+R170+S170)) -> 179,884
C171: CENTRO | D171: 28,524 | E171: 4,232 | F171: 94,392 | G171: 24,161 | H171: 21,939 | I171: 5,961 | J171: 72,450 | K171: 31,245 | L171: 2,180 | M171: 721 | N171: 5,850 | O171: 150 | P171: 1,137 | Q171: 2,342 | R171: 3,605 | S171: 6,019 | T171: =SUM(D171:S171) -> 304,908 | U171: =D171+E171+H171+I171+L171+M171+P171+Q171+(2*(F171+G171+J171+K171+N171+O171+R171+S171)) -> 542,780
C172: CENTRO SUR | D172: 3,725 | E172: 3,316 | F172: 5,972 | G172: 39,578 | H172: 4,918 | I172: 567 | J172: 56,105 | K172: 2,213 | L172: 408 | M172: 877 | N172: 253 | O172: 9,410 | P172: 147 | Q172: 293 | R172: 271 | S172: 517 | T172: 128,570 | U172: 242,889
C173: SUR | D173: 0 | E173: 0 | F173: 0 | G173: 0 | H173: 0 | I173: 0 | J173: 0 | K173: 0 | L173: 0 | M173: 0 | N173: 0 | O173: 0 | P173: 0 | Q173: 0 | R173: 0 | S173: 0 | T173: 0 | U173: 0
C174: AUSTRAL | D174: 217 | E174: 0 | F174: 351 | G174: 0 | H174: 20 | I174: 0 | J174: 302 | K174: 0 | L174: 0 | M174: 0 | N174: 0 | O174: 0 | P174: 271 | Q174: 27 | R174: 928 | S174: 75 | T174: 2,191 | U174: 3,847
C175: TOTAL | D175: =SUM(D170:D174) -> 35,464 | E175: =SUM(E170:E174) -> 15,623 | F175: 116,632 | G175: 72,382 | H175: 36,392 | I175: 8,371 | J175: 142,397 | K175: 52,375 | L175: 10,770 | M175: 1,598 | N175: 23,721 | O175: 9,560 | P175: 1,556 | Q175: 2,662 | R175: 4,804 | S175: 6,611 | T175: =SUM(D175:S175) -> 540,918 | U175: 969,400
C177: 2023 | D177: CANTIDAD CONTENEDORES OCTUBRE - DICIEMBRE 2023 x MACROZONA
C178: MCZ | D178: IMPORTACIÓN | H178: EXPORTACIÓN | L178: TRÁNSITO | P178: CABOTAJE | T178: TOTAL BOXES | U178: TOTAL TEUS
D179: 20 pies | F179: 40 pies | H179: 20 pies | J179: 40 pies | L179: 20 pies | N179: 40 pies | P179: 20 pies | R179: 40 pies
D180: full | E180: empty | F180: full | G180: empty | H180: full | I180: empty | J180: full | K180: empty | L180: full | M180: empty | N180: full | O180: empty | P180: full | Q180: empty | R180: full | S180: empty
C181: NORTE | D181: 3,789 | E181: 7,153 | F181: 18,534 | G181: 8,197 | H181: 10,239 | I181: 2,402 | J181: 12,626 | K181: 22,712 | L181: 9,992 | M181: 0 | N181: 21,471 | O181: 1 | P181: 0 | Q181: 0 | R181: 0 | S181: 0 | T181: =SUM(D181:S181) -> 117,116 | U181: =D181+E181+H181+I181+L181+M181+P181+Q181+(2*(F181+G181+J181+K181+N181+O181+R181+S181)) -> 200,657
C182: CENTRO | D182: 34,005 | E182: 547 | F182: 100,272 | G182: 23,132 | H182: 22,792 | I182: 12,367 | J182: 67,965 | K182: 42,583 | L182: 1,495 | M182: 458 | N182: 3,657 | O182: 1,189 | P182: 1,268 | Q182: 1,227 | R182: 3,964 | S182: 13,077 | T182: =SUM(D182:S182) -> 329,998 | U182: =D182+E182+H182+I182+L182+M182+P182+Q182+(2*(F182+G182+J182+K182+N182+O182+R182+S182)) -> 585,837
C183: CENTRO SUR | D183: 4,306 | E183: 1,417 | F183: 7,085 | G183: 46,785 | H183: 4,142 | I183: 3,206 | J183: 75,881 | K183: 3,755 | L183: 45 | M183: 1,120 | N183: 176 | O183: 12,653 | P183: 147 | Q183: 173 | R183: 164 | S183: 357 | T183: 161,412 | U183: 308,268
C184: SUR | D184: 0 | E184: 0 | F184: 0 | G184: 0 | H184: 0 | I184: 0 | J184: 0 | K184: 0 | L184: 0 | M184: 0 | N184: 0 | O184: 0 | P184: 0 | Q184: 0 | R184: 0 | S184: 0 | T184: 0 | U184: 0
C185: AUSTRAL | D185: 186 | E185: 0 | F185: 493 | G185: 0 | H185: 22 | I185: 0 | J185: 292 | K185: 0 | L185: 0 | M185: 0 | N185: 0 | O185: 0 | P185: 204 | Q185: 35 | R185: 746 | S185: 54 | T185: 2,032 | U185: 3,617
C186: TOTAL | D186: =SUM(D181:D185) -> 42,286 | E186: =SUM(E181:E185) -> 9,117 | F186: 126,384 | G186: 78,114 | H186: 37,195 | I186: 17,975 | J186: 156,764 | K186: 69,050 | L186: 11,532 | M186: 1,578 | N186: 25,304 | O186: 13,843 | P186: 1,619 | Q186: 1,435 | R186: 4,874 | S186: 13,488 | T186: =SUM(D186:S186) -> 610,558 | U186: 1,098,379
C188: DIFERENCIA OCTUBRE - DICIEMBRE 2023 vs 2022 (UNIDADES)
C189: MCZ | D189: IMPORTACIÓN | H189: EXPORTACIÓN | L189: TRÁNSITO | P189: CABOTAJE | T189: TOTAL BOXES | U189: TOTAL TEUS
D190: 20 pies | F190: 40 pies | H190: 20 pies | J190: 40 pies | L190: 20 pies | N190: 40 pies | P190: 20 pies | R190: 40 pies
D191: full | E191: empty | F191: full | G191: empty | H191: full | I191: empty | J191: full | K191: empty | L191: full | M191: empty | N191: full | O191: empty | P191: full | Q191: empty | R191: full | S191: empty
C192: NORTE | D192: =D181-D170 -> 791 | E192: =E181-E170 -> -922 | F192: 2,617 | G192: -446 | H192: 724 | I192: 559 | J192: -914 | K192: 3,795 | L192: 1,810 | M192: 0 | N192: 3,853 | O192: 1 | P192: -1 | Q192: 0 | R192: 0 | S192: 0 | T192: =SUM(D192:S192) -> 11,867 | U192: =D192+E192+H192+I192+L192+M192+P192+Q192+(2*(F192+G192+J192+K192+N192+O192+R192+S192)) -> 20,773
C193: CENTRO | D193: =D182-D171 -> 5,481 | E193: -3,685 | F193: 5,880 | G193: -1,029 | H193: 853 | I193: 6,406 | J193: -4,485 | K193: 11,338 | L193: -685 | M193: -263 | N193: -2,193 | O193: 1,039 | P193: 131 | Q193: -1,115 | R193: 359 | S193: 7,058 | T193: =SUM(D193:S193) -> 25,090 | U193: =D193+E193+H193+I193+L193+M193+P193+Q193+(2*(F193+G193+J193+K193+N193+O193+R193+S193)) -> 43,057
C194: CENTRO SUR | D194: 581 | E194: -1,899 | F194: 1,113 | G194: 7,207 | H194: -776 | I194: 2,639 | J194: 19,776 | K194: 1,542 | L194: -363 | M194: 243 | N194: -77 | O194: 3,243 | P194: 0 | Q194: -120 | R194: -107 | S194: -160 | T194: 32,842 | U194: 65,379
C195: SUR | D195: 0 | E195: 0 | F195: 0 | G195: 0 | H195: 0 | I195: 0 | J195: 0 | K195: 0 | L195: 0 | M195: 0 | N195: 0 | O195: 0 | P195: 0 | Q195: 0 | R195: 0 | S195: 0 | T195: 0 | U195: 0
C196: AUSTRAL | D196: -31 | E196: 0 | F196: 142 | G196: 0 | H196: 2 | I196: 0 | J196: -10 | K196: 0 | L196: 0 | M196: 0 | N196: 0 | O196: 0 | P196: -67 | Q196: 8 | R196: -182 | S196: -21 | T196: -159 | U196: -230
C197: TOTAL | D197: =D186-D175 -> 6,822 | E197: -6,506 | F197: 9,752 | G197: 5,732 | H197: 803 | I197: 9,604 | J197: 14,367 | K197: 16,675 | L197: 762 | M197: -20 | N197: 1,583 | O197: 4,283 | P197: 63 | Q197: -1,227 | R197: 70 | S197: 6,877 | T197: =T186-T175 -> 69,640 | U197: 128,979
C199: DIFERENCIA OCTUBRE - DICIEMBRE 2023 vs 2022 (PORCENTAJES)
C200: MCZ | D200: IMPORTACIÓN | H200: EXPORTACIÓN | L200: TRÁNSITO | P200: CABOTAJE | T200: TOTAL BOXES | U200: TOTAL TEUS
D201: 20 pies | F201: 40 pies | H201: 20 pies | J201: 40 pies | L201: 20 pies | N201: 40 pies | P201: 20 pies | R201: 40 pies
D202: full | E202: empty | F202: full | G202: empty | H202: full | I202: empty | J202: full | K202: empty | L202: full | M202: empty | N202: full | O202: empty | P202: full | Q202: empty | R202: full | S202: empty
C203: NORTE | D203: =+D192/D170 -> 26.4% | E203: =+E192/E170 -> -11.4% | F203: 16.4% | G203: -5.2% | H203: 7.6% | I203: 30.3% | J203: -6.8% | K203: 20.1% | L203: 22.1% | N203: =+N192/N170 -> 21.9% | T203: =+T192/T170 -> 11.3% | U203: =+U192/U170 -> 11.5%
C204: CENTRO | D204: =+D193/D171 -> 19.2% | E204: -87.1% | F204: 6.2% | G204: -4.3% | H204: 3.9% | I204: 107.5% | J204: -6.2% | K204: 36.3% | L204: -31.4% | M204: -36.5% | N204: -37.5% | O204: 692.7% | P204: 11.5% | Q204: -47.6% | R204: 10.0% | S204: 117.3% | T204: 8.2% | U204: 7.9%
C205: CENTRO SUR | D205: 15.6% | E205: -57.3% | F205: 18.6% | G205: 18.2% | H205: -15.8% | I205: 465.4% | J205: 35.2% | K205: 69.7% | L205: -89.0% | M205: 27.7% | N205: -30.4% | O205: 34.5% | P205: 0.0% | Q205: -41.0% | R205: -39.5% | S205: -30.9% | T205: 25.5% | U205: 26.9%
C206: SUR
C207: AUSTRAL | D207: =+D196/D174 -> -14.3% | F207: =+F196/F174 -> 40.5% | H207: 10.0% | J207: =+J196/J174 -> -3.3% | P207: -24.7% | Q207: 29.6% | R207: -19.6% | S207: -28.0% | T207: -7.3% | U207: -6.0%
C208: TOTAL | D208: =+D197/D175 -> 19.2% | E208: =+E197/E175 -> -41.6% | F208: 8.4% | G208: 7.9% | H208: 2.2% | I208: 114.7% | J208: 10.1% | K208: 31.8% | L208: 7.1% | M208: -1.3% | N208: 6.7% | O208: 44.8% | P208: 4.0% | Q208: -46.1% | R208: 1.5% | S208: 104.0% | T208: 12.9% | U208: 13.3%
C211: IMPO + EXPO (BOXES FULL) | H211: =+(D249+F249+H249+J249)/(+D227+F227+H227+J227) -> -4.5% | J211: INDICADORES ENERO - DICIEMBRE
C212: IMPO + EXPO (TEUs FULL) | H212: =+((D249+H249)+2*(F249+J249))/((D227+H227)+2*(F227+J227)) -> -4.9%
C213: IMPO + EXPO + TRANS + CABOT (BOXES EMPTY) | H213: =+(E249+G249+I249+K249+M249+O249+Q249+S249)/+(E227+G227+I227+K227+M227+O227+Q227+S227) -> 21.0%
C214: TRANSITO (BOXES) | H214: =+(L249+M249+N249+O249)/+(L227+M227+N227+O227) -> 12.8% | J214: PORCENTAJES DE VARIACIÓN 2023 VS. 2022
C215: CABOTAJE (BOXES) | H215: =+(P249+Q249+R249+S249)/(P227+Q227+R227+S227) -> 9.0%
C216: TEUs TOTALES | H216: =+U249/U227 -> 4.0%
C218: 2022 | D218: CANTIDAD CONTENEDORES ENERO - DICIEMBRE 2022 x MACROZONA
C219: MCZ | D219: IMPORTACIÓN | H219: EXPORTACIÓN | L219: TRÁNSITO | P219: CABOTAJE | T219: TOTAL BOXES | U219: TOTAL TEUS
D220: 20 pies | F220: 40 pies | H220: 20 pies | J220: 40 pies | L220: 20 pies | N220: 40 pies | P220: 20 pies | R220: 40 pies
D221: full | E221: empty | F221: full | G221: empty | H221: full | I221: empty | J221: full | K221: empty | L221: full | M221: empty | N221: full | O221: empty | P221: full | Q221: empty | R221: full | S221: empty
C222: NORTE | D222: =D14+D66+D118+D170 -> 10,141 | E222: =E14+E66+E118+E170 -> 33,772 | F222: 58,968 | G222: 32,603 | H222: 36,978 | I222: 6,075 | J222: 49,619 | K222: 62,812 | L222: 29,358 | M222: 3 | N222: 64,974 | O222: 0 | P222: 1 | Q222: 0 | R222: 29 | S222: 0 | T222: 385,333 | U222: 654,338
C223: CENTRO | D223: =D15+D67+D119+D171 -> 130,021 | E223: 5,108 | F223: 458,350 | G223: 65,377 | H223: 91,094 | I223: 35,999 | J223: 314,204 | K223: 160,092 | L223: 9,990 | M223: 997 | N223: 22,033 | O223: 1,283 | P223: 4,939 | Q223: 7,186 | R223: 14,028 | S223: 37,965 | T223: 1,358,666 | U223: 2,431,998
C224: CENTRO SUR | D224: =D16+D68+D120+D172 -> 15,744 | E224: 10,217 | F224: 35,463 | G224: 127,400 | H224: 24,439 | I224: 2,834 | J224: 233,707 | K224: 11,993 | L224: 699 | M224: 3,429 | N224: 1,751 | O224: 46,007 | P224: 537 | Q224: 815 | R224: 1,119 | S224: 2,481 | T224: 518,635 | U224: 978,556
C225: SUR | D225: =D17+D69+D121+D173 -> 0 | E225: 0 | F225: 0 | G225: 0 | H225: 0 | I225: 0 | J225: 0 | K225: 0 | L225: 0 | M225: 0 | N225: 0 | O225: 0 | P225: 0 | Q225: 0 | R225: 0 | S225: 0 | T225: 0 | U225: 0
C226: AUSTRAL | D226: =D18+D70+D122+D174 -> 628 | E226: 0 | F226: 1,644 | G226: 7 | H226: 74 | I226: 0 | J226: 1,422 | K226: 5 | L226: 0 | M226: 0 | N226: 0 | O226: 0 | P226: 1,217 | Q226: 83 | R226: 4,107 | S226: 590 | T226: 9,777 | U226: 17,552
C227: TOTAL | D227: =SUM(D222:D226) -> 156,534 | E227: =SUM(E222:E226) -> 49,097 | F227: 554,425 | G227: 225,387 | H227: 152,585 | I227: 44,908 | J227: 598,952 | K227: 234,902 | L227: 40,047 | M227: 4,429 | N227: 88,758 | O227: 47,290 | P227: 6,694 | Q227: 8,084 | R227: 19,283 | S227: 41,036 | T227: =SUM(D227:S227) -> 2,272,411 | U227: =D227+E227+H227+I227+L227+M227+P227+Q227+(2*(F227+G227+J227+K227+N227+O227+R227+S227)) -> 4,082,444
... 30 more rows

Sheet 2022 VS 2021
C3: IMPO + EXPO (BOXES FULL) | H3: =+(D41+F41+H41+J41)/(+D19+F19+H19+J19) -> 0.1% | J3: INDICADORES PRIMER TRIMESTRE
C4: IMPO + EXPO (TEUs FULL) | H4: =+((D41+H41)+2*(F41+J41))/((D19+H19)+2*(F19+J19)) -> 2.7%
C5: IMPO + EXPO + TRANS + CABOT (BOXES EMPTY) | H5: =+(E41+G41+I41+K41+M41++O41+Q41+S41)/(+E19+G19+I19+K19+M19+O19+Q19+S19) -> -18.3%
C6: TRANSITO (BOXES) | H6: =+(L41+M41+N41+O41)/+(L19+M19+N19+O19) -> -18.5% | J6: PORCENTAJES DE VARIACIÓN 2022 VS. 2021
C7: CABOTAJE (BOXES) | H7: =+(P41+Q41+R41+S41)/(P19+Q19+R19+S19) -> -3.2%
C8: TEUs TOTALES | H8: =+U41/U19 -> -4.2%
C10: 2021 | D10: CANTIDAD CONTENEDORES ENERO - MARZO 2021 x MACROZONA
C11: MCZ | D11: IMPORTACIÓN | H11: EXPORTACIÓN | L11: TRÁNSITO | P11: CABOTAJE | T11: TOTAL BOXES | U11: TOTAL TEUS
D12: 20 pies | F12: 40 pies | H12: 20 pies | J12: 40 pies | L12: 20 pies | N12: 40 pies | P12: 20 pies | R12: 40 pies
D13: full | E13: empty | F13: full | G13: empty | H13: full | I13: empty | J13: full | K13: empty | L13: full | M13: empty | N13: full | O13: empty | P13: full | Q13: empty | R13: full | S13: empty
C14: NORTE | D14: 3,757 | E14: 7,134 | F14: 16,753 | G14: 5,679 | H14: 11,078 | I14: 627 | J14: 10,186 | K14: 18,413 | L14: 9,854 | M14: 8 | N14: 16,183 | O14: 0 | P14: 0 | Q14: 0 | R14: 20 | S14: 0 | T14: =SUM(D14:S14) -> 99,692 | U14: =D14+E14+H14+I14+L14+M14+P14+Q14+(2*(F14+G14+J14+K14+N14+O14+R14+S14)) -> 166,926
C15: CENTRO | D15: 46,456 | E15: 630 | F15: 121,275 | G15: 22,520 | H15: 22,322 | I15: 9,803 | J15: 82,687 | K15: 39,559 | L15: 2,448 | M15: 0 | N15: 5,766 | O15: 71 | P15: 580 | Q15: 4,377 | R15: 1,643 | S15: 13,597 | T15: =SUM(D15:S15) -> 373,734 | U15: =D15+E15+H15+I15+L15+M15+P15+Q15+(2*(F15+G15+J15+K15+N15+O15+R15+S15)) -> 660,852
C16: CENTRO SUR | D16: 4,085 | E16: 4,720 | F16: 7,207 | G16: 34,668 | H16: 9,630 | I16: 365 | J16: 57,028 | K16: 1,289 | L16: 1,055 | M16: 1,405 | N16: 1,445 | O16: 14,145 | P16: 189 | Q16: 383 | R16: 219 | S16: 1,060 | T16: 138,893 | U16: 255,954
C17: SUR | D17: 0 | E17: 0 | F17: 0 | G17: 0 | H17: 0 | I17: 0 | J17: 0 | K17: 0 | L17: 0 | M17: 0 | N17: 0 | O17: 0 | P17: 0 | Q17: 0 | R17: 126 | S17: 56 | T17: 182 | U17: 364
C18: AUSTRAL | D18: 337 | E18: 0 | F18: 421 | G18: 12 | H18: 68 | I18: 0 | J18: 254 | K18: 2 | L18: 0 | M18: 0 | N18: 0 | O18: 0 | P18: 383 | Q18: 18 | R18: 872 | S18: 171 | T18: 2,538 | U18: 4,270
C19: TOTAL | D19: =SUM(D14:D18) -> 54,635 | E19: =SUM(E14:E18) -> 12,484 | F19: 145,656 | G19: 62,879 | H19: 43,098 | I19: 10,795 | J19: 150,155 | K19: 59,263 | L19: 13,357 | M19: 1,413 | N19: 23,394 | O19: 14,216 | P19: 1,152 | Q19: 4,778 | R19: 2,880 | S19: 14,884 | T19: =SUM(D19:S19) -> 615,039 | U19: 1,088,366
C21: 2022 | D21: CANTIDAD CONTENEDORES ENERO - MARZO 2022 x MACROZONA
C22: MCZ | D22: IMPORTACIÓN | H22: EXPORTACIÓN | L22: TRÁNSITO | P22: CABOTAJE | T22: TOTAL BOXES | U22: TOTAL TEUS
D23: 20 pies | F23: 40 pies | H23: 20 pies | J23: 40 pies | L23: 20 pies | N23: 40 pies | P23: 20 pies | R23: 40 pies
D24: full | E24: empty | F24: full | G24: empty | H24: full | I24: empty | J24: full | K24: empty | L24: full | M24: empty | N24: full | O24: empty | P24: full | Q24: empty | R24: full | S24: empty
C25: NORTE | D25: 2,212 | E25: 8,676 | F25: 12,035 | G25: 5,769 | H25: 9,490 | I25: 1,501 | J25: 10,031 | K25: 12,676 | L25: 6,441 | M25: 0 | N25: 13,794 | O25: 0 | P25: 0 | Q25: 0 | R25: 0 | S25: 0 | T25: =SUM(D25:S25) -> 82,625 | U25: =D25+E25+H25+I25+L25+M25+P25+Q25+(2*(F25+G25+J25+K25+N25+O25+R25+S25)) -> 136,930
C26: CENTRO | D26: 36,005 | E26: 158 | F26: 134,175 | G26: 13,705 | H26: 20,127 | I26: 5,699 | J26: 84,334 | K26: 42,266 | L26: 2,680 | M26: 4 | N26: 5,304 | O26: 864 | P26: 1,472 | Q26: 1,749 | R26: 3,752 | S26: 12,828 | T26: =SUM(D26:S26) -> 365,122 | U26: =D26+E26+H26+I26+L26+M26+P26+Q26+(2*(F26+G26+J26+K26+N26+O26+R26+S26)) -> 662,350
C27: CENTRO SUR | D27: 6,034 | E27: 2,135 | F27: 14,704 | G27: 21,667 | H27: 6,211 | I27: 962 | J27: 57,821 | K27: 3,058 | L27: 124 | M27: 564 | N27: 686 | O27: 12,253 | P27: 116 | Q27: 175 | R27: 242 | S27: 891 | T27: 127,643 | U27: 238,965
C28: SUR | D28: 0 | E28: 0 | F28: 0 | G28: 0 | H28: 0 | I28: 0 | J28: 0 | K28: 0 | L28: 0 | M28: 0 | N28: 0 | O28: 0 | P28: 0 | Q28: 0 | R28: 0 | S28: 0 | T28: 0 | U28: 0
C29: AUSTRAL | D29: 130 | E29: 0 | F29: 477 | G29: 0 | H29: 22 | I29: 0 | J29: 301 | K29: 0 | L29: 0 | M29: 0 | N29: 0 | O29: 0 | P29: 352 | Q29: 7 | R29: 1,244 | S29: 101 | T29: 2,634 | U29: 4,757
C30: TOTAL | D30: =SUM(D25:D29) -> 44,381 | E30: =SUM(E25:E29) -> 10,969 | F30: 161,391 | G30: 41,141 | H30: 35,850 | I30: 8,162 | J30: 152,487 | K30: 58,000 | L30: 9,245 | M30: 568 | N30: 19,784 | O30: 13,117 | P30: 1,940 | Q30: 1,931 | R30: 5,238 | S30: 13,820 | T30: =SUM(D30:S30) -> 578,024 | U30: =D30+E30+H30+I30+L30+M30+P30+Q30+(2*(F30+G30+J30+K30+N30+O30+R30+S30)) -> 1,043,002
C32: DIFERENCIA ENERO - MARZO 2022 vs 2021 (UNIDADES)
C33: MCZ | D33: IMPORTACIÓN | H33: EXPORTACIÓN | L33: TRÁNSITO | P33: CABOTAJE | T33: TOTAL BOXES | U33: TOTAL TEUS
D34: 20 pies | F34: 40 pies | H34: 20 pies | J34: 40 pies | L34: 20 pies | N34: 40 pies | P34: 20 pies | R34: 40 pies
D35: full | E35: empty | F35: full | G35: empty | H35: full | I35: empty | J35: full | K35: empty | L35: full | M35: empty | N35: full | O35: empty | P35: full | Q35: empty | R35: full | S35: empty
C36: NORTE | D36: =D25-D14 -> -1,545 | E36: =E25-E14 -> 1,542 | F36: -4,718 | G36: 90 | H36: -1,588 | I36: 874 | J36: -155 | K36: -5,737 | L36: -3,413 | M36: -8 | N36: -2,389 | O36: 0 | P36: 0 | Q36: 0 | R36: -20 | S36: 0 | T36: =SUM(D36:S36) -> -17,067 | U36: =D36+E36+H36+I36+L36+M36+P36+Q36+(2*(F36+G36+J36+K36+N36+O36+R36+S36)) -> -29,996
C37: CENTRO | D37: =D26-D15 -> -10,451 | E37: -472 | F37: 12,900 | G37: -8,815 | H37: -2,195 | I37: -4,104 | J37: 1,647 | K37: 2,707 | L37: 232 | M37: 4 | N37: -462 | O37: 793 | P37: 892 | Q37: -2,628 | R37: 2,109 | S37: -769 | T37: =SUM(D37:S37) -> -8,612 | U37: =D37+E37+H37+I37+L37+M37+P37+Q37+(2*(F37+G37+J37+K37+N37+O37+R37+S37)) -> 1,498
C38: CENTRO SUR | D38: =D27-D16 -> 1,949 | E38: -2,585 | F38: 7,497 | G38: -13,001 | H38: -3,419 | I38: 597 | J38: 793 | K38: 1,769 | L38: -931 | M38: -841 | N38: -759 | O38: -1,892 | P38: -73 | Q38: -208 | R38: 23 | S38: -169 | T38: -11,250 | U38: -16,989
C39: SUR | D39: =D28-D17 -> 0 | E39: 0 | F39: 0 | G39: 0 | H39: 0 | I39: 0 | J39: 0 | K39: 0 | L39: 0 | M39: 0 | N39: 0 | O39: 0 | P39: 0 | Q39: 0 | R39: -126 | S39: -56 | T39: -182 | U39: -364
C40: AUSTRAL | D40: =D29-D18 -> -207 | E40: 0 | F40: 56 | G40: -12 | H40: -46 | I40: 0 | J40: 47 | K40: -2 | L40: 0 | M40: 0 | N40: 0 | O40: 0 | P40: -31 | Q40: -11 | R40: 372 | S40: -70 | T40: 96 | U40: 487
C41: TOTAL | D41: =D30-D19 -> -10,254 | E41: =E30-E19 -> -1,515 | F41: 15,735 | G41: -21,738 | H41: -7,248 | I41: -2,633 | J41: 2,332 | K41: -1,263 | L41: -4,112 | M41: -845 | N41: -3,610 | O41: -1,099 | P41: 788 | Q41: -2,847 | R41: 2,358 | S41: -1,064 | T41: -37,015 | U41: -45,364
C43: DIFERENCIA ENERO - MARZO 2022 vs 2021 (PORCENTAJES)
C44: MCZ | D44: IMPORTACIÓN | H44: EXPORTACIÓN | L44: TRÁNSITO | P44: CABOTAJE | T44: TOTAL BOXES | U44: TOTAL TEUS
D45: 20 pies | F45: 40 pies | H45: 20 pies | J45: 40 pies | L45: 20 pies | N45: 40 pies | P45: 20 pies | R45: 40 pies
D46: full | E46: empty | F46: full | G46: empty | H46: full | I46: empty | J46: full | K46: empty | L46: full | M46: empty | N46: full | O46: empty | P46: full | Q46: empty | R46: full | S46: empty
C47: NORTE | D47: =+D36/D14 -> -41.1% | E47: =+E36/E14 -> 21.6% | F47: -28.2% | G47: 1.6% | H47: -14.3% | I47: 139.4% | J47: -1.5% | K47: -31.2% | L47: -34.6% | N47: -14.8% | R47: -100.0% | T47: =+T36/T14 -> -17.1% | U47: =+U36/U14 -> -18.0%
C48: CENTRO | D48: =+D37/D15 -> -22.5% | E48: -74.9% | F48: 10.6% | G48: -39.1% | H48: -9.8% | I48: -41.9% | J48: 2.0% | K48: 6.8% | L48: 9.5% | N48: -8.0% | O48: 1116.9% | P48: 153.8% | Q48: -60.0% | R48: 128.4% | S48: -5.7% | T48: =+T37/T15 -> -2.3% | U48: 0.2%
C49: CENTRO SUR | D49: =+D38/D16 -> 47.7% | E49: -54.8% | F49: 104.0% | G49: -37.5% | H49: -35.5% | I49: 163.6% | J49: 1.4% | K49: 137.2% | L49: -88.2% | M49: -59.9% | N49: -52.5% | O49: -13.4% | P49: -38.6% | Q49: -54.3% | R49: 10.5% | S49: -15.9% | T49: =+T38/T16 -> -8.1% | U49: -6.6%
C50: SUR | P50: =+P39/P17 ->  | R50: -100.0% | S50: -100.0% | T50: =+T39/T17 -> -100.0% | U50: -100.0%
C51: AUSTRAL | D51: =+D40/D18 -> -61.4% | F51: 13.3% | G51: -100.0% | H51: -67.6% | J51: 18.5% | P51: -8.1% | Q51: -61.1% | R51: 42.7% | S51: -40.9% | T51: =+T40/T18 -> 3.8% | U51: 11.4%
C52: TOTAL | D52: =+D41/D19 -> -18.8% | E52: =+E41/E19 -> -12.1% | F52: 10.8% | G52: -34.6% | H52: -16.8% | I52: -24.4% | J52: 1.6% | K52: -2.1% | L52: -30.8% | M52: -59.8% | N52: -15.4% | O52: -7.7% | P52: 68.4% | Q52: -59.6% | R52: 81.9% | S52: -7.1% | T52: =+T41/T19 -> -6.0% | U52: =+U41/U19 -> -4.2%
C55: IMPO + EXPO (BOXES FULL) | H55: =+(D93+F93+H93+J93)/(+D71+F71+H71+J71) -> -0.7% | J55: INDICADORES SEGUNDO TRIMESTRE
C56: IMPO + EXPO (TEUs FULL) | H56: =+((D93+H93)+2*(F93+J93))/((D71+H71)+2*(F71+J71)) -> 1.1%
C57: IMPO + EXPO + TRANS + CABOT (BOXES EMPTY) | H57: =+(E93+G93+I93+K93+M93+O93+Q93+S93)/(+E71+G71+I71+K71+M71+O71+Q71+S71) -> 12.5%
C58: TRANSITO (BOXES) | H58: =+(L93+M93+N93+O93)/+(L71+M71+N71+O71) -> 4.7% | J58: PORCENTAJES DE VARIACIÓN 2022 VS. 2021
C59: CABOTAJE (BOXES) | H59: =+(P93+Q93+R93+S93)/(P71+Q71+R71+S71) -> 35.8%
C60: TEUs TOTALES | H60: =+U93/U71 -> 4.8%
C62: 2021 | D62: CANTIDAD CONTENEDORES ABRIL - JUNIO 2021 x MACROZONA
C63: MCZ | D63: IMPORTACIÓN | H63: EXPORTACIÓN | L63: TRÁNSITO | P63: CABOTAJE | T63: TOTAL BOXES | U63: TOTAL TEUS
D64: 20 pies | F64: 40 pies | H64: 20 pies | J64: 40 pies | L64: 20 pies | N64: 40 pies | P64: 20 pies | R64: 40 pies
D65: full | E65: empty | F65: full | G65: empty | H65: full | I65: empty | J65: full | K65: empty | L65: full | M65: empty | N65: full | O65: empty | P65: full | Q65: empty | R65: full | S65: empty
C66: NORTE | D66: 3,215 | E66: 8,098 | F66: 15,383 | G66: 5,854 | H66: 10,106 | I66: 702 | J66: 10,960 | K66: 14,421 | L66: 8,324 | M66: 0 | N66: 15,439 | O66: 0 | P66: 34 | Q66: 0 | R66: 29 | S66: 0 | T66: =SUM(D66:S66) -> 92,565 | U66: =D66+E66+H66+I66+L66+M66+P66+Q66+(2*(F66+G66+J66+K66+N66+O66+R66+S66)) -> 154,651
C67: CENTRO | D67: 41,403 | E67: 111 | F67: 115,025 | G67: 16,202 | H67: 24,922 | I67: 14,267 | J67: 81,900 | K67: 39,624 | L67: 2,909 | M67: 0 | N67: 5,856 | O67: 168 | P67: 480 | Q67: 1,426 | R67: 1,862 | S67: 5,523 | T67: =SUM(D67:S67) -> 351,678 | U67: =D67+E67+H67+I67+L67+M67+P67+Q67+(2*(F67+G67+J67+K67+N67+O67+R67+S67)) -> 617,838
C68: CENTRO SUR | D68: 3,833 | E68: 2,018 | F68: 7,621 | G68: 26,059 | H68: 8,452 | I68: 599 | J68: 58,643 | K68: 2,460 | L68: 95 | M68: 698 | N68: 174 | O68: 10,823 | P68: 125 | Q68: 204 | R68: 182 | S68: 1,061 | T68: 123,047 | U68: 230,070
C69: SUR | D69: 0 | E69: 0 | F69: 0 | G69: 0 | H69: 0 | I69: 0 | J69: 0 | K69: 0 | L69: 0 | M69: 0 | N69: 0 | O69: 0 | P69: 0 | Q69: 0 | R69: 0 | S69: 0 | T69: 0 | U69: 0
C70: AUSTRAL | D70: 218 | E70: 0 | F70: 374 | G70: 7 | H70: 4 | I70: 0 | J70: 334 | K70: 0 | L70: 0 | M70: 0 | N70: 0 | O70: 0 | P70: 306 | Q70: 9 | R70: 1,079 | S70: 140 | T70: 2,471 | U70: 4,405
C71: TOTAL | D71: =SUM(D66:D70) -> 48,669 | E71: =SUM(E66:E70) -> 10,227 | F71: 138,403 | G71: 48,122 | H71: 43,484 | I71: 15,568 | J71: 151,837 | K71: 56,505 | L71: 11,328 | M71: 698 | N71: 21,469 | O71: 10,991 | P71: 945 | Q71: 1,639 | R71: 3,152 | S71: 6,724 | T71: =SUM(D71:S71) -> 569,761 | U71: 1,006,964
C73: 2022 | D73: CANTIDAD CONTENEDORES ABRIL - JUNIO 2022 x MACROZONA
C74: MCZ | D74: IMPORTACIÓN | H74: EXPORTACIÓN | L74: TRÁNSITO | P74: CABOTAJE | T74: TOTAL BOXES | U74: TOTAL TEUS
D75: 20 pies | F75: 40 pies | H75: 20 pies | J75: 40 pies | L75: 20 pies | N75: 40 pies | P75: 20 pies | R75: 40 pies | W75: 1
D76: full | E76: empty | F76: full | G76: empty | H76: full | I76: empty | J76: full | K76: empty | L76: full | M76: empty | N76: full | O76: empty | P76: full | Q76: empty | R76: full | S76: empty
C77: NORTE | D77: 2,580 | E77: 7,715 | F77: 14,413 | G77: 8,085 | H77: 8,928 | I77: 1,272 | J77: 11,845 | K77: 13,520 | L77: 7,170 | M77: 0 | N77: 15,637 | O77: 0 | P77: 0 | Q77: 0 | R77: 29 | S77: 0 | T77: =SUM(D77:S77) -> 91,194 | U77: =D77+E77+H77+I77+L77+M77+P77+Q77+(2*(F77+G77+J77+K77+N77+O77+R77+S77)) -> 154,723
C78: CENTRO | D78: 33,291 | E78: 163 | F78: 116,193 | G78: 15,006 | H78: 24,882 | I78: 14,663 | J78: 89,427 | K78: 49,257 | L78: 3,014 | M78: 149 | N78: 6,493 | O78: 29 | P78: 990 | Q78: 911 | R78: 2,543 | S78: 9,029 | T78: =SUM(D78:S78) -> 366,040 | U78: =D78+E78+H78+I78+L78+M78+P78+Q78+(2*(F78+G78+J78+K78+N78+O78+R78+S78)) -> 654,017
C79: CENTRO SUR | D79: 3,229 | E79: 1,734 | F79: 7,334 | G79: 30,072 | H79: 6,535 | I79: 646 | J79: 59,947 | K79: 2,419 | L79: 102 | M79: 905 | N79: 577 | O79: 12,493 | P79: 169 | Q79: 194 | R79: 462 | S79: 711 | T79: 127,529 | U79: 241,544
C80: SUR | D80: 0 | E80: 0 | F80: 0 | G80: 0 | H80: 0 | I80: 0 | J80: 0 | K80: 0 | L80: 0 | M80: 0 | N80: 0 | O80: 0 | P80: 0 | Q80: 0 | R80: 0 | S80: 0 | T80: 0 | U80: 0
C81: AUSTRAL | D81: 172 | E81: 0 | F81: 538 | G81: 7 | H81: 6 | I81: 0 | J81: 444 | K81: 5 | L81: 0 | M81: 0 | N81: 0 | O81: 0 | P81: 378 | Q81: 40 | R81: 1,206 | S81: 258 | T81: 3,054 | U81: 5,512
C82: TOTAL | D82: =SUM(D77:D81) -> 39,272 | E82: =SUM(E77:E81) -> 9,612 | F82: 138,478 | G82: 53,170 | H82: 40,351 | I82: 16,581 | J82: 161,663 | K82: 65,201 | L82: 10,286 | M82: 1,054 | N82: 22,707 | O82: 12,522 | P82: 1,537 | Q82: 1,145 | R82: 4,240 | S82: 9,998 | T82: =SUM(D82:S82) -> 587,817 | U82: 1,055,796
C84: DIFERENCIA ABRIL - JUNIO 2022 vs 2021 (UNIDADES)
C85: MCZ | D85: IMPORTACIÓN | H85: EXPORTACIÓN | L85: TRÁNSITO | P85: CABOTAJE | T85: TOTAL BOXES | U85: TOTAL TEUS
D86: 20 pies | F86: 40 pies | H86: 20 pies | J86: 40 pies | L86: 20 pies | N86: 40 pies | P86: 20 pies | R86: 40 pies
D87: full | E87: empty | F87: full | G87: empty | H87: full | I87: empty | J87: full | K87: empty | L87: full | M87: empty | N87: full | O87: empty | P87: full | Q87: empty | R87: full | S87: empty
C88: NORTE | D88: =D77-D66 -> -635 | E88: =E77-E66 -> -383 | F88: -970 | G88: 2,231 | H88: -1,178 | I88: 570 | J88: 885 | K88: -901 | L88: -1,154 | M88: 0 | N88: 198 | O88: 0 | P88: -34 | Q88: 0 | R88: 0 | S88: 0 | T88: =SUM(D88:S88) -> -1,371 | U88: =D88+E88+H88+I88+L88+M88+P88+Q88+(2*(F88+G88+J88+K88+N88+O88+R88+S88)) -> 72
C89: CENTRO | D89: =D78-D67 -> -8,112 | E89: 52 | F89: 1,168 | G89: -1,196 | H89: -40 | I89: 396 | J89: 7,527 | K89: 9,633 | L89: 105 | M89: 149 | N89: 637 | O89: -139 | P89: 510 | Q89: -515 | R89: 681 | S89: 3,506 | T89: =SUM(D89:S89) -> 14,362 | U89: =D89+E89+H89+I89+L89+M89+P89+Q89+(2*(F89+G89+J89+K89+N89+O89+R89+S89)) -> 36,179
C90: CENTRO SUR | D90: -604 | E90: -284 | F90: -287 | G90: 4,013 | H90: -1,917 | I90: 47 | J90: 1,304 | K90: -41 | L90: 7 | M90: 207 | N90: 403 | O90: 1,670 | P90: 44 | Q90: -10 | R90: 280 | S90: -350 | T90: 4,482 | U90: 11,474
C91: SUR | D91: 0 | E91: 0 | F91: 0 | G91: 0 | H91: 0 | I91: 0 | J91: 0 | K91: 0 | L91: 0 | M91: 0 | N91: 0 | O91: 0 | P91: 0 | Q91: 0 | R91: 0 | S91: 0 | T91: 0 | U91: 0
C92: AUSTRAL | D92: -46 | E92: 0 | F92: 164 | G92: 0 | H92: 2 | I92: 0 | J92: 110 | K92: 5 | L92: 0 | M92: 0 | N92: 0 | O92: 0 | P92: 72 | Q92: 31 | R92: 127 | S92: 118 | T92: 583 | U92: 1,107
C93: TOTAL | D93: =D82-D71 -> -9,397 | E93: -615 | F93: 75 | G93: 5,048 | H93: -3,133 | I93: 1,013 | J93: 9,826 | K93: 8,696 | L93: -1,042 | M93: 356 | N93: 1,238 | O93: 1,531 | P93: 592 | Q93: -494 | R93: 1,088 | S93: 3,274 | T93: =T82-T71 -> 18,056 | U93: 48,832
C95: DIFERENCIA ABRIL - JUNIO 2022 vs 2021 (PORCENTAJES)
C96: MCZ | D96: IMPORTACIÓN | H96: EXPORTACIÓN | L96: TRÁNSITO | P96: CABOTAJE | T96: TOTAL BOXES | U96: TOTAL TEUS
D97: 20 pies | F97: 40 pies | H97: 20 pies | J97: 40 pies | L97: 20 pies | N97: 40 pies | P97: 20 pies | R97: 40 pies
D98: full | E98: empty | F98: full | G98: empty | H98: full | I98: empty | J98: full | K98: empty | L98: full | M98: empty | N98: full | O98: empty | P98: full | Q98: empty | R98: full | S98: empty
C99: NORTE | D99: =+D88/D66 -> -19.8% | E99: =+E88/E66 -> -4.7% | F99: -6.3% | G99: 38.1% | H99: -11.7% | I99: 81.2% | J99: 8.1% | K99: -6.2% | L99: -13.9% | N99: 1.3% | R99: 0.0% | T99: =+T88/T66 -> -1.5% | U99: =+U88/U66 -> 0.0%
C100: CENTRO | D100: =+D89/D67 -> -19.6% | E100: 46.8% | F100: 1.0% | G100: -7.4% | H100: -0.2% | I100: 2.8% | J100: 9.2% | K100: 24.3% | L100: 3.6% | N100: 10.9% | O100: -82.7% | P100: 106.3% | Q100: -36.1% | R100: 36.6% | S100: 63.5% | T100: =+T89/T67 -> 4.1% | U100: 5.9%
C101: CENTRO SUR | D101: =+D90/D68 -> -15.8% | E101: -14.1% | F101: -3.8% | G101: 15.4% | H101: -22.7% | I101: 7.8% | J101: 2.2% | K101: -1.7% | L101: 7.4% | M101: 29.7% | N101: 231.6% | O101: 15.4% | P101: 35.2% | Q101: -4.9% | R101: 153.8% | S101: -33.0% | T101: 3.6% | U101: 5.0%
C102: SUR | P102: =+P91/P69 -> 
C103: AUSTRAL | D103: =+D92/D70 -> -21.1% | F103: 43.9% | G103: 0.0% | H103: 50.0% | J103: 32.9% | P103: 23.5% | Q103: 344.4% | R103: 11.8% | S103: 84.3% | T103: 23.6% | U103: 25.1%
C104: TOTAL | D104: =+D93/D71 -> -19.3% | E104: =+E93/E71 -> -6.0% | F104: 0.1% | G104: 10.5% | H104: -7.2% | I104: 6.5% | J104: 6.5% | K104: 15.4% | L104: -9.2% | M104: 51.0% | N104: 5.8% | O104: 13.9% | P104: 62.6% | Q104: -30.1% | R104: 34.5% | S104: 48.7% | T104: 3.2% | U104: 4.8%
C107: IMPO + EXPO (BOXES FULL) | H107: =+(D145+F145+H145+J145)/(+D123+F123+H123+J123) -> -4.9% | J107: INDICADORES TERCER TRIMESTRE
C108: IMPO + EXPO (TEUs FULL) | H108: =+((D145+H145)+2*(F145+J145))/((D123+H123)+2*(F123+J123)) -> -4.0%
C109: IMPO + EXPO + TRANS + CABOT (BOXES EMPTY) | H109: =+(E145+G145+I145+K145+M145+O145+Q145+S145)/(+E123+G123+I123+K123+M123+O123+Q123+S123) -> 10.7%
C110: TRANSITO (BOXES) | H110: =+(L145+M145+N145+O145)/+(L123+M123+N123+O123) -> -5.7% | J110: PORCENTAJES DE VARIACIÓN 2022 VS. 2021
C111: CABOTAJE (BOXES) | H111: =+(P145+Q145+R145+S145)/(P123+Q123+R123+S123) -> 40.5%
C112: TEUs TOTALES | H112: =+U145/U123 -> 0.1%
C114: 2021 | D114: CANTIDAD CONTENEDORES JULIO - SEPTIEMBRE 2021 x MACROZONA
C115: MCZ | D115: IMPORTACIÓN | H115: EXPORTACIÓN | L115: TRÁNSITO | P115: CABOTAJE | T115: TOTAL BOXES | U115: TOTAL TEUS
D116: 20 pies | F116: 40 pies | H116: 20 pies | J116: 40 pies | L116: 20 pies | N116: 40 pies | P116: 20 pies | R116: 40 pies
D117: full | E117: empty | F117: full | G117: empty | H117: full | I117: empty | J117: full | K117: empty | L117: full | M117: empty | N117: full | O117: empty | P117: full | Q117: empty | R117: full | S117: empty
C118: NORTE | D118: 2,605 | E118: 4,010 | F118: 13,387 | G118: 5,003 | H118: 7,379 | I118: 733 | J118: 10,903 | K118: 13,091 | L118: 7,954 | M118: 0 | N118: 16,110 | O118: 0 | P118: 0 | Q118: 0 | R118: 0 | S118: 0 | T118: =SUM(D118:S118) -> 81,175 | U118: =D118+E118+H118+I118+L118+M118+P118+Q118+(2*(F118+G118+J118+K118+N118+O118+R118+S118)) -> 139,669
C119: CENTRO | D119: 39,028 | E119: 541 | F119: 128,558 | G119: 14,534 | H119: 25,464 | I119: 11,112 | J119: 69,442 | K119: 45,571 | L119: 1,557 | M119: 62 | N119: 3,550 | O119: 167 | P119: 427 | Q119: 1,862 | R119: 1,967 | S119: 7,257 | T119: =SUM(D119:S119) -> 351,099 | U119: =D119+E119+H119+I119+L119+M119+P119+Q119+(2*(F119+G119+J119+K119+N119+O119+R119+S119)) -> 622,145
C120: CENTRO SUR | D120: 5,046 | E120: 2,268 | F120: 11,960 | G120: 27,335 | H120: 7,939 | I120: 871 | J120: 53,394 | K120: 3,659 | L120: 1,178 | M120: 962 | N120: 4,147 | O120: 12,642 | P120: 113 | Q120: 131 | R120: 171 | S120: 653 | T120: 132,469 | U120: 246,430
C121: SUR | D121: 0 | E121: 0 | F121: 0 | G121: 0 | H121: 0 | I121: 0 | J121: 0 | K121: 0 | L121: 0 | M121: 0 | N121: 0 | O121: 0 | P121: 0 | Q121: 0 | R121: 0 | S121: 0 | T121: 0 | U121: 0
C122: AUSTRAL | D122: 189 | E122: 0 | F122: 406 | G122: 0 | H122: 20 | I122: 0 | J122: 464 | K122: 0 | L122: 0 | M122: 0 | N122: 0 | O122: 0 | P122: 202 | Q122: 4 | R122: 1,055 | S122: 117 | T122: 2,457 | U122: 4,499
C123: TOTAL | D123: =SUM(D118:D122) -> 46,868 | E123: =SUM(E118:E122) -> 6,819 | F123: 154,311 | G123: 46,872 | H123: 40,802 | I123: 12,716 | J123: 134,203 | K123: 62,321 | L123: 10,689 | M123: 1,024 | N123: 23,807 | O123: 12,809 | P123: 742 | Q123: 1,997 | R123: 3,193 | S123: 8,027 | T123: =SUM(D123:S123) -> 567,200 | U123: 1,012,743
C125: 2022 | D125: CANTIDAD CONTENEDORES JULIO - SEPTIEMBRE 2022 x MACROZONA
C126: MCZ | D126: IMPORTACIÓN | H126: EXPORTACIÓN | L126: TRÁNSITO | P126: CABOTAJE | T126: TOTAL BOXES | U126: TOTAL TEUS
D127: 20 pies | F127: 40 pies | H127: 20 pies | J127: 40 pies | L127: 20 pies | N127: 40 pies | P127: 20 pies | R127: 40 pies
D128: full | E128: empty | F128: full | G128: empty | H128: full | I128: empty | J128: full | K128: empty | L128: full | M128: empty | N128: full | O128: empty | P128: full | Q128: empty | R128: full | S128: empty
C129: NORTE | D129: 2,351 | E129: 9,306 | F129: 16,603 | G129: 10,106 | H129: 9,045 | I129: 1,459 | J129: 14,203 | K129: 17,699 | L129: 7,565 | M129: 3 | N129: 17,925 | O129: 0 | P129: 0 | Q129: 0 | R129: 0 | S129: 0 | T129: =SUM(D129:S129) -> 106,265 | U129: =D129+E129+H129+I129+L129+M129+P129+Q129+(2*(F129+G129+J129+K129+N129+O129+R129+S129)) -> 182,801
C130: CENTRO | D130: 32,201 | E130: 555 | F130: 113,590 | G130: 12,505 | H130: 24,146 | I130: 9,676 | J130: 67,993 | K130: 37,324 | L130: 2,116 | M130: 123 | N130: 4,386 | O130: 240 | P130: 1,340 | Q130: 2,184 | R130: 4,128 | S130: 10,089 | T130: =SUM(D130:S130) -> 322,596 | U130: =D130+E130+H130+I130+L130+M130+P130+Q130+(2*(F130+G130+J130+K130+N130+O130+R130+S130)) -> 572,851
C131: CENTRO SUR | D131: 2,756 | E131: 3,032 | F131: 7,453 | G131: 36,083 | H131: 6,775 | I131: 659 | J131: 59,834 | K131: 4,303 | L131: 65 | M131: 1,083 | N131: 235 | O131: 11,851 | P131: 105 | Q131: 153 | R131: 144 | S131: 362 | T131: 134,893 | U131: 255,158
C132: SUR | D132: 0 | E132: 0 | F132: 0 | G132: 0 | H132: 0 | I132: 0 | J132: 0 | K132: 0 | L132: 0 | M132: 0 | N132: 0 | O132: 0 | P132: 0 | Q132: 0 | R132: 0 | S132: 0 | T132: 0 | U132: 0
C133: AUSTRAL | D133: 109 | E133: 0 | F133: 278 | G133: 0 | H133: 26 | I133: 0 | J133: 375 | K133: 0 | L133: 0 | M133: 0 | N133: 0 | O133: 0 | P133: 216 | Q133: 9 | R133: 729 | S133: 156 | T133: 1,898 | U133: 3,436
C134: TOTAL | D134: =SUM(D129:D133) -> 37,417 | E134: =SUM(E129:E133) -> 12,893 | F134: 137,924 | G134: 58,694 | H134: 39,992 | I134: 11,794 | J134: 142,405 | K134: 59,326 | L134: 9,746 | M134: 1,209 | N134: 22,546 | O134: 12,091 | P134: 1,661 | Q134: 2,346 | R134: 5,001 | S134: 10,607 | T134: =SUM(D134:S134) -> 565,652 | U134: =D134+E134+H134+I134+L134+M134+P134+Q134+(2*(F134+G134+J134+K134+N134+O134+R134+S134)) -> 1,014,246
C136: DIFERENCIA JULIO - SEPTIEMBRE 2022 vs 2021 (UNIDADES)
C137: MCZ | D137: IMPORTACIÓN | H137: EXPORTACIÓN | L137: TRÁNSITO | P137: CABOTAJE | T137: TOTAL BOXES | U137: TOTAL TEUS
D138: 20 pies | F138: 40 pies | H138: 20 pies | J138: 40 pies | L138: 20 pies | N138: 40 pies | P138: 20 pies | R138: 40 pies
D139: full | E139: empty | F139: full | G139: empty | H139: full | I139: empty | J139: full | K139: empty | L139: full | M139: empty | N139: full | O139: empty | P139: full | Q139: empty | R139: full | S139: empty
C140: NORTE | D140: =D129-D118 -> -254 | E140: =E129-E118 -> 5,296 | F140: 3,216 | G140: 5,103 | H140: 1,666 | I140: 726 | J140: 3,300 | K140: 4,608 | L140: -389 | M140: 3 | N140: 1,815 | O140: 0 | P140: 0 | Q140: 0 | R140: 0 | S140: 0 | T140: =SUM(D140:S140) -> 25,090 | U140: =D140+E140+H140+I140+L140+M140+P140+Q140+(2*(F140+G140+J140+K140+N140+O140+R140+S140)) -> 43,132
C141: CENTRO | D141: =D130-D119 -> -6,827 | E141: 14 | F141: -14,968 | G141: -2,029 | H141: -1,318 | I141: -1,436 | J141: -1,449 | K141: -8,247 | L141: 559 | M141: 61 | N141: 836 | O141: 73 | P141: 913 | Q141: 322 | R141: 2,161 | S141: 2,832 | T141: =SUM(D141:S141) -> -28,503 | U141: =D141+E141+H141+I141+L141+M141+P141+Q141+(2*(F141+G141+J141+K141+N141+O141+R141+S141)) -> -49,294
C142: CENTRO SUR | D142: -2,290 | E142: 764 | F142: -4,507 | G142: 8,748 | H142: -1,164 | I142: -212 | J142: 6,440 | K142: 644 | L142: -1,113 | M142: 121 | N142: -3,912 | O142: -791 | P142: -8 | Q142: 22 | R142: -27 | S142: -291 | T142: 2,424 | U142: 8,728
C143: SUR | D143: 0 | E143: 0 | F143: 0 | G143: 0 | H143: 0 | I143: 0 | J143: 0 | K143: 0 | L143: 0 | M143: 0 | N143: 0 | O143: 0 | P143: 0 | Q143: 0 | R143: 0 | S143: 0 | T143: 0 | U143: 0
C144: AUSTRAL | D144: -80 | E144: 0 | F144: -128 | G144: 0 | H144: 6 | I144: 0 | J144: -89 | K144: 0 | L144: 0 | M144: 0 | N144: 0 | O144: 0 | P144: 14 | Q144: 5 | R144: -326 | S144: 39 | T144: -559 | U144: -1,063
C145: TOTAL | D145: =D134-D123 -> -9,451 | E145: 6,074 | F145: -16,387 | G145: 11,822 | H145: -810 | I145: -922 | J145: 8,202 | K145: -2,995 | L145: -943 | M145: 185 | N145: -1,261 | O145: -718 | P145: 919 | Q145: 349 | R145: 1,808 | S145: 2,580 | T145: =T134-T123 -> -1,548 | U145: 1,503
C147: DIFERENCIA JULIO - SEPTIEMBRE 2022 vs 2021 (PORCENTAJES)
C148: MCZ | D148: IMPORTACIÓN | H148: EXPORTACIÓN | L148: TRÁNSITO | P148: CABOTAJE | T148: TOTAL BOXES | U148: TOTAL TEUS
D149: 20 pies | F149: 40 pies | H149: 20 pies | J149: 40 pies | L149: 20 pies | N149: 40 pies | P149: 20 pies | R149: 40 pies
D150: full | E150: empty | F150: full | G150: empty | H150: full | I150: empty | J150: full | K150: empty | L150: full | M150: empty | N150: full | O150: empty | P150: full | Q150: empty | R150: full | S150: empty
C151: NORTE | D151: =+D140/D118 -> -9.8% | E151: =+E140/E118 -> 132.1% | F151: 24.0% | G151: 102.0% | H151: 22.6% | I151: 99.0% | J151: 30.3% | K151: 35.2% | L151: -4.9% | N151: 11.3% | T151: =+T140/T118 -> 30.9% | U151: =+U140/U118 -> 30.9%
C152: CENTRO | D152: =+D141/D119 -> -17.5% | E152: 2.6% | F152: -11.6% | G152: -14.0% | H152: -5.2% | I152: -12.9% | J152: -2.1% | K152: -18.1% | L152: 35.9% | M152: 98.4% | N152: 23.5% | O152: 43.7% | P152: 213.8% | Q152: 17.3% | R152: 109.9% | S152: 39.0% | T152: -8.1% | U152: -7.9%
C153: CENTRO SUR | D153: -45.4% | E153: 33.7% | F153: -37.7% | G153: 32.0% | H153: -14.7% | I153: -24.3% | J153: 12.1% | K153: 17.6% | L153: -94.5% | M153: 12.6% | N153: -94.3% | O153: -6.3% | P153: -7.1% | Q153: 16.8% | R153: -15.8% | S153: -44.6% | T153: 1.8% | U153: 3.5%
C154: SUR
C155: AUSTRAL | D155: =+D144/D122 -> -42.3% | F155: -31.5% | H155: 30.0% | J155: -19.2% | P155: 6.9% | Q155: 125.0% | R155: -30.9% | S155: 33.3% | T155: -22.8% | U155: -23.6%
C156: TOTAL | D156: =+D145/D123 -> -20.2% | E156: =+E145/E123 -> 89.1% | F156: -10.6% | G156: 25.2% | H156: -2.0% | I156: -7.3% | J156: 6.1% | K156: -4.8% | L156: -8.8% | M156: 18.1% | N156: -5.3% | O156: -5.6% | P156: 123.9% | Q156: 17.5% | R156: 56.6% | S156: 32.1% | T156: -0.3% | U156: 0.1%
C159: IMPO + EXPO (BOXES FULL) | H159: =+(D197+F197+H197+J197)/(+D175+F175+H175+J175) -> -19.0% | J159: INDICADORES CUARTO TRIMESTRE
C160: IMPO + EXPO (TEUs FULL) | H160: =+((D197+H197)+2*(F197+J197))/((D175+H175)+2*(F175+J175)) -> -18.6%
C161: IMPO + EXPO + TRANS + CABOT (BOXES EMPTY) | H161: =+(E197+G197+I197+K197+M197+O197+Q197+S197)/(+E175+G175+I175+K175+M175+O175+Q175+S175) -> 9.4%
C162: TRANSITO (BOXES) | H162: =+(L197+M197+N197+O197)/+(L175+M175+N175+O175) -> -11.5% | J162: PORCENTAJES DE VARIACIÓN 2022 VS. 2021
C163: CABOTAJE (BOXES) | H163: =+(P197+Q197+R197+S197)/(P175+Q175+R175+S175) -> -2.1%
C164: TEUs TOTALES | H164: =+U197/U175 -> -11.2%
C166: 2021 | D166: CANTIDAD CONTENEDORES OCTUBRE - DICIEMBRE 2021 x MACROZONA
C167: MCZ | D167: IMPORTACIÓN | H167: EXPORTACIÓN | L167: TRÁNSITO | P167: CABOTAJE | T167: TOTAL BOXES | U167: TOTAL TEUS
D168: 20 pies | F168: 40 pies | H168: 20 pies | J168: 40 pies | L168: 20 pies | N168: 40 pies | P168: 20 pies | R168: 40 pies
D169: full | E169: empty | F169: full | G169: empty | H169: full | I169: empty | J169: full | K169: empty | L169: full | M169: empty | N169: full | O169: empty | P169: full | Q169: empty | R169: full | S169: empty
C170: NORTE | D170: 3,169 | E170: 7,345 | F170: 15,696 | G170: 5,693 | H170: 9,607 | I170: 1,028 | J170: 10,723 | K170: 16,322 | L170: 7,230 | M170: 0 | N170: 15,239 | O170: 0 | P170: 2 | Q170: 0 | R170: 0 | S170: 0 | T170: =SUM(D170:S170) -> 92,054 | U170: =D170+E170+H170+I170+L170+M170+P170+Q170+(2*(F170+G170+J170+K170+N170+O170+R170+S170)) -> 155,727
C171: CENTRO | D171: 39,095 | E171: 267 | F171: 144,253 | G171: 8,996 | H171: 28,089 | I171: 6,088 | J171: 72,465 | K171: 53,577 | L171: 2,904 | M171: 33 | N171: 5,558 | O171: 755 | P171: 1,361 | Q171: 1,471 | R171: 3,871 | S171: 6,024 | T171: =SUM(D171:S171) -> 374,807 | U171: =D171+E171+H171+I171+L171+M171+P171+Q171+(2*(F171+G171+J171+K171+N171+O171+R171+S171)) -> 670,306
C172: CENTRO SUR | D172: 4,381 | E172: 1,355 | F172: 10,616 | G172: 27,779 | H172: 7,632 | I172: 1,309 | J172: 61,273 | K172: 2,817 | L172: 1,242 | M172: 1,017 | N172: 6,262 | O172: 11,328 | P172: 115 | Q172: 223 | R172: 211 | S172: 909 | T172: 138,469 | U172: 259,664
C173: SUR | D173: 0 | E173: 0 | F173: 0 | G173: 0 | H173: 0 | I173: 0 | J173: 0 | K173: 0 | L173: 0 | M173: 0 | N173: 0 | O173: 0 | P173: 0 | Q173: 0 | R173: 0 | S173: 0 | T173: 0 | U173: 0
C174: AUSTRAL | D174: 228 | E174: 0 | F174: 626 | G174: 17 | H174: 30 | I174: 0 | J174: 435 | K174: 0 | L174: 0 | M174: 0 | N174: 0 | O174: 0 | P174: 256 | Q174: 9 | R174: 1,279 | S174: 235 | T174: 3,115 | U174: 5,707
C175: TOTAL | D175: =SUM(D170:D174) -> 46,873 | E175: =SUM(E170:E174) -> 8,967 | F175: 171,191 | G175: 42,485 | H175: 45,358 | I175: 8,425 | J175: 144,896 | K175: 72,716 | L175: 11,376 | M175: 1,050 | N175: 27,059 | O175: 12,083 | P175: 1,734 | Q175: 1,703 | R175: 5,361 | S175: 7,168 | T175: =SUM(D175:S175) -> 608,445 | U175: 1,091,404
C177: 2022 | D177: CANTIDAD CONTENEDORES OCTUBRE - DICIEMBRE 2022 x MACROZONA
C178: MCZ | D178: IMPORTACIÓN | H178: EXPORTACIÓN | L178: TRÁNSITO | P178: CABOTAJE | T178: TOTAL BOXES | U178: TOTAL TEUS
D179: 20 pies | F179: 40 pies | H179: 20 pies | J179: 40 pies | L179: 20 pies | N179: 40 pies | P179: 20 pies | R179: 40 pies
D180: full | E180: empty | F180: full | G180: empty | H180: full | I180: empty | J180: full | K180: empty | L180: full | M180: empty | N180: full | O180: empty | P180: full | Q180: empty | R180: full | S180: empty
C181: NORTE | D181: 2,998 | E181: 8,075 | F181: 15,917 | G181: 8,643 | H181: 9,515 | I181: 1,843 | J181: 13,540 | K181: 18,917 | L181: 8,182 | M181: 0 | N181: 17,618 | O181: 0 | P181: 1 | Q181: 0 | R181: 0 | S181: 0 | T181: =SUM(D181:S181) -> 105,249 | U181: =D181+E181+H181+I181+L181+M181+P181+Q181+(2*(F181+G181+J181+K181+N181+O181+R181+S181)) -> 179,884
C182: CENTRO | D182: 28,524 | E182: 4,232 | F182: 94,392 | G182: 24,161 | H182: 21,939 | I182: 5,961 | J182: 72,450 | K182: 31,245 | L182: 2,180 | M182: 721 | N182: 5,850 | O182: 150 | P182: 1,137 | Q182: 2,342 | R182: 3,605 | S182: 6,019 | T182: =SUM(D182:S182) -> 304,908 | U182: =D182+E182+H182+I182+L182+M182+P182+Q182+(2*(F182+G182+J182+K182+N182+O182+R182+S182)) -> 542,780
C183: CENTRO SUR | D183: 3,725 | E183: 3,316 | F183: 5,972 | G183: 39,578 | H183: 4,918 | I183: 567 | J183: 56,105 | K183: 2,213 | L183: 408 | M183: 877 | N183: 253 | O183: 9,410 | P183: 147 | Q183: 293 | R183: 271 | S183: 517 | T183: 128,570 | U183: 242,889
C184: SUR | D184: 0 | E184: 0 | F184: 0 | G184: 0 | H184: 0 | I184: 0 | J184: 0 | K184: 0 | L184: 0 | M184: 0 | N184: 0 | O184: 0 | P184: 0 | Q184: 0 | R184: 0 | S184: 0 | T184: 0 | U184: 0
C185: AUSTRAL | D185: 217 | E185: 0 | F185: 351 | G185: 0 | H185: 20 | I185: 0 | J185: 302 | K185: 0 | L185: 0 | M185: 0 | N185: 0 | O185: 0 | P185: 271 | Q185: 27 | R185: 928 | S185: 75 | T185: 2,191 | U185: 3,847
C186: TOTAL | D186: =SUM(D181:D185) -> 35,464 | E186: =SUM(E181:E185) -> 15,623 | F186: 116,632 | G186: 72,382 | H186: 36,392 | I186: 8,371 | J186: 142,397 | K186: 52,375 | L186: 10,770 | M186: 1,598 | N186: 23,721 | O186: 9,560 | P186: 1,556 | Q186: 2,662 | R186: 4,804 | S186: 6,611 | T186: =SUM(D186:S186) -> 540,918 | U186: 969,400
C188: DIFERENCIA OCTUBRE - DICIEMBRE 2022 vs 2021 (UNIDADES)
C189: MCZ | D189: IMPORTACIÓN | H189: EXPORTACIÓN | L189: TRÁNSITO | P189: CABOTAJE | T189: TOTAL BOXES | U189: TOTAL TEUS
D190: 20 pies | F190: 40 pies | H190: 20 pies | J190: 40 pies | L190: 20 pies | N190: 40 pies | P190: 20 pies | R190: 40 pies
D191: full | E191: empty | F191: full | G191: empty | H191: full | I191: empty | J191: full | K191: empty | L191: full | M191: empty | N191: full | O191: empty | P191: full | Q191: empty | R191: full | S191: empty
C192: NORTE | D192: =D181-D170 -> -171 | E192: =E181-E170 -> 730 | F192: 221 | G192: 2,950 | H192: -92 | I192: 815 | J192: 2,817 | K192: 2,595 | L192: 952 | M192: 0 | N192: 2,379 | O192: 0 | P192: -1 | Q192: 0 | R192: 0 | S192: 0 | T192: =SUM(D192:S192) -> 13,195 | U192: =D192+E192+H192+I192+L192+M192+P192+Q192+(2*(F192+G192+J192+K192+N192+O192+R192+S192)) -> 24,157
C193: CENTRO | D193: =D182-D171 -> -10,571 | E193: 3,965 | F193: -49,861 | G193: 15,165 | H193: -6,150 | I193: -127 | J193: -15 | K193: -22,332 | L193: -724 | M193: 688 | N193: 292 | O193: -605 | P193: -224 | Q193: 871 | R193: -266 | S193: -5 | T193: =SUM(D193:S193) -> -69,899 | U193: =D193+E193+H193+I193+L193+M193+P193+Q193+(2*(F193+G193+J193+K193+N193+O193+R193+S193)) -> -127,526
C194: CENTRO SUR | D194: -656 | E194: 1,961 | F194: -4,644 | G194: 11,799 | H194: -2,714 | I194: -742 | J194: -5,168 | K194: -604 | L194: -834 | M194: -140 | N194: -6,009 | O194: -1,918 | P194: 32 | Q194: 70 | R194: 60 | S194: -392 | T194: -9,899 | U194: -16,775
C195: SUR | D195: 0 | E195: 0 | F195: 0 | G195: 0 | H195: 0 | I195: 0 | J195: 0 | K195: 0 | L195: 0 | M195: 0 | N195: 0 | O195: 0 | P195: 0 | Q195: 0 | R195: 0 | S195: 0 | T195: 0 | U195: 0
C196: AUSTRAL | D196: -11 | E196: 0 | F196: -275 | G196: -17 | H196: -10 | I196: 0 | J196: -133 | K196: 0 | L196: 0 | M196: 0 | N196: 0 | O196: 0 | P196: 15 | Q196: 18 | R196: -351 | S196: -160 | T196: -924 | U196: -1,860
C197: TOTAL | D197: =D186-D175 -> -11,409 | E197: 6,656 | F197: -54,559 | G197: 29,897 | H197: -8,966 | I197: -54 | J197: -2,499 | K197: -20,341 | L197: -606 | M197: 548 | N197: -3,338 | O197: -2,523 | P197: -178 | Q197: 959 | R197: -557 | S197: -557 | T197: =T186-T175 -> -67,527 | U197: -122,004
C199: DIFERENCIA OCTUBRE - DICIEMBRE 2022 vs 2021 (PORCENTAJES)
C200: MCZ | D200: IMPORTACIÓN | H200: EXPORTACIÓN | L200: TRÁNSITO | P200: CABOTAJE | T200: TOTAL BOXES | U200: TOTAL TEUS
D201: 20 pies | F201: 40 pies | H201: 20 pies | J201: 40 pies | L201: 20 pies | N201: 40 pies | P201: 20 pies | R201: 40 pies
D202: full | E202: empty | F202: full | G202: empty | H202: full | I202: empty | J202: full | K202: empty | L202: full | M202: empty | N202: full | O202: empty | P202: full | Q202: empty | R202: full | S202: empty
C203: NORTE | D203: =+D192/D170 -> -5.4% | E203: =+E192/E170 -> 9.9% | F203: 1.4% | G203: 51.8% | H203: -1.0% | I203: 79.3% | J203: 26.3% | K203: 15.9% | L203: 13.2% | N203: =+N192/N170 -> 15.6% | T203: =+T192/T170 -> 14.3% | U203: =+U192/U170 -> 15.5%
C204: CENTRO | D204: =+D193/D171 -> -27.0% | E204: 1485.0% | F204: -34.6% | G204: 168.6% | H204: -21.9% | I204: -2.1% | J204: -0.0% | K204: -41.7% | L204: -24.9% | M204: 2084.8% | N204: 5.3% | O204: -80.1% | P204: -16.5% | Q204: 59.2% | R204: -6.9% | S204: -0.1% | T204: -18.6% | U204: -19.0%
C205: CENTRO SUR | D205: -15.0% | E205: 144.7% | F205: -43.7% | G205: 42.5% | H205: -35.6% | I205: -56.7% | J205: -8.4% | K205: -21.4% | L205: -67.1% | M205: -13.8% | N205: -96.0% | O205: -16.9% | P205: 27.8% | Q205: 31.4% | R205: 28.4% | S205: -43.1% | T205: -7.1% | U205: -6.5%
C206: SUR
C207: AUSTRAL | D207: =+D196/D174 -> -4.8% | F207: =+F196/F174 -> -43.9% | G207: -100.0% | H207: -33.3% | J207: =+J196/J174 -> -30.6% | P207: 5.9% | Q207: 200.0% | R207: -27.4% | S207: -68.1% | T207: -29.7% | U207: -32.6%
C208: TOTAL | D208: =+D197/D175 -> -24.3% | E208: =+E197/E175 -> 74.2% | F208: -31.9% | G208: 70.4% | H208: -19.8% | I208: -0.6% | J208: -1.7% | K208: -28.0% | L208: -5.3% | M208: 52.2% | N208: -12.3% | O208: -20.9% | P208: -10.3% | Q208: 56.3% | R208: -10.4% | S208: -7.8% | T208: -11.1% | U208: -11.2%
C211: IMPO + EXPO (BOXES FULL) | H211: =+(D249+F249+H249+J249)/(+D227+F227+H227+J227) -> -6.3% | J211: INDICADORES ENERO - DICIEMBRE
C212: IMPO + EXPO (TEUs FULL) | H212: =+((D249+H249)+2*(F249+J249))/((D227+H227)+2*(F227+J227)) -> -4.9%
C213: IMPO + EXPO + TRANS + CABOT (BOXES EMPTY) | H213: =+(E249+G249+I249+K249+M249+O249+Q249+S249)/+(E227+G227+I227+K227+M227+O227+Q227+S227) -> 2.6%
C214: TRANSITO (BOXES) | H214: =+(L249+M249+N249+O249)/+(L227+M227+N227+O227) -> -8.3% | J214: PORCENTAJES DE VARIACIÓN 2022 VS. 2021
C215: CABOTAJE (BOXES) | H215: =+(P249+Q249+R249+S249)/(P227+Q227+R227+S227) -> 13.6%
C216: TEUs TOTALES | H216: =+U249/U227 -> -2.8%
C218: 2021 | D218: CANTIDAD CONTENEDORES ENERO - DICIEMBRE 2021 x MACROZONA
C219: MCZ | D219: IMPORTACIÓN | H219: EXPORTACIÓN | L219: TRÁNSITO | P219: CABOTAJE | T219: TOTAL BOXES | U219: TOTAL TEUS
D220: 20 pies | F220: 40 pies | H220: 20 pies | J220: 40 pies | L220: 20 pies | N220: 40 pies | P220: 20 pies | R220: 40 pies
D221: full | E221: empty | F221: full | G221: empty | H221: full | I221: empty | J221: full | K221: empty | L221: full | M221: empty | N221: full | O221: empty | P221: full | Q221: empty | R221: full | S221: empty
C222: NORTE | D222: =D14+D66+D118+D170 -> 12,746 | E222: =E14+E66+E118+E170 -> 26,587 | F222: 61,219 | G222: 22,229 | H222: 38,170 | I222: 3,090 | J222: 42,772 | K222: 62,247 | L222: 33,362 | M222: 8 | N222: 62,971 | O222: 0 | P222: 36 | Q222: 0 | R222: 49 | S222: 0 | T222: =T14+T66+T118+T170 -> 365,486 | U222: =U14+U66+U118+U170 -> 616,973
C223: CENTRO | D223: =D15+D67+D119+D171 -> 165,982 | E223: 1,549 | F223: 509,111 | G223: 62,252 | H223: 100,797 | I223: 41,270 | J223: 306,494 | K223: 178,331 | L223: 9,818 | M223: 95 | N223: 20,730 | O223: 1,161 | P223: 2,848 | Q223: 9,136 | R223: 9,343 | S223: 32,401 | T223: 1,451,318 | U223: =U15+U67+U119+U171 -> 2,571,141
C224: CENTRO SUR | D224: =D16+D68+D120+D172 -> 17,345 | E224: 10,361 | F224: 37,404 | G224: 115,841 | H224: 33,653 | I224: 3,144 | J224: 230,338 | K224: 10,225 | L224: 3,570 | M224: 4,082 | N224: 12,028 | O224: 48,938 | P224: 542 | Q224: 941 | R224: 783 | S224: 3,683 | T224: 532,878 | U224: 992,118
C225: SUR | D225: =D17+D69+D121+D173 -> 0 | E225: 0 | F225: 0 | G225: 0 | H225: 0 | I225: 0 | J225: 0 | K225: 0 | L225: 0 | M225: 0 | N225: 0 | O225: 0 | P225: 0 | Q225: 0 | R225: 126 | S225: 56 | T225: 182 | U225: 364
C226: AUSTRAL | D226: =D18+D70+D122+D174 -> 972 | E226: 0 | F226: 1,827 | G226: 36 | H226: 122 | I226: 0 | J226: 1,487 | K226: 2 | L226: 0 | M226: 0 | N226: 0 | O226: 0 | P226: 1,147 | Q226: 40 | R226: 4,285 | S226: 663 | T226: 10,581 | U226: 18,881
C227: TOTAL | D227: =SUM(D222:D226) -> 197,045 | E227: =SUM(E222:E226) -> 38,497 | F227: 609,561 | G227: 200,358 | H227: 172,742 | I227: 47,504 | J227: 581,091 | K227: 250,805 | L227: 46,750 | M227: 4,185 | N227: 95,729 | O227: 50,099 | P227: 4,573 | Q227: 10,117 | R227: 14,586 | S227: 36,803 | T227: =SUM(D227:S227) -> 2,360,445 | U227: =D227+E227+H227+I227+L227+M227+P227+Q227+(2*(F227+G227+J227+K227+N227+O227+R227+S227)) -> 4,199,477
... 30 more rows

Sheet 2021 VS 2020
C3: IMPO + EXPO (BOXES FULL) | H3: =+(D41+F41+H41+J41)/(+D19+F19+H19+J19) -> 9.2% | J3: INDICADORES PRIMER TRIMESTRE
C4: IMPO + EXPO (TEUs FULL) | H4: =+((D41+H41)+2*(F41+J41))/((D19+H19)+2*(F19+J19)) -> 11.1%
C5: IMPO + EXPO + TRANS + CABOT (BOXES EMPTY) | H5: =+(E41+G41+I41+K41+M41++O41+Q41+S41)/(+E19+G19+I19+K19+M19+O19+Q19+S19) -> -13.3%
C6: TRANSITO (BOXES) | H6: =+(L41+M41+N41+O41)/+(L19+M19+N19+O19) -> 13.5% | J6: PORCENTAJES DE VARIACIÓN 2021 VS. 2020
C7: CABOTAJE (BOXES) | H7: =+(P41+Q41+R41+S41)/(P19+Q19+R19+S19) -> -7.7%
C8: TEUs TOTALES | H8: =+U41/U19 -> 2.9%
C10: 2020 | D10: CANTIDAD CONTENEDORES ENERO - MARZO 2020 x MACROZONA
C11: MCZ | D11: IMPORTACIÓN | H11: EXPORTACIÓN | L11: TRÁNSITO | P11: CABOTAJE | T11: TOTAL BOXES | U11: TOTAL TEUS
D12: 20 pies | F12: 40 pies | H12: 20 pies | J12: 40 pies | L12: 20 pies | N12: 40 pies | P12: 20 pies | R12: 40 pies
D13: full | E13: empty | F13: full | G13: empty | H13: full | I13: empty | J13: full | K13: empty | L13: full | M13: empty | N13: full | O13: empty | P13: full | Q13: empty | R13: full | S13: empty
C14: NORTE | D14: 4,601 | E14: 10,974 | F14: 14,839 | G14: 4,076 | H14: 14,566 | I14: 1,738 | J14: 9,684 | K14: 16,222 | L14: 10,389 | M14: 0 | N14: 11,893 | O14: 0 | P14: 0 | Q14: 0 | R14: 42 | S14: 0 | T14: =SUM(D14:S14) -> 99,024 | U14: =D14+E14+H14+I14+L14+M14+P14+Q14+(2*(F14+G14+J14+K14+N14+O14+R14+S14)) -> 155,780
C15: CENTRO | D15: 40,766 | E15: 1,423 | F15: 81,778 | G15: 40,807 | H15: 23,558 | I15: 9,489 | J15: 74,646 | K15: 34,067 | L15: 4,101 | M15: 252 | N15: 5,307 | O15: 1,193 | P15: 705 | Q15: 6,111 | R15: 1,585 | S15: 12,564 | T15: =SUM(D15:S15) -> 338,352 | U15: =D15+E15+H15+I15+L15+M15+P15+Q15+(2*(F15+G15+J15+K15+N15+O15+R15+S15)) -> 590,299
C16: CENTRO SUR | D16: 4,683 | E16: 7,134 | F16: 7,422 | G16: 46,456 | H16: 11,622 | I16: 693 | J16: 69,810 | K16: 1,134 | L16: 52 | M16: 724 | N16: 274 | O16: 11,974 | P16: 185 | Q16: 448 | R16: 179 | S16: 780 | T16: 163,570 | U16: 301,599
C17: SUR | D17: 0 | E17: 0 | F17: 0 | G17: 0 | H17: 0 | I17: 0 | J17: 0 | K17: 0 | L17: 0 | M17: 0 | N17: 0 | O17: 0 | P17: 47 | Q17: 52 | R17: 176 | S17: 33 | T17: 308 | U17: 517
C18: AUSTRAL | D18: 445 | E18: 3 | F18: 999 | G18: 4 | H18: 38 | I18: 0 | J18: 842 | K18: 0 | L18: 0 | M18: 0 | N18: 0 | O18: 0 | P18: 505 | Q18: 40 | R18: 2,078 | S18: 128 | T18: 5,082 | U18: 9,133
C19: TOTAL | D19: =SUM(D14:D18) -> 50,495 | E19: =SUM(E14:E18) -> 19,534 | F19: 105,038 | G19: 91,343 | H19: 49,784 | I19: 11,920 | J19: 154,982 | K19: 51,423 | L19: 14,542 | M19: 976 | N19: 17,474 | O19: 13,167 | P19: 1,442 | Q19: 6,651 | R19: 4,060 | S19: 13,505 | T19: =SUM(D19:S19) -> 606,336 | U19: 1,057,328
C21: 2021 | D21: CANTIDAD CONTENEDORES ENERO - MARZO 2021 x MACROZONA
C22: MCZ | D22: IMPORTACIÓN | H22: EXPORTACIÓN | L22: TRÁNSITO | P22: CABOTAJE | T22: TOTAL BOXES | U22: TOTAL TEUS
D23: 20 pies | F23: 40 pies | H23: 20 pies | J23: 40 pies | L23: 20 pies | N23: 40 pies | P23: 20 pies | R23: 40 pies
D24: full | E24: empty | F24: full | G24: empty | H24: full | I24: empty | J24: full | K24: empty | L24: full | M24: empty | N24: full | O24: empty | P24: full | Q24: empty | R24: full | S24: empty
C25: NORTE | D25: 3,757 | E25: 7,134 | F25: 16,753 | G25: 5,679 | H25: 11,078 | I25: 627 | J25: 10,186 | K25: 18,413 | L25: 9,854 | M25: 8 | N25: 16,183 | O25: 0 | P25: 0 | Q25: 0 | R25: 20 | S25: 0 | T25: =SUM(D25:S25) -> 99,692 | U25: =D25+E25+H25+I25+L25+M25+P25+Q25+(2*(F25+G25+J25+K25+N25+O25+R25+S25)) -> 166,926
C26: CENTRO | D26: 46,456 | E26: 630 | F26: 121,275 | G26: 22,520 | H26: 22,322 | I26: 9,803 | J26: 82,687 | K26: 39,559 | L26: 2,448 | M26: 0 | N26: 5,766 | O26: 71 | P26: 580 | Q26: 4,377 | R26: 1,643 | S26: 13,597 | T26: =SUM(D26:S26) -> 373,734 | U26: =D26+E26+H26+I26+L26+M26+P26+Q26+(2*(F26+G26+J26+K26+N26+O26+R26+S26)) -> 660,852
C27: CENTRO SUR | D27: 4,085 | E27: 4,720 | F27: 7,207 | G27: 34,668 | H27: 9,630 | I27: 365 | J27: 57,028 | K27: 1,289 | L27: 1,055 | M27: 1,405 | N27: 1,445 | O27: 14,145 | P27: 189 | Q27: 383 | R27: 219 | S27: 1,060 | T27: 138,893 | U27: 255,954
C28: SUR | D28: 0 | E28: 0 | F28: 0 | G28: 0 | H28: 0 | I28: 0 | J28: 0 | K28: 0 | L28: 0 | M28: 0 | N28: 0 | O28: 0 | P28: 0 | Q28: 0 | R28: 126 | S28: 56 | T28: 182 | U28: 364
C29: AUSTRAL | D29: 337 | E29: 0 | F29: 421 | G29: 12 | H29: 68 | I29: 0 | J29: 254 | K29: 2 | L29: 0 | M29: 0 | N29: 0 | O29: 0 | P29: 383 | Q29: 18 | R29: 872 | S29: 171 | T29: 2,538 | U29: 4,270
C30: TOTAL | D30: =SUM(D25:D29) -> 54,635 | E30: =SUM(E25:E29) -> 12,484 | F30: 145,656 | G30: 62,879 | H30: 43,098 | I30: 10,795 | J30: 150,155 | K30: 59,263 | L30: 13,357 | M30: 1,413 | N30: 23,394 | O30: 14,216 | P30: 1,152 | Q30: 4,778 | R30: 2,880 | S30: 14,884 | T30: =SUM(D30:S30) -> 615,039 | U30: 1,088,366
C32: DIFERENCIA ENERO - MARZO 2021 vs 2020 (UNIDADES)
C33: MCZ | D33: IMPORTACIÓN | H33: EXPORTACIÓN | L33: TRÁNSITO | P33: CABOTAJE | T33: TOTAL BOXES | U33: TOTAL TEUS
D34: 20 pies | F34: 40 pies | H34: 20 pies | J34: 40 pies | L34: 20 pies | N34: 40 pies | P34: 20 pies | R34: 40 pies
D35: full | E35: empty | F35: full | G35: empty | H35: full | I35: empty | J35: full | K35: empty | L35: full | M35: empty | N35: full | O35: empty | P35: full | Q35: empty | R35: full | S35: empty
C36: NORTE | D36: =D25-D14 -> -844 | E36: =E25-E14 -> -3,840 | F36: 1,914 | G36: 1,603 | H36: -3,488 | I36: -1,111 | J36: 502 | K36: 2,191 | L36: -535 | M36: 8 | N36: 4,290 | O36: 0 | P36: 0 | Q36: 0 | R36: -22 | S36: 0 | T36: =SUM(D36:S36) -> 668 | U36: =D36+E36+H36+I36+L36+M36+P36+Q36+(2*(F36+G36+J36+K36+N36+O36+R36+S36)) -> 11,146
C37: CENTRO | D37: =D26-D15 -> 5,690 | E37: -793 | F37: 39,497 | G37: -18,287 | H37: -1,236 | I37: 314 | J37: 8,041 | K37: 5,492 | L37: -1,653 | M37: -252 | N37: 459 | O37: -1,122 | P37: -125 | Q37: -1,734 | R37: 58 | S37: 1,033 | T37: =SUM(D37:S37) -> 35,382 | U37: =D37+E37+H37+I37+L37+M37+P37+Q37+(2*(F37+G37+J37+K37+N37+O37+R37+S37)) -> 70,553
C38: CENTRO SUR | D38: -598 | E38: -2,414 | F38: -215 | G38: -11,788 | H38: -1,992 | I38: -328 | J38: -12,782 | K38: 155 | L38: 1,003 | M38: 681 | N38: 1,171 | O38: 2,171 | P38: 4 | Q38: -65 | R38: 40 | S38: 280 | T38: -24,677 | U38: -45,645
C39: SUR | D39: 0 | E39: 0 | F39: 0 | G39: 0 | H39: 0 | I39: 0 | J39: 0 | K39: 0 | L39: 0 | M39: 0 | N39: 0 | O39: 0 | P39: -47 | Q39: -52 | R39: -50 | S39: 23 | T39: -126 | U39: -153
C40: AUSTRAL | D40: -108 | E40: -3 | F40: -578 | G40: 8 | H40: 30 | I40: 0 | J40: -588 | K40: 2 | L40: 0 | M40: 0 | N40: 0 | O40: 0 | P40: -122 | Q40: -22 | R40: -1,206 | S40: 43 | T40: -2,544 | U40: -4,863
C41: TOTAL | D41: =D30-D19 -> 4,140 | E41: -7,050 | F41: 40,618 | G41: -28,464 | H41: -6,686 | I41: -1,125 | J41: -4,827 | K41: 7,840 | L41: -1,185 | M41: 437 | N41: 5,920 | O41: 1,049 | P41: -290 | Q41: -1,873 | R41: -1,180 | S41: 1,379 | T41: =T30-T19 -> 8,703 | U41: 31,038
C43: DIFERENCIA ENERO - MARZO 2021 vs 2020 (PORCENTAJES)
C44: MCZ | D44: IMPORTACIÓN | H44: EXPORTACIÓN | L44: TRÁNSITO | P44: CABOTAJE | T44: TOTAL BOXES | U44: TOTAL TEUS
D45: 20 pies | F45: 40 pies | H45: 20 pies | J45: 40 pies | L45: 20 pies | N45: 40 pies | P45: 20 pies | R45: 40 pies
D46: full | E46: empty | F46: full | G46: empty | H46: full | I46: empty | J46: full | K46: empty | L46: full | M46: empty | N46: full | O46: empty | P46: full | Q46: empty | R46: full | S46: empty
C47: NORTE | D47: =+D36/D14 -> -18.3% | E47: =+E36/E14 -> -35.0% | F47: 12.9% | G47: 39.3% | H47: -23.9% | I47: -63.9% | J47: 5.2% | K47: 13.5% | L47: -5.1% | N47: 36.1% | R47: -52.4% | T47: =+T36/T14 -> 0.7% | U47: =+U36/U14 -> 7.2%
C48: CENTRO | D48: =+D37/D15 -> 14.0% | E48: -55.7% | F48: 48.3% | G48: -44.8% | H48: -5.2% | I48: 3.3% | J48: 10.8% | K48: 16.1% | L48: -40.3% | M48: -100.0% | N48: 8.6% | O48: -94.0% | P48: -17.7% | Q48: -28.4% | R48: 3.7% | S48: 8.2% | T48: 10.5% | U48: 12.0%
C49: CENTRO SUR | D49: -12.8% | E49: -33.8% | F49: -2.9% | G49: -25.4% | H49: -17.1% | I49: -47.3% | J49: -18.3% | K49: 13.7% | L49: 1928.8% | M49: 94.1% | N49: 427.4% | O49: 18.1% | P49: 2.2% | Q49: -14.5% | R49: 22.3% | S49: 35.9% | T49: -15.1% | U49: -15.1%
C50: SUR | P50: -100.0% | Q50: -100.0% | R50: -28.4% | S50: 69.7% | T50: -40.9% | U50: -29.6%
C51: AUSTRAL | D51: =+D40/D18 -> -24.3% | E51: -100.0% | F51: -57.9% | G51: 200.0% | H51: 78.9% | J51: -69.8% | P51: -24.2% | Q51: -55.0% | R51: -58.0% | S51: 33.6% | T51: -50.1% | U51: -53.2%
C52: TOTAL | D52: =+D41/D19 -> 8.2% | E52: -36.1% | F52: 38.7% | G52: -31.2% | H52: -13.4% | I52: -9.4% | J52: -3.1% | K52: 15.2% | L52: -8.1% | M52: 44.8% | N52: 33.9% | O52: 8.0% | P52: -20.1% | Q52: -28.2% | R52: -29.1% | S52: 10.2% | T52: =+T41/T19 -> 1.4% | U52: =+U41/U19 -> 2.9%
C55: IMPO + EXPO (BOXES FULL) | H55: =+(D93+F93+H93+J93)/(+D71+F71+H71+J71) -> 7.4% | J55: INDICADORES SEGUNDO TRIMESTRE
C56: IMPO + EXPO (TEUs FULL) | H56: =+((D93+H93)+2*(F93+J93))/((D71+H71)+2*(F71+J71)) -> 9.9%
C57: IMPO + EXPO + TRANS + CABOT (BOXES EMPTY) | H57: =+(E93+G93+I93+K93+M93+O93+Q93+S93)/(+E71+G71+I71+K71+M71+O71+Q71+S71) -> -21.5%
C58: TRANSITO (BOXES) | H58: =+(L93+M93+N93+O93)/+(L71+M71+N71+O71) -> -6.7% | J58: PORCENTAJES DE VARIACIÓN 2021 VS. 2020
C59: CABOTAJE (BOXES) | H59: =+(P93+Q93+R93+S93)/(P71+Q71+R71+S71) -> -36.4%
C60: TEUs TOTALES | H60: =+U93/U71 -> -0.1%
C62: 2020 | D62: CANTIDAD CONTENEDORES ABRIL - JUNIO 2020 x MACROZONA
C63: MCZ | D63: IMPORTACIÓN | H63: EXPORTACIÓN | L63: TRÁNSITO | P63: CABOTAJE | T63: TOTAL BOXES | U63: TOTAL TEUS
D64: 20 pies | F64: 40 pies | H64: 20 pies | J64: 40 pies | L64: 20 pies | N64: 40 pies | P64: 20 pies | R64: 40 pies
D65: full | E65: empty | F65: full | G65: empty | H65: full | I65: empty | J65: full | K65: empty | L65: full | M65: empty | N65: full | O65: empty | P65: full | Q65: empty | R65: full | S65: empty
C66: NORTE | D66: 4,807 | E66: 11,857 | F66: 13,736 | G66: 4,148 | H66: 14,247 | I66: 2,285 | J66: 10,239 | K66: 15,295 | L66: 8,741 | M66: 0 | N66: 10,014 | O66: 0 | P66: 0 | Q66: 0 | R66: 27 | S66: 0 | T66: =SUM(D66:S66) -> 95,396 | U66: =D66+E66+H66+I66+L66+M66+P66+Q66+(2*(F66+G66+J66+K66+N66+O66+R66+S66)) -> 148,855
C67: CENTRO | D67: 41,920 | E67: 838 | F67: 81,348 | G67: 24,611 | H67: 24,314 | I67: 11,577 | J67: 70,956 | K67: 31,884 | L67: 2,755 | M67: 1,104 | N67: 5,364 | O67: 968 | P67: 883 | Q67: 3,832 | R67: 1,708 | S67: 9,603 | T67: =SUM(D67:S67) -> 313,665 | U67: =D67+E67+H67+I67+L67+M67+P67+Q67+(2*(F67+G67+J67+K67+N67+O67+R67+S67)) -> 540,107
C68: CENTRO SUR | D68: 4,309 | E68: 4,821 | F68: 7,606 | G68: 48,183 | H68: 10,456 | I68: 404 | J68: 70,656 | K68: 857 | L68: 65 | M68: 1,780 | N68: 237 | O68: 16,650 | P68: 86 | Q68: 140 | R68: 149 | S68: 392 | T68: 166,791 | U68: 311,521
C69: SUR | D69: 0 | E69: 0 | F69: 0 | G69: 0 | H69: 0 | I69: 0 | J69: 0 | K69: 0 | L69: 0 | M69: 0 | N69: 0 | O69: 0 | P69: 85 | Q69: 71 | R69: 384 | S69: 84 | T69: 624 | U69: 1,092
C70: AUSTRAL | D70: 305 | E70: 0 | F70: 499 | G70: 12 | H70: 38 | I70: 0 | J70: 664 | K70: 0 | L70: 0 | M70: 0 | N70: 0 | O70: 0 | P70: 272 | Q70: 58 | R70: 1,618 | S70: 213 | T70: 3,679 | U70: 6,685
C71: TOTAL | D71: =SUM(D66:D70) -> 51,341 | E71: =SUM(E66:E70) -> 17,516 | F71: 103,189 | G71: 76,954 | H71: 49,055 | I71: 14,266 | J71: 152,515 | K71: 48,036 | L71: 11,561 | M71: 2,884 | N71: 15,615 | O71: 17,618 | P71: 1,326 | Q71: 4,101 | R71: 3,886 | S71: 10,292 | T71: =SUM(D71:S71) -> 580,155 | U71: 1,008,260
C73: 2021 | D73: CANTIDAD CONTENEDORES ABRIL - JUNIO 2021 x MACROZONA
C74: MCZ | D74: IMPORTACIÓN | H74: EXPORTACIÓN | L74: TRÁNSITO | P74: CABOTAJE | T74: TOTAL BOXES | U74: TOTAL TEUS
D75: 20 pies | F75: 40 pies | H75: 20 pies | J75: 40 pies | L75: 20 pies | N75: 40 pies | P75: 20 pies | R75: 40 pies | W75: 1
D76: full | E76: empty | F76: full | G76: empty | H76: full | I76: empty | J76: full | K76: empty | L76: full | M76: empty | N76: full | O76: empty | P76: full | Q76: empty | R76: full | S76: empty
C77: NORTE | D77: 3,215 | E77: 8,098 | F77: 15,383 | G77: 5,854 | H77: 10,106 | I77: 702 | J77: 10,960 | K77: 14,421 | L77: 8,324 | M77: 0 | N77: 15,439 | O77: 0 | P77: 34 | Q77: 0 | R77: 29 | S77: 0 | T77: =SUM(D77:S77) -> 92,565 | U77: =D77+E77+H77+I77+L77+M77+P77+Q77+(2*(F77+G77+J77+K77+N77+O77+R77+S77)) -> 154,651
C78: CENTRO | D78: 41,403 | E78: 111 | F78: 115,025 | G78: 16,202 | H78: 24,922 | I78: 14,267 | J78: 81,900 | K78: 39,624 | L78: 2,909 | M78: 0 | N78: 5,856 | O78: 168 | P78: 480 | Q78: 1,426 | R78: 1,862 | S78: 5,523 | T78: =SUM(D78:S78) -> 351,678 | U78: =D78+E78+H78+I78+L78+M78+P78+Q78+(2*(F78+G78+J78+K78+N78+O78+R78+S78)) -> 617,838
C79: CENTRO SUR | D79: 3,833 | E79: 2,018 | F79: 7,621 | G79: 26,059 | H79: 8,452 | I79: 599 | J79: 58,643 | K79: 2,460 | L79: 95 | M79: 698 | N79: 174 | O79: 10,823 | P79: 125 | Q79: 204 | R79: 182 | S79: 1,061 | T79: 123,047 | U79: 230,070
C80: SUR | D80: 0 | E80: 0 | F80: 0 | G80: 0 | H80: 0 | I80: 0 | J80: 0 | K80: 0 | L80: 0 | M80: 0 | N80: 0 | O80: 0 | P80: 0 | Q80: 0 | R80: 0 | S80: 0 | T80: 0 | U80: 0
C81: AUSTRAL | D81: 218 | E81: 0 | F81: 374 | G81: 7 | H81: 4 | I81: 0 | J81: 334 | K81: 0 | L81: 0 | M81: 0 | N81: 0 | O81: 0 | P81: 306 | Q81: 9 | R81: 1,079 | S81: 140 | T81: 2,471 | U81: 4,405
C82: TOTAL | D82: =SUM(D77:D81) -> 48,669 | E82: =SUM(E77:E81) -> 10,227 | F82: 138,403 | G82: 48,122 | H82: 43,484 | I82: 15,568 | J82: 151,837 | K82: 56,505 | L82: 11,328 | M82: 698 | N82: 21,469 | O82: 10,991 | P82: 945 | Q82: 1,639 | R82: 3,152 | S82: 6,724 | T82: =SUM(D82:S82) -> 569,761 | U82: 1,006,964
C84: DIFERENCIA ABRIL - JUNIO 2021 vs 2020 (UNIDADES)
C85: MCZ | D85: IMPORTACIÓN | H85: EXPORTACIÓN | L85: TRÁNSITO | P85: CABOTAJE | T85: TOTAL BOXES | U85: TOTAL TEUS
D86: 20 pies | F86: 40 pies | H86: 20 pies | J86: 40 pies | L86: 20 pies | N86: 40 pies | P86: 20 pies | R86: 40 pies
D87: full | E87: empty | F87: full | G87: empty | H87: full | I87: empty | J87: full | K87: empty | L87: full | M87: empty | N87: full | O87: empty | P87: full | Q87: empty | R87: full | S87: empty
C88: NORTE | D88: =D77-D66 -> -1,592 | E88: =E77-E66 -> -3,759 | F88: 1,647 | G88: 1,706 | H88: -4,141 | I88: -1,583 | J88: 721 | K88: -874 | L88: -417 | M88: 0 | N88: 5,425 | O88: 0 | P88: 34 | Q88: 0 | R88: 2 | S88: 0 | T88: =SUM(D88:S88) -> -2,831 | U88: =D88+E88+H88+I88+L88+M88+P88+Q88+(2*(F88+G88+J88+K88+N88+O88+R88+S88)) -> 5,796
C89: CENTRO | D89: =D78-D67 -> -517 | E89: -727 | F89: 33,677 | G89: -8,409 | H89: 608 | I89: 2,690 | J89: 10,944 | K89: 7,740 | L89: 154 | M89: -1,104 | N89: 492 | O89: -800 | P89: -403 | Q89: -2,406 | R89: 154 | S89: -4,080 | T89: =SUM(D89:S89) -> 38,013 | U89: =D89+E89+H89+I89+L89+M89+P89+Q89+(2*(F89+G89+J89+K89+N89+O89+R89+S89)) -> 77,731
C90: CENTRO SUR | D90: -476 | E90: -2,803 | F90: 15 | G90: -22,124 | H90: -2,004 | I90: 195 | J90: -12,013 | K90: 1,603 | L90: 30 | M90: -1,082 | N90: -63 | O90: -5,827 | P90: 39 | Q90: 64 | R90: 33 | S90: 669 | T90: -43,744 | U90: -81,451
C91: SUR | D91: 0 | E91: 0 | F91: 0 | G91: 0 | H91: 0 | I91: 0 | J91: 0 | K91: 0 | L91: 0 | M91: 0 | N91: 0 | O91: 0 | P91: -85 | Q91: -71 | R91: -384 | S91: -84 | T91: -624 | U91: -1,092
C92: AUSTRAL | D92: -87 | E92: 0 | F92: -125 | G92: -5 | H92: -34 | I92: 0 | J92: -330 | K92: 0 | L92: 0 | M92: 0 | N92: 0 | O92: 0 | P92: 34 | Q92: -49 | R92: -539 | S92: -73 | T92: -1,208 | U92: -2,280
C93: TOTAL | D93: =D82-D71 -> -2,672 | E93: -7,289 | F93: 35,214 | G93: -28,832 | H93: -5,571 | I93: 1,302 | J93: -678 | K93: 8,469 | L93: -233 | M93: -2,186 | N93: 5,854 | O93: -6,627 | P93: -381 | Q93: -2,462 | R93: -734 | S93: -3,568 | T93: =T82-T71 -> -10,394 | U93: -1,296
C95: DIFERENCIA ABRIL - JUNIO 2021 vs 2020 (PORCENTAJES)
C96: MCZ | D96: IMPORTACIÓN | H96: EXPORTACIÓN | L96: TRÁNSITO | P96: CABOTAJE | T96: TOTAL BOXES | U96: TOTAL TEUS
D97: 20 pies | F97: 40 pies | H97: 20 pies | J97: 40 pies | L97: 20 pies | N97: 40 pies | P97: 20 pies | R97: 40 pies
D98: full | E98: empty | F98: full | G98: empty | H98: full | I98: empty | J98: full | K98: empty | L98: full | M98: empty | N98: full | O98: empty | P98: full | Q98: empty | R98: full | S98: empty
C99: NORTE | D99: =+D88/D66 -> -33.1% | E99: =+E88/E66 -> -31.7% | F99: 12.0% | G99: 41.1% | H99: -29.1% | I99: -69.3% | J99: 7.0% | K99: -5.7% | L99: -4.8% | N99: 54.2% | R99: 7.4% | T99: =+T88/T66 -> -3.0% | U99: =+U88/U66 -> 3.9%
C100: CENTRO | D100: =+D89/D67 -> -1.2% | E100: -86.8% | F100: 41.4% | G100: -34.2% | H100: 2.5% | I100: 23.2% | J100: 15.4% | K100: 24.3% | L100: 5.6% | M100: -100.0% | N100: 9.2% | O100: -82.6% | P100: -45.6% | Q100: -62.8% | R100: 9.0% | S100: -42.5% | T100: 12.1% | U100: 14.4%
C101: CENTRO SUR | D101: -11.0% | E101: -58.1% | F101: 0.2% | G101: -45.9% | H101: -19.2% | I101: 48.3% | J101: -17.0% | K101: 187.0% | L101: 46.2% | M101: -60.8% | N101: -26.6% | O101: -35.0% | P101: 45.3% | Q101: 45.7% | R101: 22.1% | S101: 170.7% | T101: -26.2% | U101: -26.1%
C102: SUR | P102: -100.0% | Q102: -100.0% | R102: -100.0% | S102: -100.0% | T102: -100.0% | U102: -100.0%
C103: AUSTRAL | D103: =+D92/D70 -> -28.5% | F103: -25.1% | G103: -41.7% | H103: -89.5% | J103: -49.7% | P103: 12.5% | Q103: -84.5% | R103: -33.3% | S103: -34.3% | T103: -32.8% | U103: -34.1%
C104: TOTAL | D104: =+D93/D71 -> -5.2% | E104: =+E93/E71 -> -41.6% | F104: 34.1% | G104: -37.5% | H104: -11.4% | I104: 9.1% | J104: -0.4% | K104: 17.6% | L104: -2.0% | M104: -75.8% | N104: 37.5% | O104: -37.6% | P104: -28.7% | Q104: -60.0% | R104: -18.9% | S104: -34.7% | T104: -1.8% | U104: -0.1%
C107: IMPO + EXPO (BOXES FULL) | H107: =+(D145+F145+H145+J145)/(+D123+F123+H123+J123) -> 3.6% | J107: INDICADORES TERCER TRIMESTRE
C108: IMPO + EXPO (TEUs FULL) | H108: =+((D145+H145)+2*(F145+J145))/((D123+H123)+2*(F123+J123)) -> 6.7%
C109: IMPO + EXPO + TRANS + CABOT (BOXES EMPTY) | H109: =+(E145+G145+I145+K145+M145+O145+Q145+S145)/(+E123+G123+I123+K123+M123+O123+Q123+S123) -> -5.3%
C110: TRANSITO (BOXES) | H110: =+(L145+M145+N145+O145)/+(L123+M123+N123+O123) -> 5.6% | J110: PORCENTAJES DE VARIACIÓN 2021 VS. 2020
C111: CABOTAJE (BOXES) | H111: =+(P145+Q145+R145+S145)/(P123+Q123+R123+S123) -> -29.6%
C112: TEUs TOTALES | H112: =+U145/U123 -> 3.9%
C114: 2020 | D114: CANTIDAD CONTENEDORES JULIO - SEPTIEMBRE 2020 x MACROZONA
C115: MCZ | D115: IMPORTACIÓN | H115: EXPORTACIÓN | L115: TRÁNSITO | P115: CABOTAJE | T115: TOTAL BOXES | U115: TOTAL TEUS
D116: 20 pies | F116: 40 pies | H116: 20 pies | J116: 40 pies | L116: 20 pies | N116: 40 pies | P116: 20 pies | R116: 40 pies
D117: full | E117: empty | F117: full | G117: empty | H117: full | I117: empty | J117: full | K117: empty | L117: full | M117: empty | N117: full | O117: empty | P117: full | Q117: empty | R117: full | S117: empty
C118: NORTE | D118: 4,728 | E118: 7,238 | F118: 13,929 | G118: 4,154 | H118: 13,036 | I118: 1,356 | J118: 9,316 | K118: 12,766 | L118: 9,269 | M118: 0 | N118: 11,874 | O118: 0 | P118: 0 | Q118: 0 | R118: 0 | S118: 0 | T118: =SUM(D118:S118) -> 87,666 | U118: =D118+E118+H118+I118+L118+M118+P118+Q118+(2*(F118+G118+J118+K118+N118+O118+R118+S118)) -> 139,705
C119: CENTRO | D119: 41,556 | E119: 513 | F119: 90,691 | G119: 18,017 | H119: 27,282 | I119: 7,466 | J119: 64,021 | K119: 26,591 | L119: 2,917 | M119: 144 | N119: 4,721 | O119: 318 | P119: 1,348 | Q119: 3,764 | R119: 2,844 | S119: 8,786 | T119: =SUM(D119:S119) -> 300,979 | U119: =D119+E119+H119+I119+L119+M119+P119+Q119+(2*(F119+G119+J119+K119+N119+O119+R119+S119)) -> 516,968
C120: CENTRO SUR | D120: 4,828 | E120: 4,770 | F120: 7,617 | G120: 44,298 | H120: 11,202 | I120: 1,258 | J120: 73,676 | K120: 2,498 | L120: 53 | M120: 832 | N120: 424 | O120: 15,218 | P120: 119 | Q120: 188 | R120: 174 | S120: 582 | T120: 167,737 | U120: 312,224
C121: SUR | D121: 0 | E121: 0 | F121: 0 | G121: 0 | H121: 0 | I121: 0 | J121: 0 | K121: 0 | L121: 0 | M121: 0 | N121: 0 | O121: 0 | P121: 28 | Q121: 27 | R121: 253 | S121: 162 | T121: 470 | U121: 885
C122: AUSTRAL | D122: 231 | E122: 6 | F122: 331 | G122: 0 | H122: 118 | I122: 0 | J122: 497 | K122: 0 | L122: 0 | M122: 0 | N122: 0 | O122: 0 | P122: 301 | Q122: 52 | R122: 1,123 | S122: 82 | T122: 2,741 | U122: 4,774
C123: TOTAL | D123: =SUM(D118:D122) -> 51,343 | E123: =SUM(E118:E122) -> 12,527 | F123: 112,568 | G123: 66,469 | H123: 51,638 | I123: 10,080 | J123: 147,510 | K123: 41,855 | L123: 12,239 | M123: 976 | N123: 17,019 | O123: 15,536 | P123: 1,796 | Q123: 4,031 | R123: 4,394 | S123: 9,612 | T123: =SUM(D123:S123) -> 559,593 | U123: 974,556
C125: 2021 | D125: CANTIDAD CONTENEDORES JULIO - SEPTIEMBRE 2021 x MACROZONA
C126: MCZ | D126: IMPORTACIÓN | H126: EXPORTACIÓN | L126: TRÁNSITO | P126: CABOTAJE | T126: TOTAL BOXES | U126: TOTAL TEUS
D127: 20 pies | F127: 40 pies | H127: 20 pies | J127: 40 pies | L127: 20 pies | N127: 40 pies | P127: 20 pies | R127: 40 pies
D128: full | E128: empty | F128: full | G128: empty | H128: full | I128: empty | J128: full | K128: empty | L128: full | M128: empty | N128: full | O128: empty | P128: full | Q128: empty | R128: full | S128: empty
C129: NORTE | D129: 2,605 | E129: 4,010 | F129: 13,387 | G129: 5,003 | H129: 7,379 | I129: 733 | J129: 10,903 | K129: 13,091 | L129: 7,954 | M129: 0 | N129: 16,110 | O129: 0 | P129: 0 | Q129: 0 | R129: 0 | S129: 0 | T129: =SUM(D129:S129) -> 81,175 | U129: =D129+E129+H129+I129+L129+M129+P129+Q129+(2*(F129+G129+J129+K129+N129+O129+R129+S129)) -> 139,669
C130: CENTRO | D130: 39,028 | E130: 541 | F130: 128,558 | G130: 14,534 | H130: 25,464 | I130: 11,112 | J130: 69,442 | K130: 45,571 | L130: 1,557 | M130: 62 | N130: 3,550 | O130: 167 | P130: 427 | Q130: 1,862 | R130: 1,967 | S130: 7,257 | T130: =SUM(D130:S130) -> 351,099 | U130: =D130+E130+H130+I130+L130+M130+P130+Q130+(2*(F130+G130+J130+K130+N130+O130+R130+S130)) -> 622,145
C131: CENTRO SUR | D131: 5,046 | E131: 2,268 | F131: 11,960 | G131: 27,335 | H131: 7,939 | I131: 871 | J131: 53,394 | K131: 3,659 | L131: 1,178 | M131: 962 | N131: 4,147 | O131: 12,642 | P131: 113 | Q131: 131 | R131: 171 | S131: 653 | T131: 132,469 | U131: 246,430
C132: SUR | D132: 0 | E132: 0 | F132: 0 | G132: 0 | H132: 0 | I132: 0 | J132: 0 | K132: 0 | L132: 0 | M132: 0 | N132: 0 | O132: 0 | P132: 0 | Q132: 0 | R132: 0 | S132: 0 | T132: 0 | U132: 0
C133: AUSTRAL | D133: 189 | E133: 0 | F133: 406 | G133: 0 | H133: 20 | I133: 0 | J133: 464 | K133: 0 | L133: 0 | M133: 0 | N133: 0 | O133: 0 | P133: 202 | Q133: 4 | R133: 1,055 | S133: 117 | T133: 2,457 | U133: 4,499
C134: TOTAL | D134: =SUM(D129:D133) -> 46,868 | E134: =SUM(E129:E133) -> 6,819 | F134: 154,311 | G134: 46,872 | H134: 40,802 | I134: 12,716 | J134: 134,203 | K134: 62,321 | L134: 10,689 | M134: 1,024 | N134: 23,807 | O134: 12,809 | P134: 742 | Q134: 1,997 | R134: 3,193 | S134: 8,027 | T134: =SUM(D134:S134) -> 567,200 | U134: 1,012,743
C136: DIFERENCIA JULIO - SEPTIEMBRE 2021 vs 2020 (UNIDADES)
C137: MCZ | D137: IMPORTACIÓN | H137: EXPORTACIÓN | L137: TRÁNSITO | P137: CABOTAJE | T137: TOTAL BOXES | U137: TOTAL TEUS
D138: 20 pies | F138: 40 pies | H138: 20 pies | J138: 40 pies | L138: 20 pies | N138: 40 pies | P138: 20 pies | R138: 40 pies
D139: full | E139: empty | F139: full | G139: empty | H139: full | I139: empty | J139: full | K139: empty | L139: full | M139: empty | N139: full | O139: empty | P139: full | Q139: empty | R139: full | S139: empty
C140: NORTE | D140: =D129-D118 -> -2,123 | E140: =E129-E118 -> -3,228 | F140: -542 | G140: 849 | H140: -5,657 | I140: -623 | J140: 1,587 | K140: 325 | L140: -1,315 | M140: 0 | N140: 4,236 | O140: 0 | P140: 0 | Q140: 0 | R140: 0 | S140: 0 | T140: =SUM(D140:S140) -> -6,491 | U140: =D140+E140+H140+I140+L140+M140+P140+Q140+(2*(F140+G140+J140+K140+N140+O140+R140+S140)) -> -36
C141: CENTRO | D141: =D130-D119 -> -2,528 | E141: 28 | F141: 37,867 | G141: -3,483 | H141: -1,818 | I141: 3,646 | J141: 5,421 | K141: 18,980 | L141: -1,360 | M141: -82 | N141: -1,171 | O141: -151 | P141: -921 | Q141: -1,902 | R141: -877 | S141: -1,529 | T141: =SUM(D141:S141) -> 50,120 | U141: =D141+E141+H141+I141+L141+M141+P141+Q141+(2*(F141+G141+J141+K141+N141+O141+R141+S141)) -> 105,177
C142: CENTRO SUR | D142: 218 | E142: -2,502 | F142: 4,343 | G142: -16,963 | H142: -3,263 | I142: -387 | J142: -20,282 | K142: 1,161 | L142: 1,125 | M142: 130 | N142: 3,723 | O142: -2,576 | P142: -6 | Q142: -57 | R142: -3 | S142: 71 | T142: -35,268 | U142: -65,794
C143: SUR | D143: 0 | E143: 0 | F143: 0 | G143: 0 | H143: 0 | I143: 0 | J143: 0 | K143: 0 | L143: 0 | M143: 0 | N143: 0 | O143: 0 | P143: -28 | Q143: -27 | R143: -253 | S143: -162 | T143: -470 | U143: -885
C144: AUSTRAL | D144: -42 | E144: -6 | F144: 75 | G144: 0 | H144: -98 | I144: 0 | J144: -33 | K144: 0 | L144: 0 | M144: 0 | N144: 0 | O144: 0 | P144: -99 | Q144: -48 | R144: -68 | S144: 35 | T144: -284 | U144: -275
C145: TOTAL | D145: =D134-D123 -> -4,475 | E145: -5,708 | F145: 41,743 | G145: -19,597 | H145: -10,836 | I145: 2,636 | J145: -13,307 | K145: 20,466 | L145: -1,550 | M145: 48 | N145: 6,788 | O145: -2,727 | P145: -1,054 | Q145: -2,034 | R145: -1,201 | S145: -1,585 | T145: =T134-T123 -> 7,607 | U145: 38,187
C147: DIFERENCIA JULIO - SEPTIEMBRE 2021 vs 2020 (PORCENTAJES)
C148: MCZ | D148: IMPORTACIÓN | H148: EXPORTACIÓN | L148: TRÁNSITO | P148: CABOTAJE | T148: TOTAL BOXES | U148: TOTAL TEUS
D149: 20 pies | F149: 40 pies | H149: 20 pies | J149: 40 pies | L149: 20 pies | N149: 40 pies | P149: 20 pies | R149: 40 pies
D150: full | E150: empty | F150: full | G150: empty | H150: full | I150: empty | J150: full | K150: empty | L150: full | M150: empty | N150: full | O150: empty | P150: full | Q150: empty | R150: full | S150: empty
C151: NORTE | D151: =+D140/D118 -> -44.9% | E151: =+E140/E118 -> -44.6% | F151: -3.9% | G151: 20.4% | H151: -43.4% | I151: -45.9% | J151: 17.0% | K151: 2.5% | L151: -14.2% | N151: 35.7% | T151: =+T140/T118 -> -7.4% | U151: =+U140/U118 -> -0.0%
C152: CENTRO | D152: =+D141/D119 -> -6.1% | E152: 5.5% | F152: 41.8% | G152: -19.3% | H152: -6.7% | I152: 48.8% | J152: 8.5% | K152: 71.4% | L152: -46.6% | M152: -56.9% | N152: -24.8% | O152: -47.5% | P152: -68.3% | Q152: -50.5% | R152: -30.8% | S152: -17.4% | T152: 16.7% | U152: 20.3%
C153: CENTRO SUR | D153: 4.5% | E153: -52.5% | F153: 57.0% | G153: -38.3% | H153: -29.1% | I153: -30.8% | J153: -27.5% | K153: 46.5% | L153: 2122.6% | M153: 15.6% | N153: 878.1% | O153: -16.9% | P153: -5.0% | Q153: -30.3% | R153: -1.7% | S153: 12.2% | T153: -21.0% | U153: -21.1%
C154: SUR | P154: -100.0% | Q154: -100.0% | T154: -100.0% | U154: -100.0%
C155: AUSTRAL | D155: =+D144/D122 -> -18.2% | F155: 22.7% | H155: -83.1% | J155: -6.6% | P155: -32.9% | Q155: -92.3% | R155: -6.1% | S155: 42.7% | T155: -10.4% | U155: -5.8%
C156: TOTAL | D156: =+D145/D123 -> -8.7% | E156: =+E145/E123 -> -45.6% | F156: 37.1% | G156: -29.5% | H156: -21.0% | I156: 26.2% | J156: -9.0% | K156: 48.9% | L156: -12.7% | M156: 4.9% | N156: 39.9% | O156: -17.6% | P156: -58.7% | Q156: -50.5% | R156: -27.3% | S156: -16.5% | T156: 1.4% | U156: 3.9%
C159: IMPO + EXPO (BOXES FULL) | H159: =+(D197+F197+H197+J197)/(+D175+F175+H175+J175) -> 3.6% | J159: INDICADORES CUARTO TRIMESTRE
C160: IMPO + EXPO (TEUs FULL) | H160: =+((D197+H197)+2*(F197+J197))/((D175+H175)+2*(F175+J175)) -> 6.3%
C161: IMPO + EXPO + TRANS + CABOT (BOXES EMPTY) | H161: =+(E197+G197+I197+K197+M197+O197+Q197+S197)/(+E175+G175+I175+K175+M175+O175+Q175+S175) -> -16.3%
C162: TRANSITO (BOXES) | H162: =+(L197+M197+N197+O197)/+(L175+M175+N175+O175) -> 8.4% | J162: PORCENTAJES DE VARIACIÓN 2021 VS. 2020
C163: CABOTAJE (BOXES) | H163: =+(P197+Q197+R197+S197)/(P175+Q175+R175+S175) -> -16.2%
C164: TEUs TOTALES | H164: =+U197/U175 -> 1.2%
C166: 2020 | D166: CANTIDAD CONTENEDORES OCTUBRE - DICIEMBRE 2020 x MACROZONA
C167: MCZ | D167: IMPORTACIÓN | H167: EXPORTACIÓN | L167: TRÁNSITO | P167: CABOTAJE | T167: TOTAL BOXES | U167: TOTAL TEUS
D168: 20 pies | F168: 40 pies | H168: 20 pies | J168: 40 pies | L168: 20 pies | N168: 40 pies | P168: 20 pies | R168: 40 pies
D169: full | E169: empty | F169: full | G169: empty | H169: full | I169: empty | J169: full | K169: empty | L169: full | M169: empty | N169: full | O169: empty | P169: full | Q169: empty | R169: full | S169: empty
C170: NORTE | D170: 4,593 | E170: 10,501 | F170: 17,892 | G170: 3,818 | H170: 15,077 | I170: 708 | J170: 10,956 | K170: 16,950 | L170: 10,325 | M170: 0 | N170: 15,297 | O170: 0 | P170: 0 | Q170: 0 | R170: 0 | S170: 0 | T170: =SUM(D170:S170) -> 106,117 | U170: =D170+E170+H170+I170+L170+M170+P170+Q170+(2*(F170+G170+J170+K170+N170+O170+R170+S170)) -> 171,030
C171: CENTRO | D171: 42,714 | E171: 466 | F171: 110,109 | G171: 16,489 | H171: 29,130 | I171: 7,520 | J171: 64,992 | K171: 41,081 | L171: 1,862 | M171: 34 | N171: 3,683 | O171: 1,627 | P171: 355 | Q171: 4,009 | R171: 1,041 | S171: 11,072 | T171: =SUM(D171:S171) -> 336,184 | U171: =D171+E171+H171+I171+L171+M171+P171+Q171+(2*(F171+G171+J171+K171+N171+O171+R171+S171)) -> 586,278
C172: CENTRO SUR | D172: 4,875 | E172: 4,002 | F172: 7,929 | G172: 46,444 | H172: 9,949 | I172: 592 | J172: 74,918 | K172: 3,964 | L172: 50 | M172: 323 | N172: 155 | O172: 14,232 | P172: 122 | Q172: 220 | R172: 56 | S172: 505 | T172: 168,336 | U172: 316,539
C173: SUR | D173: 0 | E173: 0 | F173: 0 | G173: 0 | H173: 0 | I173: 0 | J173: 0 | K173: 0 | L173: 0 | M173: 0 | N173: 0 | O173: 0 | P173: 17 | Q173: 30 | R173: 256 | S173: 50 | T173: 353 | U173: 659
C174: AUSTRAL | D174: 215 | E174: 5 | F174: 343 | G174: 1 | H174: 15 | I174: 0 | J174: 451 | K174: 0 | L174: 0 | M174: 0 | N174: 0 | O174: 0 | P174: 273 | Q174: 46 | R174: 950 | S174: 41 | T174: 2,340 | U174: 4,126
C175: TOTAL | D175: =SUM(D170:D174) -> 52,397 | E175: =SUM(E170:E174) -> 14,974 | F175: 136,273 | G175: 66,752 | H175: 54,171 | I175: 8,820 | J175: 151,317 | K175: 61,995 | L175: 12,237 | M175: 357 | N175: 19,135 | O175: 15,859 | P175: 767 | Q175: 4,305 | R175: 2,303 | S175: 11,668 | T175: =SUM(D175:S175) -> 613,330 | U175: 1,078,632
C177: 2021 | D177: CANTIDAD CONTENEDORES OCTUBRE - DICIEMBRE 2021 x MACROZONA
C178: MCZ | D178: IMPORTACIÓN | H178: EXPORTACIÓN | L178: TRÁNSITO | P178: CABOTAJE | T178: TOTAL BOXES | U178: TOTAL TEUS
D179: 20 pies | F179: 40 pies | H179: 20 pies | J179: 40 pies | L179: 20 pies | N179: 40 pies | P179: 20 pies | R179: 40 pies
D180: full | E180: empty | F180: full | G180: empty | H180: full | I180: empty | J180: full | K180: empty | L180: full | M180: empty | N180: full | O180: empty | P180: full | Q180: empty | R180: full | S180: empty
C181: NORTE | D181: 3,169 | E181: 7,345 | F181: 15,696 | G181: 5,693 | H181: 9,607 | I181: 1,028 | J181: 10,723 | K181: 16,322 | L181: 7,230 | M181: 0 | N181: 15,239 | O181: 0 | P181: 2 | Q181: 0 | R181: 0 | S181: 0 | T181: =SUM(D181:S181) -> 92,054 | U181: =D181+E181+H181+I181+L181+M181+P181+Q181+(2*(F181+G181+J181+K181+N181+O181+R181+S181)) -> 155,727
C182: CENTRO | D182: 39,095 | E182: 267 | F182: 144,253 | G182: 8,996 | H182: 28,089 | I182: 6,088 | J182: 72,465 | K182: 53,577 | L182: 2,904 | M182: 33 | N182: 5,558 | O182: 755 | P182: 1,361 | Q182: 1,471 | R182: 3,871 | S182: 6,024 | T182: =SUM(D182:S182) -> 374,807 | U182: =D182+E182+H182+I182+L182+M182+P182+Q182+(2*(F182+G182+J182+K182+N182+O182+R182+S182)) -> 670,306
C183: CENTRO SUR | D183: 4,381 | E183: 1,355 | F183: 10,616 | G183: 27,779 | H183: 7,632 | I183: 1,309 | J183: 61,273 | K183: 2,817 | L183: 1,242 | M183: 1,017 | N183: 6,262 | O183: 11,328 | P183: 115 | Q183: 223 | R183: 211 | S183: 909 | T183: 138,469 | U183: 259,664
C184: SUR | D184: 0 | E184: 0 | F184: 0 | G184: 0 | H184: 0 | I184: 0 | J184: 0 | K184: 0 | L184: 0 | M184: 0 | N184: 0 | O184: 0 | P184: 0 | Q184: 0 | R184: 0 | S184: 0 | T184: 0 | U184: 0
C185: AUSTRAL | D185: 228 | E185: 0 | F185: 626 | G185: 17 | H185: 30 | I185: 0 | J185: 435 | K185: 0 | L185: 0 | M185: 0 | N185: 0 | O185: 0 | P185: 256 | Q185: 9 | R185: 1,279 | S185: 235 | T185: 3,115 | U185: 5,707
C186: TOTAL | D186: =SUM(D181:D185) -> 46,873 | E186: =SUM(E181:E185) -> 8,967 | F186: 171,191 | G186: 42,485 | H186: 45,358 | I186: 8,425 | J186: 144,896 | K186: 72,716 | L186: 11,376 | M186: 1,050 | N186: 27,059 | O186: 12,083 | P186: 1,734 | Q186: 1,703 | R186: 5,361 | S186: 7,168 | T186: =SUM(D186:S186) -> 608,445 | U186: 1,091,404
C188: DIFERENCIA OCTUBRE - DICIEMBRE 2021 vs 2020 (UNIDADES)
C189: MCZ | D189: IMPORTACIÓN | H189: EXPORTACIÓN | L189: TRÁNSITO | P189: CABOTAJE | T189: TOTAL BOXES | U189: TOTAL TEUS
D190: 20 pies | F190: 40 pies | H190: 20 pies | J190: 40 pies | L190: 20 pies | N190: 40 pies | P190: 20 pies | R190: 40 pies
D191: full | E191: empty | F191: full | G191: empty | H191: full | I191: empty | J191: full | K191: empty | L191: full | M191: empty | N191: full | O191: empty | P191: full | Q191: empty | R191: full | S191: empty
C192: NORTE | D192: =D181-D170 -> -1,424 | E192: =E181-E170 -> -3,156 | F192: -2,196 | G192: 1,875 | H192: -5,470 | I192: 320 | J192: -233 | K192: -628 | L192: -3,095 | M192: 0 | N192: -58 | O192: 0 | P192: 2 | Q192: 0 | R192: 0 | S192: 0 | T192: =SUM(D192:S192) -> -14,063 | U192: =D192+E192+H192+I192+L192+M192+P192+Q192+(2*(F192+G192+J192+K192+N192+O192+R192+S192)) -> -15,303
C193: CENTRO | D193: =D182-D171 -> -3,619 | E193: -199 | F193: 34,144 | G193: -7,493 | H193: -1,041 | I193: -1,432 | J193: 7,473 | K193: 12,496 | L193: 1,042 | M193: -1 | N193: 1,875 | O193: -872 | P193: 1,006 | Q193: -2,538 | R193: 2,830 | S193: -5,048 | T193: =SUM(D193:S193) -> 38,623 | U193: =D193+E193+H193+I193+L193+M193+P193+Q193+(2*(F193+G193+J193+K193+N193+O193+R193+S193)) -> 84,028
C194: CENTRO SUR | D194: -494 | E194: -2,647 | F194: 2,687 | G194: -18,665 | H194: -2,317 | I194: 717 | J194: -13,645 | K194: -1,147 | L194: 1,192 | M194: 694 | N194: 6,107 | O194: -2,904 | P194: -7 | Q194: 3 | R194: 155 | S194: 404 | T194: -29,867 | U194: -56,875
C195: SUR | D195: 0 | E195: 0 | F195: 0 | G195: 0 | H195: 0 | I195: 0 | J195: 0 | K195: 0 | L195: 0 | M195: 0 | N195: 0 | O195: 0 | P195: -17 | Q195: -30 | R195: -256 | S195: -50 | T195: -353 | U195: -659
C196: AUSTRAL | D196: 13 | E196: -5 | F196: 283 | G196: 16 | H196: 15 | I196: 0 | J196: -16 | K196: 0 | L196: 0 | M196: 0 | N196: 0 | O196: 0 | P196: -17 | Q196: -37 | R196: 329 | S196: 194 | T196: 775 | U196: 1,581
C197: TOTAL | D197: =D186-D175 -> -5,524 | E197: -6,007 | F197: 34,918 | G197: -24,267 | H197: -8,813 | I197: -395 | J197: -6,421 | K197: 10,721 | L197: -861 | M197: 693 | N197: 7,924 | O197: -3,776 | P197: 967 | Q197: -2,602 | R197: 3,058 | S197: -4,500 | T197: =T186-T175 -> -4,885 | U197: 12,772
C199: DIFERENCIA OCTUBRE - DICIEMBRE 2021 vs 2020 (PORCENTAJES)
C200: MCZ | D200: IMPORTACIÓN | H200: EXPORTACIÓN | L200: TRÁNSITO | P200: CABOTAJE | T200: TOTAL BOXES | U200: TOTAL TEUS
D201: 20 pies | F201: 40 pies | H201: 20 pies | J201: 40 pies | L201: 20 pies | N201: 40 pies | P201: 20 pies | R201: 40 pies
D202: full | E202: empty | F202: full | G202: empty | H202: full | I202: empty | J202: full | K202: empty | L202: full | M202: empty | N202: full | O202: empty | P202: full | Q202: empty | R202: full | S202: empty
C203: NORTE | D203: =+D192/D170 -> -31.0% | E203: =+E192/E170 -> -30.1% | F203: -12.3% | G203: 49.1% | H203: -36.3% | I203: 45.2% | J203: -2.1% | K203: -3.7% | L203: -30.0% | N203: =+N192/N170 -> -0.4% | T203: =+T192/T170 -> -13.3% | U203: =+U192/U170 -> -8.9%
C204: CENTRO | D204: =+D193/D171 -> -8.5% | E204: -42.7% | F204: 31.0% | G204: -45.4% | H204: -3.6% | I204: -19.0% | J204: 11.5% | K204: 30.4% | L204: 56.0% | M204: -2.9% | N204: 50.9% | O204: -53.6% | P204: 283.4% | Q204: -63.3% | R204: 271.9% | S204: -45.6% | T204: 11.5% | U204: 14.3%
C205: CENTRO SUR | D205: -10.1% | E205: -66.1% | F205: 33.9% | G205: -40.2% | H205: -23.3% | I205: 121.1% | J205: -18.2% | K205: -28.9% | L205: 2384.0% | M205: 214.9% | N205: 3940.0% | O205: -20.4% | P205: -5.7% | Q205: 1.4% | R205: 276.8% | S205: 80.0% | T205: -17.7% | U205: -18.0%
C206: SUR | P206: -100.0% | Q206: -100.0% | T206: -100.0% | U206: -100.0%
C207: AUSTRAL | D207: =+D196/D174 -> 6.0% | F207: =+F196/F174 -> 82.5% | G207: 1600.0% | H207: 100.0% | J207: =+J196/J174 -> -3.5% | P207: -6.2% | Q207: -80.4% | R207: 34.6% | S207: 473.2% | T207: 33.1% | U207: 38.3%
C208: TOTAL | D208: =+D197/D175 -> -10.5% | E208: =+E197/E175 -> -40.1% | F208: 25.6% | G208: -36.4% | H208: -16.3% | I208: -4.5% | J208: -4.2% | K208: 17.3% | L208: -7.0% | M208: 194.1% | N208: 41.4% | O208: -23.8% | P208: 126.1% | Q208: -60.4% | R208: 132.8% | S208: -38.6% | T208: -0.8% | U208: 1.2%
C211: IMPO + EXPO (BOXES FULL) | H211: =+(D249+F249+H249+J249)/(+D227+F227+H227+J227) -> 5.9% | J211: INDICADORES ENERO - DICIEMBRE
C212: IMPO + EXPO (TEUs FULL) | H212: =+((D249+H249)+2*(F249+J249))/((D227+H227)+2*(F227+J227)) -> 8.4%
C213: IMPO + EXPO + TRANS + CABOT (BOXES EMPTY) | H213: =+(E249+G249+I249+K249+M249+O249+Q249+S249)/+(E227+G227+I227+K227+M227+O227+Q227+S227) -> -14.4%
C214: TRANSITO (BOXES) | H214: =+(L249+M249+N249+O249)/+(L227+M227+N227+O227) -> 5.1% | J214: PORCENTAJES DE VARIACIÓN 2021 VS. 2020
C215: CABOTAJE (BOXES) | H215: =+(P249+Q249+R249+S249)/(P227+Q227+R227+S227) -> -21.5%
C216: TEUs TOTALES | H216: =+U249/U227 -> 2.0%
C218: 2020 | D218: CANTIDAD CONTENEDORES ENERO - DICIEMBRE 2020 x MACROZONA
C219: MCZ | D219: IMPORTACIÓN | H219: EXPORTACIÓN | L219: TRÁNSITO | P219: CABOTAJE | T219: TOTAL BOXES | U219: TOTAL TEUS
D220: 20 pies | F220: 40 pies | H220: 20 pies | J220: 40 pies | L220: 20 pies | N220: 40 pies | P220: 20 pies | R220: 40 pies
D221: full | E221: empty | F221: full | G221: empty | H221: full | I221: empty | J221: full | K221: empty | L221: full | M221: empty | N221: full | O221: empty | P221: full | Q221: empty | R221: full | S221: empty
C222: NORTE | D222: =D14+D66+D118+D170 -> 18,729 | E222: =E14+E66+E118+E170 -> 40,570 | F222: 60,396 | G222: 16,196 | H222: 56,926 | I222: 6,087 | J222: 40,195 | K222: 61,233 | L222: 38,724 | M222: 0 | N222: 49,078 | O222: 0 | P222: 0 | Q222: 0 | R222: 69 | S222: 0 | T222: =T14+T66+T118+T170 -> 388,203 | U222: =U14+U66+U118+U170 -> 615,370
C223: CENTRO | D223: =D15+D67+D119+D171 -> 166,956 | E223: 3,240 | F223: 363,926 | G223: 99,924 | H223: 104,284 | I223: 36,052 | J223: 274,615 | K223: 133,623 | L223: 11,635 | M223: 1,534 | N223: 19,075 | O223: 4,106 | P223: 3,291 | Q223: 17,716 | R223: 7,178 | S223: 42,025 | T223: 1,289,180 | U223: 2,233,652
C224: CENTRO SUR | D224: 18,695 | E224: 20,727 | F224: 30,574 | G224: 185,381 | H224: 43,229 | I224: 2,947 | J224: 289,060 | K224: 8,453 | L224: 220 | M224: 3,659 | N224: 1,090 | O224: 58,074 | P224: 512 | Q224: 996 | R224: 558 | S224: 2,259 | T224: 666,434 | U224: 1,241,883
C225: SUR | D225: 0 | E225: 0 | F225: 0 | G225: 0 | H225: 0 | I225: 0 | J225: 0 | K225: 0 | L225: 0 | M225: 0 | N225: 0 | O225: 0 | P225: 177 | Q225: 180 | R225: 1,069 | S225: 329 | T225: 1,755 | U225: 3,153
C226: AUSTRAL | D226: 1,196 | E226: 14 | F226: 2,172 | G226: 17 | H226: 209 | I226: 0 | J226: 2,454 | K226: 0 | L226: 0 | M226: 0 | N226: 0 | O226: 0 | P226: 1,351 | Q226: 196 | R226: 5,769 | S226: 464 | T226: 13,842 | U226: 24,718
C227: TOTAL | D227: =SUM(D222:D226) -> 205,576 | E227: =SUM(E222:E226) -> 64,551 | F227: 457,068 | G227: 301,518 | H227: 204,648 | I227: 45,086 | J227: 606,324 | K227: 203,309 | L227: 50,579 | M227: 5,193 | N227: 69,243 | O227: 62,180 | P227: 5,331 | Q227: 19,088 | R227: 14,643 | S227: 45,077 | T227: =SUM(D227:S227) -> 2,359,414 | U227: =D227+E227+H227+I227+L227+M227+P227+Q227+(2*(F227+G227+J227+K227+N227+O227+R227+S227)) -> 4,118,776
... 30 more rows

Sheet 2020 VS 2019
C3: IMPO + EXPO (BOXES FULL) | H3: =+(D41+F41+H41+J41)/(+D19+F19+H19+J19) -> -7.8% | J3: INDICADORES PRIMER TRIMESTRE
C4: IMPO + EXPO (TEUs FULL) | H4: =+((D41+H41)+2*(F41+J41))/((D19+H19)+2*(F19+J19)) -> -7.4%
C5: IMPO + EXPO + TRANS + CABOT (BOXES EMPTY) | H5: =+(E41+G41+I41+K41+M41++O41+Q41+S41)/(+E19+G19+I19+K19+M19+O19+Q19+S19) -> -15.1%
C6: TRANSITO (BOXES) | H6: =+(L41+M41+N41+O41)/+(L19+M19+N19+O19) -> -21.8% | J6: PORCENTAJES DE VARIACIÓN 2020 VS. 2019
C7: CABOTAJE (BOXES) | H7: =+(P41+Q41+R41+S41)/(P19+Q19+R19+S19) -> 5.1%
C8: TEUs TOTALES | H8: =+U41/U19 -> -9.7%
C10: 2019 | D10: CANTIDAD CONTENEDORES ENERO - MARZO 2019 x MACROZONA
C11: MCZ | D11: IMPORTACIÓN | H11: EXPORTACIÓN | L11: TRÁNSITO | P11: CABOTAJE | T11: TOTAL BOXES | U11: TOTAL TEUS
D12: 20 pies | F12: 40 pies | H12: 20 pies | J12: 40 pies | L12: 20 pies | N12: 40 pies | P12: 20 pies | R12: 40 pies
D13: full | E13: empty | F13: full | G13: empty | H13: full | I13: empty | J13: full | K13: empty | L13: full | M13: empty | N13: full | O13: empty | P13: full | Q13: empty | R13: full | S13: empty
C14: NORTE | D14: 5,726 | E14: 10,506 | F14: 13,941 | G14: 3,973 | H14: 15,140 | I14: 3,000 | J14: 8,110 | K14: 21,266 | L14: 10,399 | M14: 0 | N14: 12,904 | O14: 0 | P14: 0 | Q14: 0 | R14: 38 | S14: 0 | T14: =SUM(D14:S14) -> 105,003 | U14: =D14+E14+H14+I14+L14+M14+P14+Q14+(2*(F14+G14+J14+K14+N14+O14+R14+S14)) -> 165,235
C15: CENTRO | D15: 48,127 | E15: 1,922 | F15: 102,608 | G15: 40,008 | H15: 25,645 | I15: 16,243 | J15: 76,125 | K15: 54,739 | L15: 2,685 | M15: 159 | N15: 4,803 | O15: 1,691 | P15: 893 | Q15: 6,434 | R15: 1,769 | S15: 10,966 | T15: =SUM(D15:S15) -> 394,817 | U15: =D15+E15+H15+I15+L15+M15+P15+Q15+(2*(F15+G15+J15+K15+N15+O15+R15+S15)) -> 687,526
C16: CENTRO SUR | D16: 5,153 | E16: 5,979 | F16: 6,940 | G16: 38,195 | H16: 11,531 | I16: 1,131 | J16: 70,119 | K16: 1,909 | L16: 45 | M16: 2,810 | N16: 175 | O16: 23,355 | P16: 129 | Q16: 318 | R16: 150 | S16: 697 | T16: 168,636 | U16: 310,176
C17: SUR | D17: 0 | E17: 0 | F17: 0 | G17: 0 | H17: 0 | I17: 0 | J17: 0 | K17: 0 | L17: 0 | M17: 0 | N17: 0 | O17: 0 | P17: 368 | Q17: 131 | R17: 0 | S17: 0 | T17: 499 | U17: 499
C18: AUSTRAL | D18: 362 | E18: 8 | F18: 835 | G18: 12 | H18: 134 | I18: 4 | J18: 462 | K18: 6 | L18: 0 | M18: 0 | N18: 0 | O18: 0 | P18: 299 | Q18: 100 | R18: 1,968 | S18: 145 | T18: 4,335 | U18: 7,763
C19: TOTAL | D19: =SUM(D14:D18) -> 59,368 | E19: =SUM(E14:E18) -> 18,415 | F19: 124,324 | G19: 82,188 | H19: 52,450 | I19: 20,378 | J19: 154,816 | K19: 77,920 | L19: 13,129 | M19: 2,969 | N19: 17,882 | O19: 25,046 | P19: 1,689 | Q19: 6,983 | R19: 3,925 | S19: 11,808 | T19: =SUM(D19:S19) -> 673,290 | U19: 1,171,199
C21: 2020 | D21: CANTIDAD CONTENEDORES ENERO - MARZO 2020 x MACROZONA
C22: MCZ | D22: IMPORTACIÓN | H22: EXPORTACIÓN | L22: TRÁNSITO | P22: CABOTAJE | T22: TOTAL BOXES | U22: TOTAL TEUS
D23: 20 pies | F23: 40 pies | H23: 20 pies | J23: 40 pies | L23: 20 pies | N23: 40 pies | P23: 20 pies | R23: 40 pies
D24: full | E24: empty | F24: full | G24: empty | H24: full | I24: empty | J24: full | K24: empty | L24: full | M24: empty | N24: full | O24: empty | P24: full | Q24: empty | R24: full | S24: empty
C25: NORTE | D25: 4,601 | E25: 10,974 | F25: 14,839 | G25: 4,076 | H25: 14,566 | I25: 1,738 | J25: 9,684 | K25: 16,222 | L25: 10,389 | M25: 0 | N25: 11,893 | O25: 0 | P25: 0 | Q25: 0 | R25: 42 | S25: 0 | T25: 99,024 | U25: 155,780
C26: CENTRO | D26: 40,766 | E26: 1,423 | F26: 81,778 | G26: 40,807 | H26: 23,558 | I26: 9,489 | J26: 74,646 | K26: 34,067 | L26: 4,101 | M26: 252 | N26: 5,307 | O26: 1,193 | P26: 705 | Q26: 6,111 | R26: 1,585 | S26: 12,564 | T26: 338,352 | U26: 590,299
C27: CENTRO SUR | D27: 4,683 | E27: 7,134 | F27: 7,422 | G27: 46,456 | H27: 11,622 | I27: 693 | J27: 69,810 | K27: 1,134 | L27: 52 | M27: 724 | N27: 274 | O27: 11,974 | P27: 185 | Q27: 448 | R27: 179 | S27: 780 | T27: 163,570 | U27: 301,599
C28: SUR | D28: 0 | E28: 0 | F28: 0 | G28: 0 | H28: 0 | I28: 0 | J28: 0 | K28: 0 | L28: 0 | M28: 0 | N28: 0 | O28: 0 | P28: 47 | Q28: 52 | R28: 176 | S28: 33 | T28: 308 | U28: 517
C29: AUSTRAL | D29: 445 | E29: 3 | F29: 999 | G29: 4 | H29: 38 | I29: 0 | J29: 842 | K29: 0 | L29: 0 | M29: 0 | N29: 0 | O29: 0 | P29: 505 | Q29: 40 | R29: 2,078 | S29: 128 | T29: 5,082 | U29: 9,133
C30: TOTAL | D30: =SUM(D25:D29) -> 50,495 | E30: =SUM(E25:E29) -> 19,534 | F30: 105,038 | G30: 91,343 | H30: 49,784 | I30: 11,920 | J30: 154,982 | K30: 51,423 | L30: 14,542 | M30: 976 | N30: 17,474 | O30: 13,167 | P30: 1,442 | Q30: 6,651 | R30: 4,060 | S30: 13,505 | T30: =SUM(D30:S30) -> 606,336 | U30: =D30+E30+H30+I30+L30+M30+P30+Q30+(2*(F30+G30+J30+K30+N30+O30+R30+S30)) -> 1,057,328
C32: DIFERENCIA ENERO - MARZO 2020 vs 2019 (UNIDADES)
C33: MCZ | D33: IMPORTACIÓN | H33: EXPORTACIÓN | L33: TRÁNSITO | P33: CABOTAJE | T33: TOTAL BOXES | U33: TOTAL TEUS
D34: 20 pies | F34: 40 pies | H34: 20 pies | J34: 40 pies | L34: 20 pies | N34: 40 pies | P34: 20 pies | R34: 40 pies
D35: full | E35: empty | F35: full | G35: empty | H35: full | I35: empty | J35: full | K35: empty | L35: full | M35: empty | N35: full | O35: empty | P35: full | Q35: empty | R35: full | S35: empty
C36: NORTE | D36: =D25-D14 -> -1,125 | E36: =E25-E14 -> 468 | F36: 898 | G36: 103 | H36: -574 | I36: -1,262 | J36: 1,574 | K36: -5,044 | L36: -10 | M36: 0 | N36: -1,011 | O36: 0 | P36: 0 | Q36: 0 | R36: 4 | S36: 0 | T36: =SUM(D36:S36) -> -5,979 | U36: =D36+E36+H36+I36+L36+M36+P36+Q36+(2*(F36+G36+J36+K36+N36+O36+R36+S36)) -> -9,455
C37: CENTRO | D37: =D26-D15 -> -7,361 | E37: -499 | F37: -20,830 | G37: 799 | H37: -2,087 | I37: -6,754 | J37: -1,479 | K37: -20,672 | L37: 1,416 | M37: 93 | N37: 504 | O37: -498 | P37: -188 | Q37: -323 | R37: -184 | S37: 1,598 | T37: =SUM(D37:S37) -> -56,465 | U37: =D37+E37+H37+I37+L37+M37+P37+Q37+(2*(F37+G37+J37+K37+N37+O37+R37+S37)) -> -97,227
C38: CENTRO SUR | D38: -470 | E38: 1,155 | F38: 482 | G38: 8,261 | H38: 91 | I38: -438 | J38: -309 | K38: -775 | L38: 7 | M38: -2,086 | N38: 99 | O38: -11,381 | P38: 56 | Q38: 130 | R38: 29 | S38: 83 | T38: -5,066 | U38: -8,577
C39: SUR | D39: 0 | E39: 0 | F39: 0 | G39: 0 | H39: 0 | I39: 0 | J39: 0 | K39: 0 | L39: 0 | M39: 0 | N39: 0 | O39: 0 | P39: -321 | Q39: -79 | R39: 176 | S39: 33 | T39: -191 | U39: 18
C40: AUSTRAL | D40: 83 | E40: -5 | F40: 164 | G40: -8 | H40: -96 | I40: -4 | J40: 380 | K40: -6 | L40: 0 | M40: 0 | N40: 0 | O40: 0 | P40: 206 | Q40: -60 | R40: 110 | S40: -17 | T40: 747 | U40: 1,371
C41: TOTAL | D41: =D30-D19 -> -8,873 | E41: 1,119 | F41: -19,286 | G41: 9,155 | H41: -2,666 | I41: -8,458 | J41: 166 | K41: -26,497 | L41: 1,413 | M41: -1,993 | N41: -408 | O41: -11,879 | P41: -247 | Q41: -332 | R41: 135 | S41: 1,697 | T41: =T30-T19 -> -66,954 | U41: -113,871
C43: DIFERENCIA ENERO - MARZO 2020 vs 2019 (PORCENTAJES)
C44: MCZ | D44: IMPORTACIÓN | H44: EXPORTACIÓN | L44: TRÁNSITO | P44: CABOTAJE | T44: TOTAL BOXES | U44: TOTAL TEUS
D45: 20 pies | F45: 40 pies | H45: 20 pies | J45: 40 pies | L45: 20 pies | N45: 40 pies | P45: 20 pies | R45: 40 pies
D46: full | E46: empty | F46: full | G46: empty | H46: full | I46: empty | J46: full | K46: empty | L46: full | M46: empty | N46: full | O46: empty | P46: full | Q46: empty | R46: full | S46: empty
C47: NORTE | D47: =+D36/D14 -> -19.6% | E47: =+E36/E14 -> 4.5% | F47: 6.4% | G47: 2.6% | H47: -3.8% | I47: -42.1% | J47: 19.4% | K47: -23.7% | L47: -0.1% | N47: -7.8% | R47: 10.5% | T47: =+T36/T14 -> -5.7% | U47: =+U36/U14 -> -5.7%
C48: CENTRO | D48: =+D37/D15 -> -15.3% | E48: -26.0% | F48: -20.3% | G48: 2.0% | H48: -8.1% | I48: -41.6% | J48: -1.9% | K48: -37.8% | L48: 52.7% | M48: 58.5% | N48: 10.5% | O48: -29.5% | P48: -21.1% | Q48: -5.0% | R48: -10.4% | S48: 14.6% | T48: -14.3% | U48: -14.1%
C49: CENTRO SUR | D49: -9.1% | E49: 19.3% | F49: 6.9% | G49: 21.6% | H49: 0.8% | I49: -38.7% | J49: -0.4% | K49: -40.6% | L49: 15.6% | M49: -74.2% | N49: 56.6% | O49: -48.7% | P49: 43.4% | Q49: 40.9% | R49: 19.3% | S49: 11.9% | T49: -3.0% | U49: -2.8%
C50: SUR | P50: -87.2% | Q50: -60.3% | T50: -38.3% | U50: 3.6%
C51: AUSTRAL | D51: =+D40/D18 -> 22.9% | E51: -62.5% | F51: 19.6% | G51: -66.7% | H51: -71.6% | I51: -100.0% | J51: 82.3% | K51: -100.0% | P51: 68.9% | Q51: -60.0% | R51: 5.6% | S51: -11.7% | T51: 17.2% | U51: 17.7%
C52: TOTAL | D52: =+D41/D19 -> -14.9% | E52: 6.1% | F52: -15.5% | G52: 11.1% | H52: -5.1% | I52: -41.5% | J52: 0.1% | K52: -34.0% | L52: 10.8% | M52: -67.1% | N52: -2.3% | O52: -47.4% | P52: -14.6% | Q52: -4.8% | R52: 3.4% | S52: 14.4% | T52: =+T41/T19 -> -9.9% | U52: =+U41/U19 -> -9.7%
C55: IMPO + EXPO (BOXES FULL) | H55: =+(D93+F93+H93+J93)/(+D71+F71+H71+J71) -> -10.7% | J55: INDICADORES SEGUNDO TRIMESTRE
C56: IMPO + EXPO (TEUs FULL) | H56: =+((D93+H93)+2*(F93+J93))/((D71+H71)+2*(F71+J71)) -> -9.9%
C57: IMPO + EXPO + TRANS + CABOT (BOXES EMPTY) | H57: =+(E93+G93+I93+K93+M93+O93+Q93+S93)/(+E71+G71+I71+K71+M71+O71+Q71+S71) -> -15.7%
C58: TRANSITO (BOXES) | H58: =+(L93+M93+N93+O93)/+(L71+M71+N71+O71) -> -24.8% | J58: PORCENTAJES DE VARIACIÓN 2020 VS. 2019
C59: CABOTAJE (BOXES) | H59: =+(P93+Q93+R93+S93)/(P71+Q71+R71+S71) -> -22.7%
C60: TEUs TOTALES | H60: =+U93/U71 -> -12.7%
C62: 2019 | D62: CANTIDAD CONTENEDORES ABRIL - JUNIO 2019 x MACROZONA
C63: MCZ | D63: IMPORTACIÓN | H63: EXPORTACIÓN | L63: TRÁNSITO | P63: CABOTAJE | T63: TOTAL BOXES | U63: TOTAL TEUS
D64: 20 pies | F64: 40 pies | H64: 20 pies | J64: 40 pies | L64: 20 pies | N64: 40 pies | P64: 20 pies | R64: 40 pies
D65: full | E65: empty | F65: full | G65: empty | H65: full | I65: empty | J65: full | K65: empty | L65: full | M65: empty | N65: full | O65: empty | P65: full | Q65: empty | R65: full | S65: empty
C66: NORTE | D66: 6,568 | E66: 10,593 | F66: 16,827 | G66: 3,718 | H66: 14,797 | I66: 1,815 | J66: 8,260 | K66: 17,476 | L66: 13,274 | M66: 0 | N66: 14,462 | O66: 4 | P66: 0 | Q66: 0 | R66: 47 | S66: 0 | T66: =SUM(D66:S66) -> 107,841 | U66: =D66+E66+H66+I66+L66+M66+P66+Q66+(2*(F66+G66+J66+K66+N66+O66+R66+S66)) -> 168,635
C67: CENTRO | D67: 48,328 | E67: 1,888 | F67: 96,582 | G67: 28,975 | H67: 29,901 | I67: 12,503 | J67: 75,548 | K67: 47,677 | L67: 2,744 | M67: 258 | N67: 5,714 | O67: 1,646 | P67: 904 | Q67: 6,851 | R67: 1,593 | S67: 10,363 | T67: =SUM(D67:S67) -> 371,475 | U67: =D67+E67+H67+I67+L67+M67+P67+Q67+(2*(F67+G67+J67+K67+N67+O67+R67+S67)) -> 639,573
C68: CENTRO SUR | D68: 4,287 | E68: 7,970 | F68: 6,803 | G68: 44,879 | H68: 14,133 | I68: 994 | J68: 74,599 | K68: 3,428 | L68: 15 | M68: 3,635 | N68: 278 | O68: 21,345 | P68: 280 | Q68: 537 | R68: 481 | S68: 435 | T68: 184,099 | U68: 336,347
C69: SUR | D69: 0 | E69: 0 | F69: 0 | G69: 0 | H69: 0 | I69: 0 | J69: 0 | K69: 0 | L69: 0 | M69: 0 | N69: 0 | O69: 0 | P69: 503 | Q69: 93 | R69: 0 | S69: 0 | T69: 596 | U69: 596
C70: AUSTRAL | D70: 458 | E70: 0 | F70: 729 | G70: 0 | H70: 84 | I70: 0 | J70: 864 | K70: 4 | L70: 0 | M70: 0 | N70: 0 | O70: 0 | P70: 378 | Q70: 91 | R70: 2,646 | S70: 158 | T70: 5,412 | U70: 9,814
C71: TOTAL | D71: =SUM(D66:D70) -> 59,641 | E71: =SUM(E66:E70) -> 20,451 | F71: 120,941 | G71: 77,572 | H71: 58,915 | I71: 15,312 | J71: 159,271 | K71: 68,585 | L71: 16,033 | M71: 3,893 | N71: 20,454 | O71: 22,995 | P71: 2,065 | Q71: 7,572 | R71: 4,767 | S71: 10,956 | T71: =SUM(D71:S71) -> 669,423 | U71: 1,154,965
C73: 2020 | D73: CANTIDAD CONTENEDORES ABRIL - JUNIO 2020 x MACROZONA
C74: MCZ | D74: IMPORTACIÓN | H74: EXPORTACIÓN | L74: TRÁNSITO | P74: CABOTAJE | T74: TOTAL BOXES | U74: TOTAL TEUS
D75: 20 pies | F75: 40 pies | H75: 20 pies | J75: 40 pies | L75: 20 pies | N75: 40 pies | P75: 20 pies | R75: 40 pies
D76: full | E76: empty | F76: full | G76: empty | H76: full | I76: empty | J76: full | K76: empty | L76: full | M76: empty | N76: full | O76: empty | P76: full | Q76: empty | R76: full | S76: empty
C77: NORTE | D77: 4,807 | E77: 11,857 | F77: 13,736 | G77: 4,148 | H77: 14,247 | I77: 2,285 | J77: 10,239 | K77: 15,295 | L77: 8,741 | M77: 0 | N77: 10,014 | O77: 0 | P77: 0 | Q77: 0 | R77: 27 | S77: 0 | T77: 95,396 | U77: 148,855
C78: CENTRO | D78: 41,920 | E78: 838 | F78: 81,348 | G78: 24,611 | H78: 24,314 | I78: 11,577 | J78: 70,956 | K78: 31,884 | L78: 2,755 | M78: 1,104 | N78: 5,364 | O78: 968 | P78: 883 | Q78: 3,832 | R78: 1,708 | S78: 9,603 | T78: 313,665 | U78: 540,107
C79: CENTRO SUR | D79: 4,309 | E79: 4,821 | F79: 7,606 | G79: 48,183 | H79: 10,456 | I79: 404 | J79: 70,656 | K79: 857 | L79: 65 | M79: 1,780 | N79: 237 | O79: 16,650 | P79: 86 | Q79: 140 | R79: 149 | S79: 392 | T79: 166,791 | U79: 311,521
C80: SUR | D80: 0 | E80: 0 | F80: 0 | G80: 0 | H80: 0 | I80: 0 | J80: 0 | K80: 0 | L80: 0 | M80: 0 | N80: 0 | O80: 0 | P80: 85 | Q80: 71 | R80: 384 | S80: 84 | T80: 624 | U80: 1,092
C81: AUSTRAL | D81: 305 | E81: 0 | F81: 499 | G81: 12 | H81: 38 | I81: 0 | J81: 664 | K81: 0 | L81: 0 | M81: 0 | N81: 0 | O81: 0 | P81: 272 | Q81: 58 | R81: 1,618 | S81: 213 | T81: 3,679 | U81: 6,685
C82: TOTAL | D82: =SUM(D77:D81) -> 51,341 | E82: =SUM(E77:E81) -> 17,516 | F82: 103,189 | G82: 76,954 | H82: 49,055 | I82: 14,266 | J82: 152,515 | K82: 48,036 | L82: 11,561 | M82: 2,884 | N82: 15,615 | O82: 17,618 | P82: 1,326 | Q82: 4,101 | R82: 3,886 | S82: 10,292 | T82: =SUM(D82:S82) -> 580,155 | U82: =D82+E82+H82+I82+L82+M82+P82+Q82+(2*(F82+G82+J82+K82+N82+O82+R82+S82)) -> 1,008,260
C84: DIFERENCIA ABRIL - JUNIO 2020 vs 2019 (UNIDADES)
C85: MCZ | D85: IMPORTACIÓN | H85: EXPORTACIÓN | L85: TRÁNSITO | P85: CABOTAJE | T85: TOTAL BOXES | U85: TOTAL TEUS
D86: 20 pies | F86: 40 pies | H86: 20 pies | J86: 40 pies | L86: 20 pies | N86: 40 pies | P86: 20 pies | R86: 40 pies
D87: full | E87: empty | F87: full | G87: empty | H87: full | I87: empty | J87: full | K87: empty | L87: full | M87: empty | N87: full | O87: empty | P87: full | Q87: empty | R87: full | S87: empty
C88: NORTE | D88: =D77-D66 -> -1,761 | E88: =E77-E66 -> 1,264 | F88: -3,091 | G88: 430 | H88: -550 | I88: 470 | J88: 1,979 | K88: -2,181 | L88: -4,533 | M88: 0 | N88: -4,448 | O88: -4 | P88: 0 | Q88: 0 | R88: -20 | S88: 0 | T88: =SUM(D88:S88) -> -12,445 | U88: =D88+E88+H88+I88+L88+M88+P88+Q88+(2*(F88+G88+J88+K88+N88+O88+R88+S88)) -> -19,780
C89: CENTRO | D89: =D78-D67 -> -6,408 | E89: -1,050 | F89: -15,234 | G89: -4,364 | H89: -5,587 | I89: -926 | J89: -4,592 | K89: -15,793 | L89: 11 | M89: 846 | N89: -350 | O89: -678 | P89: -21 | Q89: -3,019 | R89: 115 | S89: -760 | T89: =SUM(D89:S89) -> -57,810 | U89: =D89+E89+H89+I89+L89+M89+P89+Q89+(2*(F89+G89+J89+K89+N89+O89+R89+S89)) -> -99,466
C90: CENTRO SUR | D90: 22 | E90: -3,149 | F90: 803 | G90: 3,304 | H90: -3,677 | I90: -590 | J90: -3,943 | K90: -2,571 | L90: 50 | M90: -1,855 | N90: -41 | O90: -4,695 | P90: -194 | Q90: -397 | R90: -332 | S90: -43 | T90: -17,308 | U90: -24,826
C91: SUR | D91: 0 | E91: 0 | F91: 0 | G91: 0 | H91: 0 | I91: 0 | J91: 0 | K91: 0 | L91: 0 | M91: 0 | N91: 0 | O91: 0 | P91: -418 | Q91: -22 | R91: 384 | S91: 84 | T91: 28 | U91: 496
C92: AUSTRAL | D92: -153 | E92: 0 | F92: -230 | G92: 12 | H92: -46 | I92: 0 | J92: -200 | K92: -4 | L92: 0 | M92: 0 | N92: 0 | O92: 0 | P92: -106 | Q92: -33 | R92: -1,028 | S92: 55 | T92: -1,733 | U92: -3,129
C93: TOTAL | D93: =D82-D71 -> -8,300 | E93: -2,935 | F93: -17,752 | G93: -618 | H93: -9,860 | I93: -1,046 | J93: -6,756 | K93: -20,549 | L93: -4,472 | M93: -1,009 | N93: -4,839 | O93: -5,377 | P93: -739 | Q93: -3,471 | R93: -881 | S93: -664 | T93: =T82-T71 -> -89,268 | U93: -146,705
C95: DIFERENCIA ABRIL - JUNIO 2020 vs 2019 (PORCENTAJES)
C96: MCZ | D96: IMPORTACIÓN | H96: EXPORTACIÓN | L96: TRÁNSITO | P96: CABOTAJE | T96: TOTAL BOXES | U96: TOTAL TEUS
D97: 20 pies | F97: 40 pies | H97: 20 pies | J97: 40 pies | L97: 20 pies | N97: 40 pies | P97: 20 pies | R97: 40 pies
D98: full | E98: empty | F98: full | G98: empty | H98: full | I98: empty | J98: full | K98: empty | L98: full | M98: empty | N98: full | O98: empty | P98: full | Q98: empty | R98: full | S98: empty
C99: NORTE | D99: =+D88/D66 -> -26.8% | E99: =+E88/E66 -> 11.9% | F99: -18.4% | G99: 11.6% | H99: -3.7% | I99: 25.9% | J99: 24.0% | K99: -12.5% | L99: -34.1% | N99: -30.8% | O99: -100.0% | R99: -42.6% | T99: =+T88/T66 -> -11.5% | U99: =+U88/U66 -> -11.7%
C100: CENTRO | D100: =+D89/D67 -> -13.3% | E100: -55.6% | F100: -15.8% | G100: -15.1% | H100: -18.7% | I100: -7.4% | J100: -6.1% | K100: -33.1% | L100: 0.4% | M100: 327.9% | N100: -6.1% | O100: -41.2% | P100: -2.3% | Q100: -44.1% | R100: 7.2% | S100: -7.3% | T100: -15.6% | U100: -15.6%
C101: CENTRO SUR | D101: 0.5% | E101: -39.5% | F101: 11.8% | G101: 7.4% | H101: -26.0% | I101: -59.4% | J101: -5.3% | K101: -75.0% | L101: 333.3% | M101: -51.0% | N101: -14.7% | O101: -22.0% | P101: -69.3% | Q101: -73.9% | R101: -69.0% | S101: -9.9% | T101: -9.4% | U101: -7.4%
C102: SUR | P102: -83.1% | Q102: -23.7% | T102: 4.7% | U102: 83.2%
C103: AUSTRAL | D103: =+D92/D70 -> -33.4% | F103: -31.6% | H103: -54.8% | J103: -23.1% | K103: -100.0% | P103: -28.0% | Q103: -36.3% | R103: -38.9% | S103: 34.8% | T103: -32.0% | U103: -31.9%
C104: TOTAL | D104: =+D93/D71 -> -13.9% | E104: =+E93/E71 -> -14.4% | F104: -14.7% | G104: -0.8% | H104: -16.7% | I104: -6.8% | J104: -4.2% | K104: -30.0% | L104: -27.9% | M104: -25.9% | N104: -23.7% | O104: -23.4% | P104: -35.8% | Q104: -45.8% | R104: -18.5% | S104: -6.1% | T104: -13.3% | U104: -12.7%
C107: IMPO + EXPO (BOXES FULL) | H107: =+(D145+F145+H145+J145)/(+D123+F123+H123+J123) -> -7.6% | J107: INDICADORES TERCER TRIMESTRE
C108: IMPO + EXPO (TEUs FULL) | H108: =+((D145+H145)+2*(F145+J145))/((D123+H123)+2*(F123+J123)) -> -6.7%
C109: IMPO + EXPO + TRANS + CABOT (BOXES EMPTY) | H109: =+(E145+G145+I145+K145+M145+O145+Q145+S145)/(+E123+G123+I123+K123+M123+O123+Q123+S123) -> -24.1%
C110: TRANSITO (BOXES) | H110: =+(L145+M145+N145+O145)/+(L123+M123+N123+O123) -> -17.3% | J110: PORCENTAJES DE VARIACIÓN 2020 VS. 2019
C111: CABOTAJE (BOXES) | H111: =+(P145+Q145+R145+S145)/(P123+Q123+R123+S123) -> -17.8%
C112: TEUs TOTALES | H112: =+U145/U123 -> -13.0%
C114: 2019 | D114: CANTIDAD CONTENEDORES JULIO - SEPTIEMBRE 2019 x MACROZONA
C115: MCZ | D115: IMPORTACIÓN | H115: EXPORTACIÓN | L115: TRÁNSITO | P115: CABOTAJE | T115: TOTAL BOXES | U115: TOTAL TEUS
D116: 20 pies | F116: 40 pies | H116: 20 pies | J116: 40 pies | L116: 20 pies | N116: 40 pies | P116: 20 pies | R116: 40 pies
D117: full | E117: empty | F117: full | G117: empty | H117: full | I117: empty | J117: full | K117: empty | L117: full | M117: empty | N117: full | O117: empty | P117: full | Q117: empty | R117: full | S117: empty
C118: NORTE | D118: 6,317 | E118: 8,639 | F118: 17,315 | G118: 4,954 | H118: 14,663 | I118: 2,015 | J118: 8,585 | K118: 24,549 | L118: 13,461 | M118: 0 | N118: 17,190 | O118: 0 | P118: 0 | Q118: 0 | R118: 0 | S118: 0 | T118: =SUM(D118:S118) -> 117,688 | U118: =D118+E118+H118+I118+L118+M118+P118+Q118+(2*(F118+G118+J118+K118+N118+O118+R118+S118)) -> 190,281
C119: CENTRO | D119: 49,760 | E119: 837 | F119: 106,616 | G119: 16,559 | H119: 27,786 | I119: 12,335 | J119: 60,867 | K119: 48,376 | L119: 2,870 | M119: 402 | N119: 4,398 | O119: 1,753 | P119: 702 | Q119: 6,862 | R119: 2,105 | S119: 9,446 | T119: =SUM(D119:S119) -> 351,674 | U119: =D119+E119+H119+I119+L119+M119+P119+Q119+(2*(F119+G119+J119+K119+N119+O119+R119+S119)) -> 601,794
C120: CENTRO SUR | D120: 5,209 | E120: 9,190 | F120: 8,121 | G120: 46,284 | H120: 14,374 | I120: 1,339 | J120: 71,030 | K120: 2,413 | L120: 30 | M120: 1,210 | N120: 438 | O120: 13,593 | P120: 148 | Q120: 397 | R120: 162 | S120: 675 | T120: 174,613 | U120: 317,329
C121: SUR | D121: 0 | E121: 0 | F121: 0 | G121: 0 | H121: 0 | I121: 0 | J121: 0 | K121: 0 | L121: 0 | M121: 0 | N121: 0 | O121: 0 | P121: 434 | Q121: 75 | R121: 0 | S121: 0 | T121: 509 | U121: 509
C122: AUSTRAL | D122: 376 | E122: 0 | F122: 1,044 | G122: 4 | H122: 44 | I122: 0 | J122: 963 | K122: 0 | L122: 0 | M122: 0 | N122: 0 | O122: 0 | P122: 328 | Q122: 27 | R122: 2,525 | S122: 250 | T122: 5,561 | U122: 10,347
C123: TOTAL | D123: =SUM(D118:D122) -> 61,662 | E123: =SUM(E118:E122) -> 18,666 | F123: 133,096 | G123: 67,801 | H123: 56,867 | I123: 15,689 | J123: 141,445 | K123: 75,338 | L123: 16,361 | M123: 1,612 | N123: 22,026 | O123: 15,346 | P123: 1,612 | Q123: 7,361 | R123: 4,792 | S123: 10,371 | T123: =SUM(D123:S123) -> 650,045 | U123: 1,120,260
C125: 2020 | D125: CANTIDAD CONTENEDORES JULIO - SEPTIEMBRE 2020 x MACROZONA
C126: MCZ | D126: IMPORTACIÓN | H126: EXPORTACIÓN | L126: TRÁNSITO | P126: CABOTAJE | T126: TOTAL BOXES | U126: TOTAL TEUS
D127: 20 pies | F127: 40 pies | H127: 20 pies | J127: 40 pies | L127: 20 pies | N127: 40 pies | P127: 20 pies | R127: 40 pies
D128: full | E128: empty | F128: full | G128: empty | H128: full | I128: empty | J128: full | K128: empty | L128: full | M128: empty | N128: full | O128: empty | P128: full | Q128: empty | R128: full | S128: empty
C129: NORTE | D129: 4,728 | E129: 7,238 | F129: 13,929 | G129: 4,154 | H129: 13,036 | I129: 1,356 | J129: 9,316 | K129: 12,766 | L129: 9,269 | M129: 0 | N129: 11,874 | O129: 0 | P129: 0 | Q129: 0 | R129: 0 | S129: 0 | T129: =SUM(D129:S129) -> 87,666 | U129: =D129+E129+H129+I129+L129+M129+P129+Q129+(2*(F129+G129+J129+K129+N129+O129+R129+S129)) -> 139,705
C130: CENTRO | D130: 41,556 | E130: 513 | F130: 90,691 | G130: 18,017 | H130: 27,282 | I130: 7,466 | J130: 64,021 | K130: 26,591 | L130: 2,917 | M130: 144 | N130: 4,721 | O130: 318 | P130: 1,348 | Q130: 3,764 | R130: 2,844 | S130: 8,786 | T130: =SUM(D130:S130) -> 300,979 | U130: =D130+E130+H130+I130+L130+M130+P130+Q130+(2*(F130+G130+J130+K130+N130+O130+R130+S130)) -> 516,968
C131: CENTRO SUR | D131: 4,828 | E131: 4,770 | F131: 7,617 | G131: 44,298 | H131: 11,202 | I131: 1,258 | J131: 73,676 | K131: 2,498 | L131: 53 | M131: 832 | N131: 424 | O131: 15,218 | P131: 119 | Q131: 188 | R131: 174 | S131: 582 | T131: 167,737 | U131: 312,224
C132: SUR | D132: 0 | E132: 0 | F132: 0 | G132: 0 | H132: 0 | I132: 0 | J132: 0 | K132: 0 | L132: 0 | M132: 0 | N132: 0 | O132: 0 | P132: 28 | Q132: 27 | R132: 253 | S132: 162 | T132: 470 | U132: 885
C133: AUSTRAL | D133: 231 | E133: 6 | F133: 331 | G133: 0 | H133: 118 | I133: 0 | J133: 497 | K133: 0 | L133: 0 | M133: 0 | N133: 0 | O133: 0 | P133: 301 | Q133: 52 | R133: 1,123 | S133: 82 | T133: 2,741 | U133: 4,774
C134: TOTAL | D134: =SUM(D129:D133) -> 51,343 | E134: =SUM(E129:E133) -> 12,527 | F134: 112,568 | G134: 66,469 | H134: 51,638 | I134: 10,080 | J134: 147,510 | K134: 41,855 | L134: 12,239 | M134: 976 | N134: 17,019 | O134: 15,536 | P134: 1,796 | Q134: 4,031 | R134: 4,394 | S134: 9,612 | T134: =SUM(D134:S134) -> 559,593 | U134: =D134+E134+H134+I134+L134+M134+P134+Q134+(2*(F134+G134+J134+K134+N134+O134+R134+S134)) -> 974,556
C136: DIFERENCIA JULIO - SEPTIEMBRE 2020 vs 2019 (UNIDADES)
C137: MCZ | D137: IMPORTACIÓN | H137: EXPORTACIÓN | L137: TRÁNSITO | P137: CABOTAJE | T137: TOTAL BOXES | U137: TOTAL TEUS
D138: 20 pies | F138: 40 pies | H138: 20 pies | J138: 40 pies | L138: 20 pies | N138: 40 pies | P138: 20 pies | R138: 40 pies
D139: full | E139: empty | F139: full | G139: empty | H139: full | I139: empty | J139: full | K139: empty | L139: full | M139: empty | N139: full | O139: empty | P139: full | Q139: empty | R139: full | S139: empty
C140: NORTE | D140: =D129-D118 -> -1,589 | E140: =E129-E118 -> -1,401 | F140: -3,386 | G140: -800 | H140: -1,627 | I140: -659 | J140: 731 | K140: -11,783 | L140: -4,192 | M140: 0 | N140: -5,316 | O140: 0 | P140: 0 | Q140: 0 | R140: 0 | S140: 0 | T140: =SUM(D140:S140) -> -30,022 | U140: =D140+E140+H140+I140+L140+M140+P140+Q140+(2*(F140+G140+J140+K140+N140+O140+R140+S140)) -> -50,576
C141: CENTRO | D141: =D130-D119 -> -8,204 | E141: -324 | F141: -15,925 | G141: 1,458 | H141: -504 | I141: -4,869 | J141: 3,154 | K141: -21,785 | L141: 47 | M141: -258 | N141: 323 | O141: -1,435 | P141: 646 | Q141: -3,098 | R141: 739 | S141: -660 | T141: =SUM(D141:S141) -> -50,695 | U141: =D141+E141+H141+I141+L141+M141+P141+Q141+(2*(F141+G141+J141+K141+N141+O141+R141+S141)) -> -84,826
C142: CENTRO SUR | D142: -381 | E142: -4,420 | F142: -504 | G142: -1,986 | H142: -3,172 | I142: -81 | J142: 2,646 | K142: 85 | L142: 23 | M142: -378 | N142: -14 | O142: 1,625 | P142: -29 | Q142: -209 | R142: 12 | S142: -93 | T142: -6,876 | U142: -5,105
C143: SUR | D143: 0 | E143: 0 | F143: 0 | G143: 0 | H143: 0 | I143: 0 | J143: 0 | K143: 0 | L143: 0 | M143: 0 | N143: 0 | O143: 0 | P143: -406 | Q143: -48 | R143: 253 | S143: 162 | T143: -39 | U143: 376
C144: AUSTRAL | D144: -145 | E144: 6 | F144: -713 | G144: -4 | H144: 74 | I144: 0 | J144: -466 | K144: 0 | L144: 0 | M144: 0 | N144: 0 | O144: 0 | P144: -27 | Q144: 25 | R144: -1,402 | S144: -168 | T144: -2,820 | U144: -5,573
C145: TOTAL | D145: =D134-D123 -> -10,319 | E145: -6,139 | F145: -20,528 | G145: -1,332 | H145: -5,229 | I145: -5,609 | J145: 6,065 | K145: -33,483 | L145: -4,122 | M145: -636 | N145: -5,007 | O145: 190 | P145: 184 | Q145: -3,330 | R145: -398 | S145: -759 | T145: =T134-T123 -> -90,452 | U145: -145,704
C147: DIFERENCIA JULIO - SEPTIEMBRE 2020 vs 2019 (PORCENTAJES)
C148: MCZ | D148: IMPORTACIÓN | H148: EXPORTACIÓN | L148: TRÁNSITO | P148: CABOTAJE | T148: TOTAL BOXES | U148: TOTAL TEUS
D149: 20 pies | F149: 40 pies | H149: 20 pies | J149: 40 pies | L149: 20 pies | N149: 40 pies | P149: 20 pies | R149: 40 pies
D150: full | E150: empty | F150: full | G150: empty | H150: full | I150: empty | J150: full | K150: empty | L150: full | M150: empty | N150: full | O150: empty | P150: full | Q150: empty | R150: full | S150: empty
C151: NORTE | D151: =+D140/D118 -> -25.2% | E151: =+E140/E118 -> -16.2% | F151: -19.6% | G151: -16.1% | H151: -11.1% | I151: -32.7% | J151: 8.5% | K151: -48.0% | L151: -31.1% | N151: -30.9% | T151: =+T140/T118 -> -25.5% | U151: =+U140/U118 -> -26.6%
C152: CENTRO | D152: =+D141/D119 -> -16.5% | E152: -38.7% | F152: -14.9% | G152: 8.8% | H152: -1.8% | I152: -39.5% | J152: 5.2% | K152: -45.0% | L152: 1.6% | M152: -64.2% | N152: 7.3% | O152: -81.9% | P152: 92.0% | Q152: -45.1% | R152: 35.1% | S152: -7.0% | T152: -14.4% | U152: -14.1%
C153: CENTRO SUR | D153: -7.3% | E153: -48.1% | F153: -6.2% | G153: -4.3% | H153: -22.1% | I153: -6.0% | J153: 3.7% | K153: 3.5% | L153: 76.7% | M153: -31.2% | N153: -3.2% | O153: 12.0% | P153: -19.6% | Q153: -52.6% | R153: 7.4% | S153: -13.8% | T153: -3.9% | U153: -1.6%
C154: SUR | P154: -93.5% | Q154: -64.0% | T154: -7.7% | U154: 73.9%
C155: AUSTRAL | D155: =+D144/D122 -> -38.6% | F155: -68.3% | G155: -100.0% | H155: 168.2% | J155: -48.4% | P155: -8.2% | Q155: 92.6% | R155: -55.5% | S155: -67.2% | T155: -50.7% | U155: -53.9%
C156: TOTAL | D156: =+D145/D123 -> -16.7% | E156: =+E145/E123 -> -32.9% | F156: -15.4% | G156: -2.0% | H156: -9.2% | I156: -35.8% | J156: 4.3% | K156: -44.4% | L156: -25.2% | M156: -39.5% | N156: -22.7% | O156: 1.2% | P156: 11.4% | Q156: -45.2% | R156: -8.3% | S156: -7.3% | T156: -13.9% | U156: -13.0%
C159: IMPO + EXPO (BOXES FULL) | H159: =+(D197+F197+H197+J197)/(+D175+F175+H175+J175) -> 8.1% | J159: INDICADORES CUARTO TRIMESTRE
C160: IMPO + EXPO (TEUs FULL) | H160: =+((D197+H197)+2*(F197+J197))/((D175+H175)+2*(F175+J175)) -> 10.0%
C161: IMPO + EXPO + TRANS + CABOT (BOXES EMPTY) | H161: =+(E197+G197+I197+K197+M197+O197+Q197+S197)/(+E175+G175+I175+K175+M175+O175+Q175+S175) -> -3.2%
C162: TRANSITO (BOXES) | H162: =+(L197+M197+N197+O197)/+(L175+M175+N175+O175) -> -8.8% | J162: PORCENTAJES DE VARIACIÓN 2020 VS. 2019
C163: CABOTAJE (BOXES) | H163: =+(P197+Q197+R197+S197)/(P175+Q175+R175+S175) -> -17.5%
C164: TEUs TOTALES | H164: =+U197/U175 -> 4.2%
C166: 2019 | D166: CANTIDAD CONTENEDORES OCTUBRE - DICIEMBRE 2019 x MACROZONA
C167: MCZ | D167: IMPORTACIÓN | H167: EXPORTACIÓN | L167: TRÁNSITO | P167: CABOTAJE | T167: TOTAL BOXES | U167: TOTAL TEUS
D168: 20 pies | F168: 40 pies | H168: 20 pies | J168: 40 pies | L168: 20 pies | N168: 40 pies | P168: 20 pies | R168: 40 pies
D169: full | E169: empty | F169: full | G169: empty | H169: full | I169: empty | J169: full | K169: empty | L169: full | M169: empty | N169: full | O169: empty | P169: full | Q169: empty | R169: full | S169: empty
C170: NORTE | D170: 5,768 | E170: 11,272 | F170: 16,451 | G170: 6,881 | H170: 15,952 | I170: 2,341 | J170: 10,769 | K170: 18,661 | L170: 11,846 | M170: 0 | N170: 17,054 | O170: 1 | P170: 0 | Q170: 0 | R170: 0 | S170: 0 | T170: =SUM(D170:S170) -> 116,996 | U170: =D170+E170+H170+I170+L170+M170+P170+Q170+(2*(F170+G170+J170+K170+N170+O170+R170+S170)) -> 186,813
C171: CENTRO | D171: 44,232 | E171: 1,194 | F171: 94,839 | G171: 15,588 | H171: 27,202 | I171: 8,682 | J171: 56,519 | K171: 42,976 | L171: 3,658 | M171: 28 | N171: 5,843 | O171: 1,072 | P171: 673 | Q171: 6,010 | R171: 1,800 | S171: 10,146 | T171: =SUM(D171:S171) -> 320,462 | U171: =D171+E171+H171+I171+L171+M171+P171+Q171+(2*(F171+G171+J171+K171+N171+O171+R171+S171)) -> 549,245
C172: CENTRO SUR | D172: 4,912 | E172: 5,377 | F172: 7,861 | G172: 43,841 | H172: 10,947 | I172: 1,392 | J172: 67,200 | K172: 1,607 | L172: 28 | M172: 958 | N172: 111 | O172: 11,593 | P172: 276 | Q172: 333 | R172: 203 | S172: 494 | T172: 157,133 | U172: 290,043
C173: SUR | D173: 0 | E173: 0 | F173: 0 | G173: 0 | H173: 0 | I173: 0 | J173: 0 | K173: 0 | L173: 0 | M173: 0 | N173: 0 | O173: 0 | P173: 339 | Q173: 182 | R173: 0 | S173: 0 | T173: 521 | U173: 521
C174: AUSTRAL | D174: 372 | E174: 0 | F174: 817 | G174: 0 | H174: 36 | I174: 0 | J174: 726 | K174: 0 | L174: 1 | M174: 0 | N174: 8 | O174: 0 | P174: 310 | Q174: 34 | R174: 2,127 | S174: 162 | T174: 4,593 | U174: 8,434
C175: TOTAL | D175: =SUM(D170:D174) -> 55,284 | E175: =SUM(E170:E174) -> 17,843 | F175: 119,968 | G175: 66,310 | H175: 54,137 | I175: 12,415 | J175: 135,214 | K175: 63,244 | L175: 15,533 | M175: 986 | N175: 23,016 | O175: 12,666 | P175: 1,598 | Q175: 6,559 | R175: 4,130 | S175: 10,802 | T175: =SUM(D175:S175) -> 599,705 | U175: 1,035,056
C177: 2020 | D177: CANTIDAD CONTENEDORES OCTUBRE - DICIEMBRE 2020 x MACROZONA
C178: MCZ | D178: IMPORTACIÓN | H178: EXPORTACIÓN | L178: TRÁNSITO | P178: CABOTAJE | T178: TOTAL BOXES | U178: TOTAL TEUS
D179: 20 pies | F179: 40 pies | H179: 20 pies | J179: 40 pies | L179: 20 pies | N179: 40 pies | P179: 20 pies | R179: 40 pies
D180: full | E180: empty | F180: full | G180: empty | H180: full | I180: empty | J180: full | K180: empty | L180: full | M180: empty | N180: full | O180: empty | P180: full | Q180: empty | R180: full | S180: empty
C181: NORTE | D181: 4,593 | E181: 10,501 | F181: 17,892 | G181: 3,818 | H181: 15,077 | I181: 708 | J181: 10,956 | K181: 16,950 | L181: 10,325 | M181: 0 | N181: 15,297 | O181: 0 | P181: 0 | Q181: 0 | R181: 0 | S181: 0 | T181: =SUM(D181:S181) -> 106,117 | U181: =D181+E181+H181+I181+L181+M181+P181+Q181+(2*(F181+G181+J181+K181+N181+O181+R181+S181)) -> 171,030
C182: CENTRO | D182: 42,714 | E182: 466 | F182: 110,109 | G182: 16,489 | H182: 29,130 | I182: 7,520 | J182: 64,992 | K182: 41,081 | L182: 1,862 | M182: 34 | N182: 3,683 | O182: 1,627 | P182: 355 | Q182: 4,009 | R182: 1,041 | S182: 11,072 | T182: =SUM(D182:S182) -> 336,184 | U182: =D182+E182+H182+I182+L182+M182+P182+Q182+(2*(F182+G182+J182+K182+N182+O182+R182+S182)) -> 586,278
C183: CENTRO SUR | D183: 4,875 | E183: 4,002 | F183: 7,929 | G183: 46,444 | H183: 9,949 | I183: 592 | J183: 74,918 | K183: 3,964 | L183: 50 | M183: 323 | N183: 155 | O183: 14,232 | P183: 122 | Q183: 220 | R183: 56 | S183: 505 | T183: 168,336 | U183: 316,539
C184: SUR | D184: 0 | E184: 0 | F184: 0 | G184: 0 | H184: 0 | I184: 0 | J184: 0 | K184: 0 | L184: 0 | M184: 0 | N184: 0 | O184: 0 | P184: 17 | Q184: 30 | R184: 256 | S184: 50 | T184: 353 | U184: 659
C185: AUSTRAL | D185: 215 | E185: 5 | F185: 343 | G185: 1 | H185: 15 | I185: 0 | J185: 451 | K185: 0 | L185: 0 | M185: 0 | N185: 0 | O185: 0 | P185: 273 | Q185: 46 | R185: 950 | S185: 41 | T185: 2,340 | U185: 4,126
C186: TOTAL | D186: =SUM(D181:D185) -> 52,397 | E186: =SUM(E181:E185) -> 14,974 | F186: 136,273 | G186: 66,752 | H186: 54,171 | I186: 8,820 | J186: 151,317 | K186: 61,995 | L186: 12,237 | M186: 357 | N186: 19,135 | O186: 15,859 | P186: 767 | Q186: 4,305 | R186: 2,303 | S186: 11,668 | T186: =SUM(D186:S186) -> 613,330 | U186: 1,078,632
C188: DIFERENCIA OCTUBRE - DICIEMBRE 2020 vs 2019 (UNIDADES)
C189: MCZ | D189: IMPORTACIÓN | H189: EXPORTACIÓN | L189: TRÁNSITO | P189: CABOTAJE | T189: TOTAL BOXES | U189: TOTAL TEUS
D190: 20 pies | F190: 40 pies | H190: 20 pies | J190: 40 pies | L190: 20 pies | N190: 40 pies | P190: 20 pies | R190: 40 pies
D191: full | E191: empty | F191: full | G191: empty | H191: full | I191: empty | J191: full | K191: empty | L191: full | M191: empty | N191: full | O191: empty | P191: full | Q191: empty | R191: full | S191: empty
C192: NORTE | D192: =D181-D170 -> -1,175 | E192: =E181-E170 -> -771 | F192: 1,441 | G192: -3,063 | H192: -875 | I192: -1,633 | J192: 187 | K192: -1,711 | L192: -1,521 | M192: 0 | N192: -1,757 | O192: -1 | P192: 0 | Q192: 0 | R192: 0 | S192: 0 | T192: =SUM(D192:S192) -> -10,879 | U192: =D192+E192+H192+I192+L192+M192+P192+Q192+(2*(F192+G192+J192+K192+N192+O192+R192+S192)) -> -15,783
C193: CENTRO | D193: =D182-D171 -> -1,518 | E193: -728 | F193: 15,270 | G193: 901 | H193: 1,928 | I193: -1,162 | J193: 8,473 | K193: -1,895 | L193: -1,796 | M193: 6 | N193: -2,160 | O193: 555 | P193: -318 | Q193: -2,001 | R193: -759 | S193: 926 | T193: =SUM(D193:S193) -> 15,722 | U193: =D193+E193+H193+I193+L193+M193+P193+Q193+(2*(F193+G193+J193+K193+N193+O193+R193+S193)) -> 37,033
C194: CENTRO SUR | D194: -37 | E194: -1,375 | F194: 68 | G194: 2,603 | H194: -998 | I194: -800 | J194: 7,718 | K194: 2,357 | L194: 22 | M194: -635 | N194: 44 | O194: 2,639 | P194: -154 | Q194: -113 | R194: -147 | S194: 11 | T194: 11,203 | U194: 26,496
C195: SUR | D195: 0 | E195: 0 | F195: 0 | G195: 0 | H195: 0 | I195: 0 | J195: 0 | K195: 0 | L195: 0 | M195: 0 | N195: 0 | O195: 0 | P195: -322 | Q195: -152 | R195: 256 | S195: 50 | T195: -168 | U195: 138
C196: AUSTRAL | D196: -157 | E196: 5 | F196: -474 | G196: 1 | H196: -21 | I196: 0 | J196: -275 | K196: 0 | L196: -1 | M196: 0 | N196: -8 | O196: 0 | P196: -37 | Q196: 12 | R196: -1,177 | S196: -121 | T196: -2,253 | U196: -4,308
C197: TOTAL | D197: =D186-D175 -> -2,887 | E197: -2,869 | F197: 16,305 | G197: 442 | H197: 34 | I197: -3,595 | J197: 16,103 | K197: -1,249 | L197: -3,296 | M197: -629 | N197: -3,881 | O197: 3,193 | P197: -831 | Q197: -2,254 | R197: -1,827 | S197: 866 | T197: =T186-T175 -> 13,625 | U197: 43,577
C199: DIFERENCIA OCTUBRE - DICIEMBRE 2020 vs 2019 (PORCENTAJES)
C200: MCZ | D200: IMPORTACIÓN | H200: EXPORTACIÓN | L200: TRÁNSITO | P200: CABOTAJE | T200: TOTAL BOXES | U200: TOTAL TEUS
D201: 20 pies | F201: 40 pies | H201: 20 pies | J201: 40 pies | L201: 20 pies | N201: 40 pies | P201: 20 pies | R201: 40 pies
D202: full | E202: empty | F202: full | G202: empty | H202: full | I202: empty | J202: full | K202: empty | L202: full | M202: empty | N202: full | O202: empty | P202: full | Q202: empty | R202: full | S202: empty
C203: NORTE | D203: =+D192/D170 -> -20.4% | E203: =+E192/E170 -> -6.8% | F203: 8.8% | G203: -44.5% | H203: -5.5% | I203: -69.8% | J203: 1.7% | K203: -9.2% | L203: -12.8% | N203: -10.3% | O203: -100.0% | T203: =+T192/T170 -> -9.3% | U203: =+U192/U170 -> -8.4%
C204: CENTRO | D204: =+D193/D171 -> -3.4% | E204: -61.0% | F204: 16.1% | G204: 5.8% | H204: 7.1% | I204: -13.4% | J204: 15.0% | K204: -4.4% | L204: -49.1% | M204: 21.4% | N204: -37.0% | O204: 51.8% | P204: -47.3% | Q204: -33.3% | R204: -42.2% | S204: 9.1% | T204: 4.9% | U204: 6.7%
C205: CENTRO SUR | D205: -0.8% | E205: -25.6% | F205: 0.9% | G205: 5.9% | H205: -9.1% | I205: -57.5% | J205: 11.5% | K205: 146.7% | L205: 78.6% | M205: -66.3% | N205: 39.6% | O205: 22.8% | P205: -55.8% | Q205: -33.9% | R205: -72.4% | S205: 2.2% | T205: 7.1% | U205: 9.1%
C206: SUR | P206: -95.0% | Q206: -83.5% | T206: -32.2% | U206: 26.5%
C207: AUSTRAL | D207: =+D196/D174 -> -42.2% | F207: -58.0% | H207: -58.3% | J207: -37.9% | L207: -100.0% | N207: -100.0% | P207: -11.9% | Q207: 35.3% | R207: -55.3% | S207: -74.7% | T207: -49.1% | U207: -51.1%
C208: TOTAL | D208: =+D197/D175 -> -5.2% | E208: =+E197/E175 -> -16.1% | F208: 13.6% | G208: 0.7% | H208: 0.1% | I208: -29.0% | J208: 11.9% | K208: -2.0% | L208: -21.2% | M208: -63.8% | N208: -16.9% | O208: 25.2% | P208: -52.0% | Q208: -34.4% | R208: -44.2% | S208: 8.0% | T208: 2.3% | U208: 4.2%
C211: IMPO + EXPO (BOXES FULL) | H211: =+(D249+F249+H249+J249)/(+D227+F227+H227+J227) -> -4.8% | J211: INDICADORES ENERO - DICIEMBRE
C212: IMPO + EXPO (TEUs FULL) | H212: =+((D249+H249)+2*(F249+J249))/((D227+H227)+2*(F227+J227)) -> -3.8%
C213: IMPO + EXPO + TRANS + CABOT (BOXES EMPTY) | H213: =+(E249+G249+I249+K249+M249+O249+Q249+S249)/+(E227+G227+I227+K227+M227+O227+Q227+S227) -> -14.8%
C214: TRANSITO (BOXES) | H214: =+(L249+M249+N249+O249)/+(L227+M227+N227+O227) -> -18.6% | J214: PORCENTAJES DE VARIACIÓN 2020 VS. 2019
C215: CABOTAJE (BOXES) | H215: =+(P249+Q249+R249+S249)/(P227+Q227+R227+S227) -> -13.3%
C216: TEUs TOTALES | H216: =+U249/U227 -> -8.1%
C218: 2019 | D218: CANTIDAD CONTENEDORES ENERO - DICIEMBRE 2019 x MACROZONA
C219: MCZ | D219: IMPORTACIÓN | H219: EXPORTACIÓN | L219: TRÁNSITO | P219: CABOTAJE | T219: TOTAL BOXES | U219: TOTAL TEUS
D220: 20 pies | F220: 40 pies | H220: 20 pies | J220: 40 pies | L220: 20 pies | N220: 40 pies | P220: 20 pies | R220: 40 pies
D221: full | E221: empty | F221: full | G221: empty | H221: full | I221: empty | J221: full | K221: empty | L221: full | M221: empty | N221: full | O221: empty | P221: full | Q221: empty | R221: full | S221: empty
C222: NORTE | D222: =+D66+D14+D118+D170 -> 24,379 | E222: =+E66+E14+E118+E170 -> 41,010 | F222: 64,534 | G222: 19,526 | H222: 60,552 | I222: 9,171 | J222: 35,724 | K222: 81,952 | L222: 48,980 | M222: 0 | N222: 61,610 | O222: 5 | P222: 0 | Q222: 0 | R222: 85 | S222: 0 | T222: =SUM(D222:S222) -> 447,528 | U222: =D222+E222+H222+I222+L222+M222+P222+Q222+(2*(F222+G222+J222+K222+N222+O222+R222+S222)) -> 710,964
C223: CENTRO | D223: =+D67+D15+D119+D171 -> 190,447 | E223: 5,841 | F223: 400,645 | G223: 101,130 | H223: 110,534 | I223: 49,763 | J223: 269,059 | K223: 193,768 | L223: 11,957 | M223: 847 | N223: 20,758 | O223: 6,162 | P223: 3,172 | Q223: 26,157 | R223: 7,267 | S223: 40,921 | T223: =SUM(D223:S223) -> 1,438,428 | U223: =D223+E223+H223+I223+L223+M223+P223+Q223+(2*(F223+G223+J223+K223+N223+O223+R223+S223)) -> 2,478,138
C224: CENTRO SUR | D224: 19,561 | E224: 28,516 | F224: 29,725 | G224: 173,199 | H224: 50,985 | I224: 4,856 | J224: 282,948 | K224: 9,357 | L224: 118 | M224: 8,613 | N224: 1,002 | O224: 69,886 | P224: 833 | Q224: 1,585 | R224: 996 | S224: 2,301 | T224: 684,481 | U224: 1,253,895
C225: SUR | D225: 0 | E225: 0 | F225: 0 | G225: 0 | H225: 0 | I225: 0 | J225: 0 | K225: 0 | L225: 0 | M225: 0 | N225: 0 | O225: 0 | P225: 1,644 | Q225: 481 | R225: 0 | S225: 0 | T225: 2,125 | U225: 2,125
C226: AUSTRAL | D226: 1,568 | E226: 8 | F226: 3,425 | G226: 16 | H226: 298 | I226: 4 | J226: 3,015 | K226: 10 | L226: 1 | M226: 0 | N226: 8 | O226: 0 | P226: 1,315 | Q226: 252 | R226: 9,266 | S226: 715 | T226: 19,901 | U226: 36,357
C227: TOTAL | D227: =SUM(D222:D226) -> 235,955 | E227: =SUM(E222:E226) -> 75,375 | F227: 498,329 | G227: 293,871 | H227: 222,369 | I227: 63,794 | J227: 590,746 | K227: 285,087 | L227: 61,056 | M227: 9,460 | N227: 83,378 | O227: 76,053 | P227: 6,964 | Q227: 28,475 | R227: 17,614 | S227: 43,937 | T227: =SUM(D227:S227) -> 2,592,463 | U227: 4,481,479
... 30 more rows

Sheet GRÁFICOS
A1: TRIMESTRE | B1: TOTAL BOXES | C1: TOTAL TEUS | E1: TOTAL BOXES | F1: 1er TRIMESTRE | G1: 2do TRIMESTRE | H1: 3er TRIMESTRE | I1: 4to TRIMESTRE
A2: 1ER TRI 2019 | B2: ='2020 VS 2019'!T19 -> 673,290 | C2: ='2020 VS 2019'!U19 -> 1,171,199 | E2: 2019 | F2: =B2 -> 673,290 | G2: =B3 -> 669,423 | H2: =B4 -> 650,045 | I2: =B5 -> 599,705
A3: 2DO TRI 2019 | B3: ='2020 VS 2019'!T71 -> 669,423 | C3: ='2020 VS 2019'!U71 -> 1,154,965 | E3: 2020 | F3: =B6 -> 606,336 | G3: =B7 -> 580,155 | H3: =B8 -> 559,593 | I3: =B9 -> 613,330
A4: 3ER TRI 2019 | B4: ='2020 VS 2019'!T123 -> 650,045 | C4: ='2020 VS 2019'!U123 -> 1,120,260 | E4: 2021 | F4: =B10 -> 615,039 | G4: =B11 -> 569,761 | H4: =B12 -> 567,200 | I4: =B13 -> 608,445
A5: 4TO TRI 2019 | B5: ='2020 VS 2019'!T175 -> 599,705 | C5: ='2020 VS 2019'!U175 -> 1,035,056 | E5: 2022 | F5: =B14 -> 578,024 | G5: =B15 -> 587,817 | H5: =B16 -> 565,652 | I5: =B17 -> 540,918
A6: 1ER TRI 2020 | B6: ='2021 VS 2020'!T19 -> 606,336 | C6: ='2021 VS 2020'!U19 -> 1,057,328 | E6: 2023 | F6: =B18 -> 534,101 | G6: =B19 -> 575,080 | H6: =B20 -> 642,267 | I6: =B21 -> 610,558
A7: 2DO TRI 2020 | B7: ='2021 VS 2020'!T71 -> 580,155 | C7: ='2021 VS 2020'!U71 -> 1,008,260 | E7: 2024 | F7: =B22 -> 685,738 | G7: =B23 -> 568,303 | H7: =B24 -> 655,268 | I7: =B25 -> 645,611
A8: 3ER TRI 2020 | B8: ='2021 VS 2020'!T123 -> 559,593 | C8: ='2021 VS 2020'!U123 -> 974,556 | E8: 2025 | F8: =B26 -> 685,738 | G8: =B27 -> 660,729
A9: 4TO TRI 2020 | B9: ='2021 VS 2020'!T175 -> 613,330 | C9: ='2021 VS 2020'!U175 -> 1,078,632
A10: 1ER TRI 2021 | B10: ='2022 VS 2021'!T19 -> 615,039 | C10: ='2022 VS 2021'!U19 -> 1,088,366 | E10: TOTAL TEUS | F10: 1er TRIMESTRE | G10: 2do TRIMESTRE | H10: 3er TRIMESTRE | I10: 4to TRIMESTRE
A11: 2DO TRI 2021 | B11: ='2022 VS 2021'!T71 -> 569,761 | C11: ='2022 VS 2021'!U71 -> 1,006,964 | E11: 2019 | F11: =C2 -> 1,171,199 | G11: =C3 -> 1,154,965 | H11: =C4 -> 1,120,260 | I11: =C5 -> 1,035,056
A12: 3ro TRI 2021 | B12: ='2022 VS 2021'!T123 -> 567,200 | C12: ='2022 VS 2021'!U123 -> 1,012,743 | E12: 2020 | F12: =C6 -> 1,057,328 | G12: =C7 -> 1,008,260 | H12: =C8 -> 974,556 | I12: =C9 -> 1,078,632
A13: 4to TRI 2021 | B13: ='2021 VS 2020'!T186 -> 608,445 | C13: ='2021 VS 2020'!U186 -> 1,091,404 | E13: 2021 | F13: =C10 -> 1,088,366 | G13: =C11 -> 1,006,964 | H13: =C12 -> 1,012,743 | I13: =C13 -> 1,091,404
A14: 1ER TRI 2022 | B14: ='2022 VS 2021'!T30 -> 578,024 | C14: ='2022 VS 2021'!U30 -> 1,043,002 | E14: 2022 | F14: =C14 -> 1,043,002 | G14: =C15 -> 1,055,796 | H14: =C16 -> 1,014,246 | I14: =C17 -> 969,400
A15: 2DO TRI 2022 | B15: ='2022 VS 2021'!T82 -> 587,817 | C15: ='2022 VS 2021'!U82 -> 1,055,796 | E15: 2023 | F15: =C18 -> 958,134 | G15: =C19 -> 1,032,813 | H15: =C20 -> 1,157,620 | I15: =C21 -> 1,098,379
A16: 3ro TRI 2022 | B16: ='2022 VS 2021'!T134 -> 565,652 | C16: ='2022 VS 2021'!U134 -> 1,014,246 | E16: 2024 | F16: =C22 -> 1,261,193 | G16: =C23 -> 1,024,256 | H16: =C24 -> 1,205,566 | I16: =C25 -> 1,152,225
A17: 4to TRI 2022 | B17: ='2022 VS 2021'!T186 -> 540,918 | C17: ='2022 VS 2021'!U186 -> 969,400 | E17: 2025 | F17: =C26 -> 1,261,193 | G17: =C27 -> 1,206,715
A18: 1ER TRI 2023 | B18: ='2023 VS 2022'!T30 -> 534,101 | C18: ='2023 VS 2022'!U30 -> 958,134
A19: 2do TRI 2023 | B19: ='2023 VS 2022'!T82 -> 575,080 | C19: ='2023 VS 2022'!U82 -> 1,032,813
A20: 3ro TRI 2023 | B20: ='2023 VS 2022'!T134 -> 642,267 | C20: ='2023 VS 2022'!U134 -> 1,157,620
A21: 4to TRI 2023 | B21: ='2023 VS 2022'!T186 -> 610,558 | C21: ='2023 VS 2022'!U186 -> 1,098,379
A22: 1ER TRI 2024 | B22: ='ENE JUN 2025 VS 2024'!T29 -> 685,738 | C22: ='ENE JUN 2025 VS 2024'!U29 -> 1,261,193
A23: 2do TRI 2024 | B23: ='2024 VS 2023'!T81 -> 568,303 | C23: ='2024 VS 2023'!U81 -> 1,024,256
A24: 3er TRI 2024 | B24: ='2024 VS 2023'!T133 -> 655,268 | C24: ='2024 VS 2023'!U133 -> 1,205,566
A25: 4to TRI 2024 | B25: ='2024 VS 2023'!T185 -> 645,611 | C25: ='2024 VS 2023'!U185 -> 1,152,225
A26: 1ER TRI 2025 | B26: ='ENE JUN 2025 VS 2024'!T29 -> 685,738 | C26: ='ENE JUN 2025 VS 2024'!U29 -> 1,261,193
A27: 2do TRI 2025 | B27: ='ENE JUN 2025 VS 2024'!T81 -> 660,729 | C27: ='ENE JUN 2025 VS 2024'!U81 -> 1,206,715
E31: TOTAL BOXES VACIOS | F31: 1er TRIMESTRE | G31: 2do TRIMESTRE | H31: 3er TRIMESTRE | I31: 4to TRIMESTRE
E32: 2019 | F32: =SUM('2020 VS 2019'!E19,'2020 VS 2019'!G19,'2020 VS 2019'!I19,'2020 VS 2019'!K19,'2020 VS 2019'!M19,'2020 VS 2019'!O19,'2020 VS 2019'!Q19,'2020 VS 2019'!S19) -> 245,707 | G32: =SUM('2020 VS 2019'!E71,'2020 VS 2019'!G71,'2020 VS 2019'!I71,'2020 VS 2019'!K71,'2020 VS 2019'!M71,'2020 VS 2019'!O71,'2020 VS 2019'!Q71,'2020 VS 2019'!S71) -> 227,336 | H32: =SUM('2020 VS 2019'!E123,'2020 VS 2019'!G123,'2020 VS 2019'!I123,'2020 VS 2019'!K123,'2020 VS 2019'!M123,'2020 VS 2019'!O123,'2020 VS 2019'!Q123,'2020 VS 2019'!S123) -> 212,184 | I32: =SUM('2020 VS 2019'!E175,'2020 VS 2019'!G175,'2020 VS 2019'!I175,'2020 VS 2019'!K175,'2020 VS 2019'!M175,'2020 VS 2019'!O175,'2020 VS 2019'!Q175,'2020 VS 2019'!S175) -> 190,825
E33: 2020 | F33: =SUM('2020 VS 2019'!E30,'2020 VS 2019'!G30,'2020 VS 2019'!I30,'2020 VS 2019'!K30,'2020 VS 2019'!M30,'2020 VS 2019'!O30,'2020 VS 2019'!Q30,'2020 VS 2019'!S30) -> 208,519 | G33: =SUM('2020 VS 2019'!E82,'2020 VS 2019'!G82,'2020 VS 2019'!I82,'2020 VS 2019'!K82,'2020 VS 2019'!M82,'2020 VS 2019'!O82,'2020 VS 2019'!Q82,'2020 VS 2019'!S82) -> 191,667 | H33: =SUM('2020 VS 2019'!E134,'2020 VS 2019'!G134,'2020 VS 2019'!I134,'2020 VS 2019'!K134,'2020 VS 2019'!M134,'2020 VS 2019'!O134,'2020 VS 2019'!Q134,'2020 VS 2019'!S134) -> 161,086 | I33: =SUM('2020 VS 2019'!E186,'2020 VS 2019'!G186,'2020 VS 2019'!I186,'2020 VS 2019'!K186,'2020 VS 2019'!M186,'2020 VS 2019'!O186,'2020 VS 2019'!Q186,'2020 VS 2019'!S186) -> 184,730
E34: 2021 | F34: =SUM('2021 VS 2020'!E30,'2021 VS 2020'!G30,'2021 VS 2020'!I30,'2021 VS 2020'!K30,'2021 VS 2020'!M30,'2021 VS 2020'!O30,'2021 VS 2020'!Q30,'2021 VS 2020'!S30) -> 180,712 | G34: =SUM('2021 VS 2020'!E82,'2021 VS 2020'!G82,'2021 VS 2020'!I82,'2021 VS 2020'!K82,'2021 VS 2020'!M82,'2021 VS 2020'!O82,'2021 VS 2020'!Q82,'2021 VS 2020'!S82) -> 150,474 | H34: =SUM('2021 VS 2020'!E134,'2021 VS 2020'!G134,'2021 VS 2020'!I134,'2021 VS 2020'!K134,'2021 VS 2020'!M134,'2021 VS 2020'!O134,'2021 VS 2020'!Q134,'2021 VS 2020'!S134) -> 152,585 | I34: =SUM('2021 VS 2020'!E186,'2021 VS 2020'!G186,'2021 VS 2020'!I186,'2021 VS 2020'!K186,'2021 VS 2020'!M186,'2021 VS 2020'!O186,'2021 VS 2020'!Q186,'2021 VS 2020'!S186) -> 154,597
E35: 2022 | F35: =SUM('2022 VS 2021'!E30,'2022 VS 2021'!G30,'2022 VS 2021'!I30,'2022 VS 2021'!K30,'2022 VS 2021'!M30,'2022 VS 2021'!O30,'2022 VS 2021'!Q30,'2022 VS 2021'!S30) -> 147,708 | G35: =SUM('2022 VS 2021'!E82,'2022 VS 2021'!G82,'2022 VS 2021'!I82,'2022 VS 2021'!K82,'2022 VS 2021'!M82,'2022 VS 2021'!O82,'2022 VS 2021'!Q82,'2022 VS 2021'!S82) -> 169,283 | H35: =SUM('2022 VS 2021'!E134,'2022 VS 2021'!G134,'2022 VS 2021'!I134,'2022 VS 2021'!K134,'2022 VS 2021'!M134,'2022 VS 2021'!O134,'2022 VS 2021'!Q134,'2022 VS 2021'!S134) -> 168,960 | I35: =SUM('2022 VS 2021'!E186,'2022 VS 2021'!G186,'2022 VS 2021'!I186,'2022 VS 2021'!K186,'2022 VS 2021'!M186,'2022 VS 2021'!O186,'2022 VS 2021'!Q186,'2022 VS 2021'!S186) -> 169,182
E36: 2023 | F36: ='2023 VS 2022'!E30+'2023 VS 2022'!G30+'2023 VS 2022'!I30+'2023 VS 2022'!K30+'2023 VS 2022'!M30+'2023 VS 2022'!O30+'2023 VS 2022'!Q30+'2023 VS 2022'!S30 -> 177,104 | G36: ='2023 VS 2022'!E82+'2023 VS 2022'!G82+'2023 VS 2022'!I82+'2023 VS 2022'!K82+'2023 VS 2022'!M82+'2023 VS 2022'!O82+'2023 VS 2022'!Q82+'2023 VS 2022'!S82 -> 185,389 | H36: ='2023 VS 2022'!E134+'2023 VS 2022'!G134+'2023 VS 2022'!I134+'2023 VS 2022'!K134+'2023 VS 2022'!M134+'2023 VS 2022'!O134+'2023 VS 2022'!Q134+'2023 VS 2022'!S134 -> 225,511 | I36: =SUM('2023 VS 2022'!E186,'2023 VS 2022'!G186,'2023 VS 2022'!I186,'2023 VS 2022'!K186,'2023 VS 2022'!M186,'2023 VS 2022'!O186,'2023 VS 2022'!Q186,'2023 VS 2022'!S186) -> 204,600
E37: 2024 | F37: ='ENE JUN 2025 VS 2024'!E29+'ENE JUN 2025 VS 2024'!G29+'ENE JUN 2025 VS 2024'!I29+'ENE JUN 2025 VS 2024'!K29+'ENE JUN 2025 VS 2024'!M29+'ENE JUN 2025 VS 2024'!O29+'ENE JUN 2025 VS 2024'!Q29+'ENE JUN 2025 VS 2024'!S29 -> 233,205 | G37: ='2024 VS 2023'!E81+'2024 VS 2023'!G81+'2024 VS 2023'!I81+'2024 VS 2023'!K81+'2024 VS 2023'!M81+'2024 VS 2023'!O81+'2024 VS 2023'!Q81+'2024 VS 2023'!S81 -> 176,791 | H37: ='2024 VS 2023'!E133+'2024 VS 2023'!G133+'2024 VS 2023'!I133+'2024 VS 2023'!K133+'2024 VS 2023'!M133+'2024 VS 2023'!O133+'2024 VS 2023'!Q133+'2024 VS 2023'!S133 -> 191,742 | I37: ='2024 VS 2023'!E185+'2024 VS 2023'!G185+'2024 VS 2023'!I185+'2024 VS 2023'!K185+'2024 VS 2023'!M185+'2024 VS 2023'!O185+'2024 VS 2023'!Q185+'2024 VS 2023'!S185 -> 225,488
E38: 2025 | F38: ='ENE JUN 2025 VS 2024'!E29+'ENE JUN 2025 VS 2024'!G29+'ENE JUN 2025 VS 2024'!I29+'ENE JUN 2025 VS 2024'!K29+'ENE JUN 2025 VS 2024'!M29+'ENE JUN 2025 VS 2024'!O29+'ENE JUN 2025 VS 2024'!Q29+'ENE JUN 2025 VS 2024'!S29 -> 233,205 | G38: ='ENE JUN 2025 VS 2024'!E81+'ENE JUN 2025 VS 2024'!G81+'ENE JUN 2025 VS 2024'!I81+'ENE JUN 2025 VS 2024'!K81+'ENE JUN 2025 VS 2024'!M81+'ENE JUN 2025 VS 2024'!O81+'ENE JUN 2025 VS 2024'!Q81+'ENE JUN 2025 VS 2024'!S81 -> 223,413
E48: TEUS x MCZ Enero-Junio | F48: 2019 | G48: 2020 | H48: 2021 | I48: 2022 | J48: 2023 | K48: 2024 | L48: 2025 | N48: BOXES x MCZ Enero-Junio | O48: 2019 | P48: 2020 | Q48: 2021 | R48: 2022 | S48: 2023 | T48: 2024 | U48: 2025
E49: NORTE | F49: ='2020 VS 2019'!U14+'2020 VS 2019'!U66 -> 333,870 | G49: ='2020 VS 2019'!U25+'2020 VS 2019'!U77 -> 304,635 | H49: ='2021 VS 2020'!U25+'2021 VS 2020'!U77 -> 321,577 | I49: ='2022 VS 2021'!U25+'2022 VS 2021'!U77 -> 291,653 | J49: ='2023 VS 2022'!U25+'2023 VS 2022'!U77 -> 356,473 | K49: ='ENE JUN 2025 VS 2024'!U13+'ENE JUN 2025 VS 2024'!U65 -> 364,578 | L49: ='ENE JUN 2025 VS 2024'!U24+'ENE JUN 2025 VS 2024'!U76 -> 380,106 | N49: NORTE | O49: ='2020 VS 2019'!T14+'2020 VS 2019'!T66 -> 212,844 | P49: ='2020 VS 2019'!T25+'2020 VS 2019'!T77 -> 194,420 | Q49: ='2021 VS 2020'!T25+'2021 VS 2020'!T77 -> 192,257 | R49: ='2022 VS 2021'!T25+'2022 VS 2021'!T77 -> 173,819 | S49: ='2023 VS 2022'!T25+'2023 VS 2022'!T77 -> 208,920 | T49: ='ENE JUN 2025 VS 2024'!T13+'ENE JUN 2025 VS 2024'!T65 -> 215,343 | U49: ='ENE JUN 2025 VS 2024'!T24+'ENE JUN 2025 VS 2024'!T76 -> 217,492
E50: CENTRO | F50: ='2020 VS 2019'!U15+'2020 VS 2019'!U67 -> 1,327,099 | G50: ='2020 VS 2019'!U26+'2020 VS 2019'!U78 -> 1,130,406 | H50: ='2021 VS 2020'!U26+'2021 VS 2020'!U78 -> 1,278,690 | I50: ='2022 VS 2021'!U26+'2022 VS 2021'!U78 -> 1,316,367 | J50: ='2023 VS 2022'!U26+'2023 VS 2022'!U78 -> 1,062,841 | K50: ='ENE JUN 2025 VS 2024'!U14+'ENE JUN 2025 VS 2024'!U66 -> 1,214,671 | L50: ='ENE JUN 2025 VS 2024'!U25+'ENE JUN 2025 VS 2024'!U77 -> 1,404,152 | N50: CENTRO | O50: ='2020 VS 2019'!T15+'2020 VS 2019'!T67 -> 766,292 | P50: ='2020 VS 2019'!T26+'2020 VS 2019'!T78 -> 652,017 | Q50: ='2021 VS 2020'!T26+'2021 VS 2020'!T78 -> 725,412 | R50: ='2022 VS 2021'!T26+'2022 VS 2021'!T78 -> 731,162 | S50: ='2023 VS 2022'!T26+'2023 VS 2022'!T78 -> 599,822 | T50: ='ENE JUN 2025 VS 2024'!T14+'ENE JUN 2025 VS 2024'!T66 -> 678,176 | U50: ='ENE JUN 2025 VS 2024'!T25+'ENE JUN 2025 VS 2024'!T77 -> 773,163
E51: CENTRO SUR | F51: ='2020 VS 2019'!U16+'2020 VS 2019'!U68 -> 646,523 | G51: ='2020 VS 2019'!U27+'2020 VS 2019'!U79 -> 613,120 | H51: ='2021 VS 2020'!U27+'2021 VS 2020'!U79 -> 486,024 | I51: ='2022 VS 2021'!U27+'2022 VS 2021'!U79 -> 480,509 | J51: ='2023 VS 2022'!U27+'2023 VS 2022'!U79 -> 562,264 | K51: ='ENE JUN 2025 VS 2024'!U15+'ENE JUN 2025 VS 2024'!U67 -> 600,476 | L51: ='ENE JUN 2025 VS 2024'!U26+'ENE JUN 2025 VS 2024'!U78 -> 675,143 | N51: CENTRO SUR | O51: ='2020 VS 2019'!T16+'2020 VS 2019'!T68 -> 352,735 | P51: ='2020 VS 2019'!T27+'2020 VS 2019'!T79 -> 330,361 | Q51: ='2021 VS 2020'!T27+'2021 VS 2020'!T79 -> 261,940 | R51: ='2022 VS 2021'!T27+'2022 VS 2021'!T79 -> 255,172 | S51: ='2023 VS 2022'!T27+'2023 VS 2022'!T79 -> 295,127 | T51: ='ENE JUN 2025 VS 2024'!T15+'ENE JUN 2025 VS 2024'!T67 -> 311,270 | U51: ='ENE JUN 2025 VS 2024'!T26+'ENE JUN 2025 VS 2024'!T78 -> 351,071
E52: SUR | F52: ='2020 VS 2019'!U17+'2020 VS 2019'!U69 -> 1,095 | G52: ='2020 VS 2019'!U28+'2020 VS 2019'!U80 -> 1,609 | H52: ='2021 VS 2020'!U28+'2021 VS 2020'!U80 -> 364 | I52: ='2022 VS 2021'!U28+'2022 VS 2021'!U80 -> 0 | J52: ='2023 VS 2022'!U28+'2023 VS 2022'!U80 -> 0 | K52: ='ENE JUN 2025 VS 2024'!U16+'ENE JUN 2025 VS 2024'!U68 -> 0 | L52: ='ENE JUN 2025 VS 2024'!U27+'ENE JUN 2025 VS 2024'!U79 -> 0 | N52: SUR | O52: ='2020 VS 2019'!T17+'2020 VS 2019'!T69 -> 1,095 | P52: ='2020 VS 2019'!T28+'2020 VS 2019'!T80 -> 932 | Q52: ='2021 VS 2020'!T28+'2021 VS 2020'!T80 -> 182 | R52: ='2022 VS 2021'!T28+'2022 VS 2021'!T80 -> 0 | S52: ='2023 VS 2022'!T28+'2023 VS 2022'!T80 -> 0 | T52: ='ENE JUN 2025 VS 2024'!T16+'ENE JUN 2025 VS 2024'!T68 -> 0 | U52: ='ENE JUN 2025 VS 2024'!T27+'ENE JUN 2025 VS 2024'!T79 -> 0
E53: AUSTRAL | F53: ='2020 VS 2019'!U18+'2020 VS 2019'!U70 -> 17,576 | G53: ='2020 VS 2019'!U29+'2020 VS 2019'!U81 -> 15,818 | H53: ='2021 VS 2020'!U29+'2021 VS 2020'!U81 -> 8,675 | I53: ='2022 VS 2021'!U29+'2022 VS 2021'!U81 -> 10,269 | J53: ='2023 VS 2022'!U29+'2023 VS 2022'!U81 -> 9,369 | K53: ='ENE JUN 2025 VS 2024'!U17+'ENE JUN 2025 VS 2024'!U69 -> 7,677 | L53: ='ENE JUN 2025 VS 2024'!U28+'ENE JUN 2025 VS 2024'!U80 -> 8,507 | N53: AUSTRAL | O53: ='2020 VS 2019'!T18+'2020 VS 2019'!T70 -> 9,747 | P53: ='2020 VS 2019'!T29+'2020 VS 2019'!T81 -> 8,761 | Q53: ='2021 VS 2020'!T29+'2021 VS 2020'!T81 -> 5,009 | R53: ='2022 VS 2021'!T29+'2022 VS 2021'!T81 -> 5,688 | S53: ='2023 VS 2022'!T29+'2023 VS 2022'!T81 -> 5,312 | T53: ='ENE JUN 2025 VS 2024'!T17+'ENE JUN 2025 VS 2024'!T69 -> 4,512 | U53: ='ENE JUN 2025 VS 2024'!T28+'ENE JUN 2025 VS 2024'!T80 -> 4,741
E54: TOTAL | F54: =SUM(F49:F53) -> 2,326,163 | G54: =SUM(G49:G53) -> 2,065,588 | H54: 2,095,330 | I54: 2,098,798 | J54: =SUM(J49:J53) -> 1,990,947 | K54: =SUM(K49:K53) -> 2,187,402 | L54: =SUM(L49:L53) -> 2,467,908 | N54: TOTAL | O54: =SUM(O49:O53) -> 1,342,713 | P54: =SUM(P49:P53) -> 1,186,491 | Q54: 1,184,800 | R54: 1,165,841 | S54: =SUM(S49:S53) -> 1,109,181 | T54: 1,209,301 | U54: =SUM(U49:U53) -> 1,346,467
